﻿Department Family,Entity,Date,Expense Type,Expense Area,Supplier,Transaction Number,Amount,Item Description
BEIS,UKRI - AHRC,02/02/2023,Staff Training,SMT,Avado Learning Ltd,99888139,2699.1,Staff Training
BEIS,UKRI - AHRC,03/02/2023,T&S UK - Public Transport,SMT,Unspecified,99891018,69.46,T&S UK - Public Transport
BEIS,UKRI - AHRC,03/02/2023,T&S UK - Subsistence,SMT,Unspecified,99891018,16.05,T&S UK - Subsistence
BEIS,UKRI - AHRC,06/02/2023,Non-staff travel and subsistance,Cultural Value EDI,Unspecified,99890222,90.66,Non-staff travel and subsistance
BEIS,UKRI - AHRC,06/02/2023,Fees (Including College Members),Cultural Value EDI,Unspecified,99890223,500,Fees (Including College Members)
BEIS,UKRI - AHRC,06/02/2023,Staff Training,Strategy and Evidence,Partnership Media Group T/A GovNet Communications,99891345,534,Staff Training
BEIS,UKRI - AHRC,07/02/2023,Hospitality,International Development and Area Studies,Calder Conference Ltd,99891709,408.49,Hospitality
BEIS,UKRI - AHRC,07/02/2023,T&S UK - Public Transport,AI&Design,Unspecified,99893015,2.5,T&S UK - Public Transport
BEIS,UKRI - AHRC,07/02/2023,T&S UK - Subsistence,AI&Design,Unspecified,99893015,3.95,T&S UK - Subsistence
BEIS,UKRI - AHRC,08/02/2023,Fees (Including College Members),Executive Office,Unspecified,99891978,500,Fees (Including College Members)
BEIS,UKRI - AHRC,08/02/2023,T&S Overseas - Flights,International Partnership and Engagement,Corporate Travel Management (North) Ltd,99893239,2.5,T&S Overseas - Flights
BEIS,UKRI - AHRC,08/02/2023,T&S Overseas - Flights,International Partnership and Engagement,Corporate Travel Management (North) Ltd,99893239,196.58,T&S Overseas - Flights
BEIS,UKRI - AHRC,08/02/2023,T&S Overseas - Flights,International Partnership and Engagement,Corporate Travel Management (North) Ltd,99893239,0.83,T&S Overseas - Flights
BEIS,UKRI - AHRC,08/02/2023,T&S Overseas - Flights,International Partnership and Engagement,Corporate Travel Management (North) Ltd,99893239,2149.8,T&S Overseas - Flights
BEIS,UKRI - AHRC,08/02/2023,T&S Overseas - Flights,International Partnership and Engagement,Corporate Travel Management (North) Ltd,99893239,0.83,T&S Overseas - Flights
BEIS,UKRI - AHRC,08/02/2023,T&S Overseas - Flights,International Partnership and Engagement,Corporate Travel Management (North) Ltd,99893239,2149.8,T&S Overseas - Flights
BEIS,UKRI - AHRC,08/02/2023,T&S Overseas - Flights,International Partnership and Engagement,Corporate Travel Management (North) Ltd,99893239,0.83,T&S Overseas - Flights
BEIS,UKRI - AHRC,08/02/2023,T&S Overseas - Flights,International Partnership and Engagement,Corporate Travel Management (North) Ltd,99893239,2149.8,T&S Overseas - Flights
BEIS,UKRI - AHRC,08/02/2023,T&S Overseas - Public Transport,Public and Stakeholder Engagement,Corporate Travel Management (North) Ltd,99893239,0.25,T&S Overseas - Public Transport
BEIS,UKRI - AHRC,08/02/2023,T&S Overseas - Public Transport,Public and Stakeholder Engagement,Corporate Travel Management (North) Ltd,99893239,14.4,T&S Overseas - Public Transport
BEIS,UKRI - AHRC,08/02/2023,T&S UK - Accommodation,AHRC - Creative Industries,Corporate Travel Management (North) Ltd,99893239,0.8,T&S UK - Accommodation
BEIS,UKRI - AHRC,08/02/2023,T&S UK - Accommodation,AHRC - Creative Industries,Corporate Travel Management (North) Ltd,99893239,65,T&S UK - Accommodation
BEIS,UKRI - AHRC,08/02/2023,T&S UK - Accommodation,AHRC - Creative Industries,Corporate Travel Management (North) Ltd,99893239,0.16,T&S UK - Accommodation
BEIS,UKRI - AHRC,08/02/2023,T&S UK - Accommodation,Infrastruture Roadmap,Corporate Travel Management (North) Ltd,99893239,0.8,T&S UK - Accommodation
BEIS,UKRI - AHRC,08/02/2023,T&S UK - Accommodation,Infrastruture Roadmap,Corporate Travel Management (North) Ltd,99893239,149,T&S UK - Accommodation
BEIS,UKRI - AHRC,08/02/2023,T&S UK - Accommodation,Infrastruture Roadmap,Corporate Travel Management (North) Ltd,99893239,0.8,T&S UK - Accommodation
BEIS,UKRI - AHRC,08/02/2023,T&S UK - Accommodation,Infrastruture Roadmap,Corporate Travel Management (North) Ltd,99893239,99,T&S UK - Accommodation
BEIS,UKRI - AHRC,08/02/2023,T&S UK - Accommodation,Infrastruture Roadmap,Corporate Travel Management (North) Ltd,99893239,0.32,T&S UK - Accommodation
BEIS,UKRI - AHRC,08/02/2023,T&S UK - Accommodation,Public and Stakeholder Engagement,Corporate Travel Management (North) Ltd,99893239,0.8,T&S UK - Accommodation
BEIS,UKRI - AHRC,08/02/2023,T&S UK - Accommodation,Public and Stakeholder Engagement,Corporate Travel Management (North) Ltd,99893239,101.68,T&S UK - Accommodation
BEIS,UKRI - AHRC,08/02/2023,T&S UK - Accommodation,Public and Stakeholder Engagement,Corporate Travel Management (North) Ltd,99893239,0.8,T&S UK - Accommodation
BEIS,UKRI - AHRC,08/02/2023,T&S UK - Accommodation,Public and Stakeholder Engagement,Corporate Travel Management (North) Ltd,99893239,115,T&S UK - Accommodation
BEIS,UKRI - AHRC,08/02/2023,T&S UK - Accommodation,Public and Stakeholder Engagement,Corporate Travel Management (North) Ltd,99893239,0.32,T&S UK - Accommodation
BEIS,UKRI - AHRC,08/02/2023,T&S UK - Accommodation,SMT,Corporate Travel Management (North) Ltd,99893239,0.8,T&S UK - Accommodation
BEIS,UKRI - AHRC,08/02/2023,T&S UK - Accommodation,SMT,Corporate Travel Management (North) Ltd,99893239,99,T&S UK - Accommodation
BEIS,UKRI - AHRC,08/02/2023,T&S UK - Accommodation,SMT,Corporate Travel Management (North) Ltd,99893239,0.16,T&S UK - Accommodation
BEIS,UKRI - AHRC,08/02/2023,T&S UK - Flights,Infrastruture Roadmap,Corporate Travel Management (North) Ltd,99893239,2.5,T&S UK - Flights
BEIS,UKRI - AHRC,08/02/2023,T&S UK - Flights,Infrastruture Roadmap,Corporate Travel Management (North) Ltd,99893239,99,T&S UK - Flights
BEIS,UKRI - AHRC,08/02/2023,T&S UK - Flights,SMT,Corporate Travel Management (North) Ltd,99893239,2.5,T&S UK - Flights
BEIS,UKRI - AHRC,08/02/2023,T&S UK - Flights,SMT,Corporate Travel Management (North) Ltd,99893239,274.55,T&S UK - Flights
BEIS,UKRI - AHRC,08/02/2023,T&S UK - Parking Tolls Congestion Charges,AI&Design,Corporate Travel Management (North) Ltd,99893239,4.5,T&S UK - Parking Tolls Congestion Charges
BEIS,UKRI - AHRC,08/02/2023,T&S UK - Parking Tolls Congestion Charges,AI&Design,Corporate Travel Management (North) Ltd,99893239,54.99,T&S UK - Parking Tolls Congestion Charges
BEIS,UKRI - AHRC,08/02/2023,T&S UK - Parking Tolls Congestion Charges,AI&Design,Corporate Travel Management (North) Ltd,99893239,4.5,T&S UK - Parking Tolls Congestion Charges
BEIS,UKRI - AHRC,08/02/2023,T&S UK - Parking Tolls Congestion Charges,AI&Design,Corporate Travel Management (North) Ltd,99893239,54.99,T&S UK - Parking Tolls Congestion Charges
BEIS,UKRI - AHRC,08/02/2023,T&S UK - Parking Tolls Congestion Charges,AI&Design,Corporate Travel Management (North) Ltd,99893239,1.8,T&S UK - Parking Tolls Congestion Charges
BEIS,UKRI - AHRC,08/02/2023,T&S UK - Public Transport,AHRC - Creative Industries,Corporate Travel Management (North) Ltd,99893239,0.25,T&S UK - Public Transport
BEIS,UKRI - AHRC,08/02/2023,T&S UK - Public Transport,AHRC - Creative Industries,Corporate Travel Management (North) Ltd,99893239,187.5,T&S UK - Public Transport
BEIS,UKRI - AHRC,08/02/2023,T&S UK - Public Transport,AHRC - Creative Industries,Corporate Travel Management (North) Ltd,99893239,0.25,T&S UK - Public Transport
BEIS,UKRI - AHRC,08/02/2023,T&S UK - Public Transport,AHRC - Creative Industries,Corporate Travel Management (North) Ltd,99893239,47.45,T&S UK - Public Transport
BEIS,UKRI - AHRC,08/02/2023,T&S UK - Public Transport,AHRC - Creative Industries,Corporate Travel Management (North) Ltd,99893239,0.25,T&S UK - Public Transport
BEIS,UKRI - AHRC,08/02/2023,T&S UK - Public Transport,AHRC - Creative Industries,Corporate Travel Management (North) Ltd,99893239,156.5,T&S UK - Public Transport
BEIS,UKRI - AHRC,08/02/2023,T&S UK - Public Transport,AHRC - Creative Industries,Corporate Travel Management (North) Ltd,99893239,0.25,T&S UK - Public Transport
BEIS,UKRI - AHRC,08/02/2023,T&S UK - Public Transport,AHRC - Creative Industries,Corporate Travel Management (North) Ltd,99893239,220,T&S UK - Public Transport
BEIS,UKRI - AHRC,08/02/2023,T&S UK - Public Transport,AHRC - Creative Industries,Corporate Travel Management (North) Ltd,99893239,0.25,T&S UK - Public Transport
BEIS,UKRI - AHRC,08/02/2023,T&S UK - Public Transport,AHRC - Creative Industries,Corporate Travel Management (North) Ltd,99893239,7.85,T&S UK - Public Transport
BEIS,UKRI - AHRC,08/02/2023,T&S UK - Public Transport,AHRC - Creative Industries,Corporate Travel Management (North) Ltd,99893239,0.25,T&S UK - Public Transport
BEIS,UKRI - AHRC,08/02/2023,T&S UK - Public Transport,AHRC - Creative Industries,Corporate Travel Management (North) Ltd,99893239,26,T&S UK - Public Transport
BEIS,UKRI - AHRC,08/02/2023,T&S UK - Public Transport,AHRC - Creative Industries,Corporate Travel Management (North) Ltd,99893239,0.25,T&S UK - Public Transport
BEIS,UKRI - AHRC,08/02/2023,T&S UK - Public Transport,AHRC - Creative Industries,Corporate Travel Management (North) Ltd,99893239,30.15,T&S UK - Public Transport
BEIS,UKRI - AHRC,08/02/2023,T&S UK - Public Transport,AHRC - Creative Industries,Corporate Travel Management (North) Ltd,99893239,0.25,T&S UK - Public Transport
BEIS,UKRI - AHRC,08/02/2023,T&S UK - Public Transport,AHRC - Creative Industries,Corporate Travel Management (North) Ltd,99893239,238,T&S UK - Public Transport
BEIS,UKRI - AHRC,08/02/2023,T&S UK - Public Transport,AHRC - Creative Industries,Corporate Travel Management (North) Ltd,99893239,0.25,T&S UK - Public Transport
BEIS,UKRI - AHRC,08/02/2023,T&S UK - Public Transport,AHRC - Creative Industries,Corporate Travel Management (North) Ltd,99893239,13.1,T&S UK - Public Transport
BEIS,UKRI - AHRC,08/02/2023,T&S UK - Public Transport,AHRC - Creative Industries,Corporate Travel Management (North) Ltd,99893239,0.25,T&S UK - Public Transport
BEIS,UKRI - AHRC,08/02/2023,T&S UK - Public Transport,AHRC - Creative Industries,Corporate Travel Management (North) Ltd,99893239,81.7,T&S UK - Public Transport
BEIS,UKRI - AHRC,08/02/2023,T&S UK - Public Transport,AHRC - Creative Industries,Corporate Travel Management (North) Ltd,99893239,2.6,T&S UK - Public Transport
BEIS,UKRI - AHRC,08/02/2023,T&S UK - Public Transport,AHRC - Creative Industries,Corporate Travel Management (North) Ltd,99893239,66,T&S UK - Public Transport
BEIS,UKRI - AHRC,08/02/2023,T&S UK - Public Transport,AI&Design,Corporate Travel Management (North) Ltd,99893239,0.25,T&S UK - Public Transport
BEIS,UKRI - AHRC,08/02/2023,T&S UK - Public Transport,AI&Design,Corporate Travel Management (North) Ltd,99893239,127,T&S UK - Public Transport
BEIS,UKRI - AHRC,08/02/2023,T&S UK - Public Transport,AI&Design,Corporate Travel Management (North) Ltd,99893239,0.25,T&S UK - Public Transport
BEIS,UKRI - AHRC,08/02/2023,T&S UK - Public Transport,AI&Design,Corporate Travel Management (North) Ltd,99893239,18.15,T&S UK - Public Transport
BEIS,UKRI - AHRC,08/02/2023,T&S UK - Public Transport,AI&Design,Corporate Travel Management (North) Ltd,99893239,0.5,T&S UK - Public Transport
BEIS,UKRI - AHRC,08/02/2023,T&S UK - Public Transport,AI&Design,Corporate Travel Management (North) Ltd,99893239,88.2,T&S UK - Public Transport
BEIS,UKRI - AHRC,08/02/2023,T&S UK - Public Transport,AI&Design,Corporate Travel Management (North) Ltd,99893239,309.1,T&S UK - Public Transport
BEIS,UKRI - AHRC,08/02/2023,T&S UK - Public Transport,AI&Design,Corporate Travel Management (North) Ltd,99893239,0.5,T&S UK - Public Transport
BEIS,UKRI - AHRC,08/02/2023,T&S UK - Public Transport,AI&Design,Corporate Travel Management (North) Ltd,99893239,79,T&S UK - Public Transport
BEIS,UKRI - AHRC,08/02/2023,T&S UK - Public Transport,AI&Design,Corporate Travel Management (North) Ltd,99893239,56,T&S UK - Public Transport
BEIS,UKRI - AHRC,08/02/2023,T&S UK - Public Transport,AI&Design,Corporate Travel Management (North) Ltd,99893239,0.25,T&S UK - Public Transport
BEIS,UKRI - AHRC,08/02/2023,T&S UK - Public Transport,AI&Design,Corporate Travel Management (North) Ltd,99893239,124.9,T&S UK - Public Transport
BEIS,UKRI - AHRC,08/02/2023,T&S UK - Public Transport,AI&Design,Corporate Travel Management (North) Ltd,99893239,0.25,T&S UK - Public Transport
BEIS,UKRI - AHRC,08/02/2023,T&S UK - Public Transport,AI&Design,Corporate Travel Management (North) Ltd,99893239,120.6,T&S UK - Public Transport
BEIS,UKRI - AHRC,08/02/2023,T&S UK - Public Transport,AI&Design,Corporate Travel Management (North) Ltd,99893239,0.25,T&S UK - Public Transport
BEIS,UKRI - AHRC,08/02/2023,T&S UK - Public Transport,AI&Design,Corporate Travel Management (North) Ltd,99893239,39.1,T&S UK - Public Transport
BEIS,UKRI - AHRC,08/02/2023,T&S UK - Public Transport,Infrastruture Roadmap,Corporate Travel Management (North) Ltd,99893239,0.25,T&S UK - Public Transport
BEIS,UKRI - AHRC,08/02/2023,T&S UK - Public Transport,Infrastruture Roadmap,Corporate Travel Management (North) Ltd,99893239,189.7,T&S UK - Public Transport
BEIS,UKRI - AHRC,08/02/2023,T&S UK - Public Transport,Infrastruture Roadmap,Corporate Travel Management (North) Ltd,99893239,0.25,T&S UK - Public Transport
BEIS,UKRI - AHRC,08/02/2023,T&S UK - Public Transport,Infrastruture Roadmap,Corporate Travel Management (North) Ltd,99893239,92.4,T&S UK - Public Transport
BEIS,UKRI - AHRC,08/02/2023,T&S UK - Public Transport,Infrastruture Roadmap,Corporate Travel Management (North) Ltd,99893239,0.25,T&S UK - Public Transport
BEIS,UKRI - AHRC,08/02/2023,T&S UK - Public Transport,Infrastruture Roadmap,Corporate Travel Management (North) Ltd,99893239,84,T&S UK - Public Transport
BEIS,UKRI - AHRC,08/02/2023,T&S UK - Public Transport,Infrastruture Roadmap,Corporate Travel Management (North) Ltd,99893239,0.25,T&S UK - Public Transport
BEIS,UKRI - AHRC,08/02/2023,T&S UK - Public Transport,Infrastruture Roadmap,Corporate Travel Management (North) Ltd,99893239,15,T&S UK - Public Transport
BEIS,UKRI - AHRC,08/02/2023,T&S UK - Public Transport,Infrastruture Roadmap,Corporate Travel Management (North) Ltd,99893239,0.25,T&S UK - Public Transport
BEIS,UKRI - AHRC,08/02/2023,T&S UK - Public Transport,Infrastruture Roadmap,Corporate Travel Management (North) Ltd,99893239,169.7,T&S UK - Public Transport
BEIS,UKRI - AHRC,08/02/2023,T&S UK - Public Transport,Infrastruture Roadmap,Corporate Travel Management (North) Ltd,99893239,0.25,T&S UK - Public Transport
BEIS,UKRI - AHRC,08/02/2023,T&S UK - Public Transport,Infrastruture Roadmap,Corporate Travel Management (North) Ltd,99893239,68,T&S UK - Public Transport
BEIS,UKRI - AHRC,08/02/2023,T&S UK - Public Transport,Infrastruture Roadmap,Corporate Travel Management (North) Ltd,99893239,0.25,T&S UK - Public Transport
BEIS,UKRI - AHRC,08/02/2023,T&S UK - Public Transport,Infrastruture Roadmap,Corporate Travel Management (North) Ltd,99893239,56,T&S UK - Public Transport
BEIS,UKRI - AHRC,08/02/2023,T&S UK - Public Transport,Infrastruture Roadmap,Corporate Travel Management (North) Ltd,99893239,-48.5,T&S UK - Public Transport
BEIS,UKRI - AHRC,08/02/2023,T&S UK - Public Transport,Infrastruture Roadmap,Corporate Travel Management (North) Ltd,99893239,0.8,T&S UK - Public Transport
BEIS,UKRI - AHRC,08/02/2023,T&S UK - Public Transport,Infrastruture Roadmap,Corporate Travel Management (North) Ltd,99893239,0.75,T&S UK - Public Transport
BEIS,UKRI - AHRC,08/02/2023,T&S UK - Public Transport,Infrastruture Roadmap,Corporate Travel Management (North) Ltd,99893239,120,T&S UK - Public Transport
BEIS,UKRI - AHRC,08/02/2023,T&S UK - Public Transport,Infrastruture Roadmap,Corporate Travel Management (North) Ltd,99893239,52.8,T&S UK - Public Transport
BEIS,UKRI - AHRC,08/02/2023,T&S UK - Public Transport,Infrastruture Roadmap,Corporate Travel Management (North) Ltd,99893239,300.1,T&S UK - Public Transport
BEIS,UKRI - AHRC,08/02/2023,T&S UK - Public Transport,Infrastruture Roadmap,Corporate Travel Management (North) Ltd,99893239,0.5,T&S UK - Public Transport
BEIS,UKRI - AHRC,08/02/2023,T&S UK - Public Transport,Infrastruture Roadmap,Corporate Travel Management (North) Ltd,99893239,80,T&S UK - Public Transport
BEIS,UKRI - AHRC,08/02/2023,T&S UK - Public Transport,Infrastruture Roadmap,Corporate Travel Management (North) Ltd,99893239,55,T&S UK - Public Transport
BEIS,UKRI - AHRC,08/02/2023,T&S UK - Public Transport,Infrastruture Roadmap,Corporate Travel Management (North) Ltd,99893239,0.16,T&S UK - Public Transport
BEIS,UKRI - AHRC,08/02/2023,T&S UK - Public Transport,International Development and Area Studies,Corporate Travel Management (North) Ltd,99893239,0.25,T&S UK - Public Transport
BEIS,UKRI - AHRC,08/02/2023,T&S UK - Public Transport,International Development and Area Studies,Corporate Travel Management (North) Ltd,99893239,104.7,T&S UK - Public Transport
BEIS,UKRI - AHRC,08/02/2023,T&S UK - Public Transport,International Development and Area Studies,Corporate Travel Management (North) Ltd,99893239,0.25,T&S UK - Public Transport
BEIS,UKRI - AHRC,08/02/2023,T&S UK - Public Transport,International Development and Area Studies,Corporate Travel Management (North) Ltd,99893239,104.7,T&S UK - Public Transport
BEIS,UKRI - AHRC,08/02/2023,T&S UK - Public Transport,International Partnership and Engagement,Corporate Travel Management (North) Ltd,99893239,0.25,T&S UK - Public Transport
BEIS,UKRI - AHRC,08/02/2023,T&S UK - Public Transport,International Partnership and Engagement,Corporate Travel Management (North) Ltd,99893239,59.3,T&S UK - Public Transport
BEIS,UKRI - AHRC,08/02/2023,T&S UK - Public Transport,Programme Management Office,Corporate Travel Management (North) Ltd,99893239,0.13,T&S UK - Public Transport
BEIS,UKRI - AHRC,08/02/2023,T&S UK - Public Transport,Programme Management Office,Corporate Travel Management (North) Ltd,99893239,85.7,T&S UK - Public Transport
BEIS,UKRI - AHRC,08/02/2023,T&S UK - Public Transport,Programme Management Office,Corporate Travel Management (North) Ltd,99893239,0.12,T&S UK - Public Transport
BEIS,UKRI - AHRC,08/02/2023,T&S UK - Public Transport,Programme Management Office,Corporate Travel Management (North) Ltd,99893239,85.7,T&S UK - Public Transport
BEIS,UKRI - AHRC,08/02/2023,T&S UK - Public Transport,Public and Stakeholder Engagement,Corporate Travel Management (North) Ltd,99893239,0.25,T&S UK - Public Transport
BEIS,UKRI - AHRC,08/02/2023,T&S UK - Public Transport,Public and Stakeholder Engagement,Corporate Travel Management (North) Ltd,99893239,188.4,T&S UK - Public Transport
BEIS,UKRI - AHRC,08/02/2023,T&S UK - Public Transport,SMT,Corporate Travel Management (North) Ltd,99893239,0.25,T&S UK - Public Transport
BEIS,UKRI - AHRC,08/02/2023,T&S UK - Public Transport,SMT,Corporate Travel Management (North) Ltd,99893239,76,T&S UK - Public Transport
BEIS,UKRI - AHRC,08/02/2023,T&S UK - Public Transport,SMT,Corporate Travel Management (North) Ltd,99893239,0.25,T&S UK - Public Transport
BEIS,UKRI - AHRC,08/02/2023,T&S UK - Public Transport,SMT,Corporate Travel Management (North) Ltd,99893239,109.7,T&S UK - Public Transport
BEIS,UKRI - AHRC,08/02/2023,T&S UK - Public Transport,SMT,Corporate Travel Management (North) Ltd,99893239,0.25,T&S UK - Public Transport
BEIS,UKRI - AHRC,08/02/2023,T&S UK - Public Transport,SMT,Corporate Travel Management (North) Ltd,99893239,151.2,T&S UK - Public Transport
BEIS,UKRI - AHRC,08/02/2023,T&S UK - Public Transport,SMT,Corporate Travel Management (North) Ltd,99893239,0.25,T&S UK - Public Transport
BEIS,UKRI - AHRC,08/02/2023,T&S UK - Public Transport,SMT,Corporate Travel Management (North) Ltd,99893239,151.2,T&S UK - Public Transport
BEIS,UKRI - AHRC,08/02/2023,T&S UK - Public Transport,SMT,Corporate Travel Management (North) Ltd,99893239,0.25,T&S UK - Public Transport
BEIS,UKRI - AHRC,08/02/2023,T&S UK - Public Transport,SMT,Corporate Travel Management (North) Ltd,99893239,63.3,T&S UK - Public Transport
BEIS,UKRI - AHRC,08/02/2023,T&S UK - Public Transport,SMT,Corporate Travel Management (North) Ltd,99893239,0.25,T&S UK - Public Transport
BEIS,UKRI - AHRC,08/02/2023,T&S UK - Public Transport,SMT,Corporate Travel Management (North) Ltd,99893239,71.3,T&S UK - Public Transport
BEIS,UKRI - AHRC,08/02/2023,T&S UK - Public Transport,SMT,Corporate Travel Management (North) Ltd,99893239,0.25,T&S UK - Public Transport
BEIS,UKRI - AHRC,08/02/2023,T&S UK - Public Transport,SMT,Corporate Travel Management (North) Ltd,99893239,32.2,T&S UK - Public Transport
BEIS,UKRI - AHRC,08/02/2023,T&S UK - Public Transport,SMT,Corporate Travel Management (North) Ltd,99893239,0.25,T&S UK - Public Transport
BEIS,UKRI - AHRC,08/02/2023,T&S UK - Public Transport,SMT,Corporate Travel Management (North) Ltd,99893239,90.1,T&S UK - Public Transport
BEIS,UKRI - AHRC,08/02/2023,T&S UK - Public Transport,SMT,Corporate Travel Management (North) Ltd,99893239,0.25,T&S UK - Public Transport
BEIS,UKRI - AHRC,08/02/2023,T&S UK - Public Transport,SMT,Corporate Travel Management (North) Ltd,99893239,28.6,T&S UK - Public Transport
BEIS,UKRI - AHRC,08/02/2023,T&S UK - Public Transport,SMT,Corporate Travel Management (North) Ltd,99893239,0.25,T&S UK - Public Transport
BEIS,UKRI - AHRC,08/02/2023,T&S UK - Public Transport,SMT,Corporate Travel Management (North) Ltd,99893239,264.8,T&S UK - Public Transport
BEIS,UKRI - AHRC,08/02/2023,T&S UK - Public Transport,SMT,Corporate Travel Management (North) Ltd,99893239,0.25,T&S UK - Public Transport
BEIS,UKRI - AHRC,08/02/2023,T&S UK - Public Transport,SMT,Corporate Travel Management (North) Ltd,99893239,58.9,T&S UK - Public Transport
BEIS,UKRI - AHRC,08/02/2023,T&S UK - Public Transport,SMT,Corporate Travel Management (North) Ltd,99893239,0.25,T&S UK - Public Transport
BEIS,UKRI - AHRC,08/02/2023,T&S UK - Public Transport,SMT,Corporate Travel Management (North) Ltd,99893239,32.2,T&S UK - Public Transport
BEIS,UKRI - AHRC,08/02/2023,T&S UK - Public Transport,SMT,Corporate Travel Management (North) Ltd,99893239,0.25,T&S UK - Public Transport
BEIS,UKRI - AHRC,08/02/2023,T&S UK - Public Transport,SMT,Corporate Travel Management (North) Ltd,99893239,106.7,T&S UK - Public Transport
BEIS,UKRI - AHRC,08/02/2023,T&S UK - Public Transport,SMT,Corporate Travel Management (North) Ltd,99893239,0.25,T&S UK - Public Transport
BEIS,UKRI - AHRC,08/02/2023,T&S UK - Public Transport,SMT,Corporate Travel Management (North) Ltd,99893239,32.2,T&S UK - Public Transport
BEIS,UKRI - AHRC,08/02/2023,T&S UK - Public Transport,SMT,Corporate Travel Management (North) Ltd,99893239,0.25,T&S UK - Public Transport
BEIS,UKRI - AHRC,08/02/2023,T&S UK - Public Transport,SMT,Corporate Travel Management (North) Ltd,99893239,158.1,T&S UK - Public Transport
BEIS,UKRI - AHRC,08/02/2023,T&S UK - Public Transport,Strategy and Evidence,Corporate Travel Management (North) Ltd,99893239,0.25,T&S UK - Public Transport
BEIS,UKRI - AHRC,08/02/2023,T&S UK - Public Transport,Strategy and Evidence,Corporate Travel Management (North) Ltd,99893239,62.7,T&S UK - Public Transport
BEIS,UKRI - AHRC,08/02/2023,T&S UK - Public Transport,Strategy and Evidence,Corporate Travel Management (North) Ltd,99893239,0.25,T&S UK - Public Transport
BEIS,UKRI - AHRC,08/02/2023,T&S UK - Public Transport,Strategy and Evidence,Corporate Travel Management (North) Ltd,99893239,41.4,T&S UK - Public Transport
BEIS,UKRI - AHRC,08/02/2023,T&S UK - Public Transport,Strategy and Evidence,Corporate Travel Management (North) Ltd,99893239,0.25,T&S UK - Public Transport
BEIS,UKRI - AHRC,08/02/2023,T&S UK - Public Transport,Strategy and Evidence,Corporate Travel Management (North) Ltd,99893239,34.3,T&S UK - Public Transport
BEIS,UKRI - AHRC,08/02/2023,T&S UK - Public Transport,Strategy and Evidence,Corporate Travel Management (North) Ltd,99893239,0.25,T&S UK - Public Transport
BEIS,UKRI - AHRC,08/02/2023,T&S UK - Public Transport,Strategy and Evidence,Corporate Travel Management (North) Ltd,99893239,151.2,T&S UK - Public Transport
BEIS,UKRI - AHRC,08/02/2023,T&S UK - Public Transport,Strategy and Evidence,Corporate Travel Management (North) Ltd,99893239,0.25,T&S UK - Public Transport
BEIS,UKRI - AHRC,08/02/2023,T&S UK - Public Transport,Strategy and Evidence,Corporate Travel Management (North) Ltd,99893239,40.7,T&S UK - Public Transport
BEIS,UKRI - AHRC,09/02/2023,Unspecified,Infrastructure Fund - RICHeS,Alexander Mann Solutions Ltd,99890387,1905.91,Legal & Professional Services
BEIS,UKRI - AHRC,09/02/2023,Unspecified,SMT,University of St Andrews,99890498,28769.6,Secondments
BEIS,UKRI - AHRC,09/02/2023,Fees (Including College Members),Operations,Unspecified,99893834,170,Fees (Including College Members)
BEIS,UKRI - AHRC,09/02/2023,Fees (Including College Members),Operations,Unspecified,99893836,170,Fees (Including College Members)
BEIS,UKRI - AHRC,09/02/2023,Fees (Including College Members),Operations,Unspecified,99893837,230,Fees (Including College Members)
BEIS,UKRI - AHRC,09/02/2023,Fees (Including College Members),Operations,Unspecified,99893838,170,Fees (Including College Members)
BEIS,UKRI - AHRC,09/02/2023,Fees (Including College Members),Operations,Unspecified,99893852,115,Fees (Including College Members)
BEIS,UKRI - AHRC,09/02/2023,Fees (Including College Members),Operations,Unspecified,99893853,90,Fees (Including College Members)
BEIS,UKRI - AHRC,10/02/2023,Other Programme Costs,Commissioned Research,UKRI - Engineering & Physical Sciences Research Council,99893032,75000,Other Programme Costs
BEIS,UKRI - AHRC,10/02/2023,Fees (Including College Members),Operations,Unspecified,99894755,170,Fees (Including College Members)
BEIS,UKRI - AHRC,13/02/2023,Research Grant Expenditure,SUSI (Sustainable Urban Systems and Infrastructure),UKRI - Engineering & Physical Sciences Research Council,99894194,100000,Research Grant Expenditure
BEIS,UKRI - AHRC,13/02/2023,Other Programme Costs,International Placement Scheme,University College London,99894923,500,Other Programme Costs
BEIS,UKRI - AHRC,13/02/2023,Other Programme Costs,Daphne Jackson Fellowships,Daphne Jackson Trust,99895014,31974.7,Other Programme Costs
BEIS,UKRI - AHRC,13/02/2023,T&S UK - Public Transport,Strategy and Evidence,Unspecified,99895594,25,T&S UK - Public Transport
BEIS,UKRI - AHRC,13/02/2023,T&S UK - Public Transport,Strategy and Evidence,Unspecified,99895594,28.04,T&S UK - Public Transport
BEIS,UKRI - AHRC,13/02/2023,T&S UK - Subsistence,Strategy and Evidence,Unspecified,99895594,2.9,T&S UK - Subsistence
BEIS,UKRI - AHRC,13/02/2023,T&S UK - Subsistence,Strategy and Evidence,Unspecified,99895594,9.65,T&S UK - Subsistence
BEIS,UKRI - AHRC,14/02/2023,Unspecified,Balance Sheet,HM Revenue & Customs,99893121,59460.18,NI Payable Salaries
BEIS,UKRI - AHRC,14/02/2023,Unspecified,Balance Sheet,HM Revenue & Customs,99893122,47209.63,PAYE Payable Salaries
BEIS,UKRI - AHRC,14/02/2023,Unspecified,Balance Sheet,HM Revenue & Customs,99893123,5220,Student Loans
BEIS,UKRI - AHRC,14/02/2023,Unspecified,Corporate Services,HM Revenue & Customs,99893124,1671,Apprenticeship Levy
BEIS,UKRI - AHRC,14/02/2023,Other Programme Costs,International Placement Scheme,University of Plymouth,99895721,750,Other Programme Costs
BEIS,UKRI - AHRC,14/02/2023,T&S UK - Public Transport,AHRC - Creative Industries,Unspecified,99896071,2,T&S UK - Public Transport
BEIS,UKRI - AHRC,14/02/2023,T&S UK - Public Transport,AHRC - Creative Industries,Unspecified,99896071,112.5,T&S UK - Public Transport
BEIS,UKRI - AHRC,14/02/2023,Corporate Events,Mental Health,Imperial War Museum Trading Company Ltd,99896505,250000,Corporate Events
BEIS,UKRI - AHRC,15/02/2023,Voluntary Deductions,Balance Sheet,Swindon Office Sports and Social Club,99893125,36,Voluntary Deductions
BEIS,UKRI - AHRC,15/02/2023,Union Deductions,Balance Sheet,PCS Union,99893126,59.84,Union Deductions
BEIS,UKRI - AHRC,15/02/2023,Unspecified,Balance Sheet,Unspecified,99893127,8097.24,Ees Pension Deductions - JSS
BEIS,UKRI - AHRC,15/02/2023,Unspecified,Balance Sheet,Unspecified,99893128,36072.35,Ers Pension Deductions - JSS
BEIS,UKRI - AHRC,15/02/2023,Unspecified,Balance Sheet,Scottish Widows,99893129,193.37,Partnership Pension Deductions
BEIS,UKRI - AHRC,15/02/2023,Unspecified,Balance Sheet,Cabinet Office RM Shared Services,99893130,12445.3,Ees Pension Deductions - MyCSP
BEIS,UKRI - AHRC,15/02/2023,Unspecified,Balance Sheet,Cabinet Office RM Shared Services,99893131,56383.35,Ers Pension Deductions - MyCSP
BEIS,UKRI - AHRC,15/02/2023,Unspecified,Balance Sheet,Unspecified,99893132,561.77,Ees Pension Deductions - MRC
BEIS,UKRI - AHRC,15/02/2023,Unspecified,Balance Sheet,Unspecified,99893133,1382.81,Ers Pension Deductions - MRC
BEIS,UKRI - AHRC,15/02/2023,Nursery Deductions,Balance Sheet,UKRI - Engineering & Physical Sciences Research Council,99893134,985,Nursery Deductions
BEIS,UKRI - AHRC,15/02/2023,Payroll Clearing,Balance Sheet,Civil Service Benevolent Fund,99893135,5,Payroll Clearing
BEIS,UKRI - AHRC,15/02/2023,Other Programme Costs,International Placement Scheme,King's College London,99896616,1000,Other Programme Costs
BEIS,UKRI - AHRC,15/02/2023,Other Programme Costs,International Placement Scheme,King's College London,99896617,250,Other Programme Costs
BEIS,UKRI - AHRC,15/02/2023,Fees (Including College Members),Operations,Unspecified,99896815,170,Fees (Including College Members)
BEIS,UKRI - AHRC,15/02/2023,Health & Safety (inc. Medicals & Opticians),International Partnership and Engagement,Unspecified,99897715,79,Health & Safety (inc. Medicals & Opticians)
BEIS,UKRI - AHRC,15/02/2023,T&S UK - Public Transport,AHRC - Creative Industries,Unspecified,99897716,2.6,T&S UK - Public Transport
BEIS,UKRI - AHRC,15/02/2023,T&S UK - Subsistence,AHRC - Creative Industries,Unspecified,99897716,7.5,T&S UK - Subsistence
BEIS,UKRI - AHRC,15/02/2023,T&S UK - Subsistence,AHRC - Creative Industries,Unspecified,99897716,15.4,T&S UK - Subsistence
BEIS,UKRI - AHRC,15/02/2023,T&S UK - Subsistence,AHRC - Creative Industries,Unspecified,99897716,15,T&S UK - Subsistence
BEIS,UKRI - AHRC,15/02/2023,T&S UK - Subsistence,AHRC - Creative Industries,Unspecified,99897716,29.75,T&S UK - Subsistence
BEIS,UKRI - AHRC,16/02/2023,UK - Professional Memberships & Subscriptions,Programme Management Office,Unspecified,99892355,150,UK - Professional Memberships & Subscriptions
BEIS,UKRI - AHRC,16/02/2023,Unspecified,Infrastructure Fund - RICHeS,Alexander Mann Solutions Ltd,99894231,1386.12,Legal & Professional Services
BEIS,UKRI - AHRC,16/02/2023,Staff Training,Programme Management Office,PMO Learning Ltd,99897600,2154,Staff Training
BEIS,UKRI - AHRC,16/02/2023,Fees (Including College Members),Executive Office,Unspecified,99897834,500,Fees (Including College Members)
BEIS,UKRI - AHRC,16/02/2023,Fees (Including College Members),Executive Office,Unspecified,99897835,500,Fees (Including College Members)
BEIS,UKRI - AHRC,17/02/2023,Non-staff travel and subsistance,Executive Office,Unspecified,99898176,228,Non-staff travel and subsistance
BEIS,UKRI - AHRC,17/02/2023,Fees (Including College Members),Executive Office,Unspecified,99898177,170,Fees (Including College Members)
BEIS,UKRI - AHRC,17/02/2023,Non-staff travel and subsistance,Cultural Value EDI,Unspecified,99898178,5.4,Non-staff travel and subsistance
BEIS,UKRI - AHRC,17/02/2023,Fees (Including College Members),Cultural Value EDI,Unspecified,99898179,500,Fees (Including College Members)
BEIS,UKRI - AHRC,17/02/2023,Non-staff travel and subsistance,Cultural Value EDI,Unspecified,99898180,42.3,Non-staff travel and subsistance
BEIS,UKRI - AHRC,17/02/2023,Fees (Including College Members),Cultural Value EDI,Unspecified,99898181,500,Fees (Including College Members)
BEIS,UKRI - AHRC,20/02/2023,Other Programme Costs,International Placement Scheme,University College London,99894926,750,Other Programme Costs
BEIS,UKRI - AHRC,20/02/2023,Other Programme Costs,International Placement Scheme,University College London,99894927,1000,Other Programme Costs
BEIS,UKRI - AHRC,20/02/2023,T&S UK - Other Charges,Executive Office,Unspecified,99899089,124.99,T&S UK - Other Charges
BEIS,UKRI - AHRC,20/02/2023,Fees (Including College Members),Executive Office,Unspecified,99899715,170,Fees (Including College Members)
BEIS,UKRI - AHRC,21/02/2023,Other Programme Costs,International Placement Scheme,Birkbeck University of London,99887169,1000,Other Programme Costs
BEIS,UKRI - AHRC,22/02/2023,Non-staff travel and subsistance,Infrastruture Roadmap,Unspecified,99900982,655.38,Non-staff travel and subsistance
BEIS,UKRI - AHRC,22/02/2023,Fees (Including College Members),Operations,Unspecified,99901884,340,Fees (Including College Members)
BEIS,UKRI - AHRC,22/02/2023,Fees (Including College Members),Operations,Unspecified,99901885,85,Fees (Including College Members)
BEIS,UKRI - AHRC,22/02/2023,Fees (Including College Members),Operations,Unspecified,99901886,230,Fees (Including College Members)
BEIS,UKRI - AHRC,23/02/2023,Unspecified,Infrastructure Fund - RICHeS,Alexander Mann Solutions Ltd,99898678,1386.12,Legal & Professional Services
BEIS,UKRI - AHRC,23/02/2023,Other Programme Costs,Public Engagement,University of London,99901241,35000,Other Programme Costs
BEIS,UKRI - AHRC,23/02/2023,Staff Training,SMT,Catalyst Consulting Ltd,99901877,2397.6,Staff Training
BEIS,UKRI - AHRC,24/02/2023,Research Grant Expenditure,Infrastructure Fund - CoSTAR,Creative Economy Team Ltd,99902366,949,Research Grant Expenditure
BEIS,UKRI - AHRC,24/02/2023,Fees (Including College Members),Operations,Unspecified,99903615,170,Fees (Including College Members)
BEIS,UKRI - AHRC,24/02/2023,Fees (Including College Members),Operations,Unspecified,99903616,170,Fees (Including College Members)
BEIS,UKRI - AHRC,28/02/2023,Fees (Including College Members),Operations,Unspecified,99904416,170,Fees (Including College Members)
BEIS,UKRI - AHRC,28/02/2023,Fees (Including College Members),Operations,Unspecified,99904417,170,Fees (Including College Members)
BEIS,UKRI - AHRC,28/02/2023,T&S UK - Public Transport,AHRC - Creative Industries,Unspecified,99905595,22.5,T&S UK - Public Transport
BEIS,UKRI - AHRC,28/02/2023,T&S UK - Subsistence,AHRC - Creative Industries,Unspecified,99905595,35,T&S UK - Subsistence
BEIS,UKRI - AHRC,28/02/2023,T&S UK - Subsistence,AHRC - Creative Industries,Unspecified,99905595,21.09,T&S UK - Subsistence
BEIS,UKRI - AHRC,28/02/2023,T&S UK - Public Transport,Operations,Unspecified,99905596,2,T&S UK - Public Transport
BEIS,UKRI - BBSRC,01/02/2023,Conferences & Seminars,Innovation and Skills Group,KNOWLEDGE TRANSFER NETWORK LTD,99880706,8577.6,Conferences & Seminars
BEIS,UKRI - BBSRC,01/02/2023,Conferences & Seminars,CIMG - Director,Max Planck Gesellschaft zur Forderung der Wissenschaft e.V.,99886514,341.56,Conferences & Seminars
BEIS,UKRI - BBSRC,01/02/2023,Fees (Including College Members),Science Group – Admin Function,Unspecified,99887256,253.32,Fees (Including College Members)
BEIS,UKRI - BBSRC,01/02/2023,Conferences & Seminars,Innovation and Skills Group,Liquid Media Live Events Ltd,99889173,7272,Conferences & Seminars
BEIS,UKRI - BBSRC,01/02/2023,T&S UK - Public Transport,Innovation and Skills Group,Unspecified,99889245,116.98,T&S UK - Public Transport
BEIS,UKRI - BBSRC,01/02/2023,T&S UK - Vehicle Hire,Innovation and Skills Group,Unspecified,99889246,26.92,T&S UK - Vehicle Hire
BEIS,UKRI - BBSRC,01/02/2023,T&S UK - Mileage,Innovation and Skills Group,Unspecified,99889247,39.6,T&S UK - Mileage
BEIS,UKRI - BBSRC,01/02/2023,T&S UK - Subsistence,Innovation and Skills Group,Unspecified,99889247,4.1,T&S UK - Subsistence
BEIS,UKRI - BBSRC,03/02/2023,T&S UK - Vehicle Hire,FG - Estates,Enterprise Rent-A-Car UK Ltd,99890919,111.02,T&S UK - Vehicle Hire
BEIS,UKRI - BBSRC,03/02/2023,T&S UK - Vehicle Hire,FG - Estates,Enterprise Rent-A-Car UK Ltd,99890919,-20.49,T&S UK - Vehicle Hire
BEIS,UKRI - BBSRC,03/02/2023,T&S UK - Vehicle Hire,FG - Estates,Enterprise Rent-A-Car UK Ltd,99890919,18.1,T&S UK - Vehicle Hire
BEIS,UKRI - BBSRC,03/02/2023,T&S UK - Vehicle Hire,Innovation and Skills Group,Enterprise Rent-A-Car UK Ltd,99890919,70.86,T&S UK - Vehicle Hire
BEIS,UKRI - BBSRC,03/02/2023,T&S UK - Vehicle Hire,Innovation and Skills Group,Enterprise Rent-A-Car UK Ltd,99890919,14.17,T&S UK - Vehicle Hire
BEIS,UKRI - BBSRC,03/02/2023,T&S UK - Vehicle Hire,Science Group,Enterprise Rent-A-Car UK Ltd,99890919,84.23,T&S UK - Vehicle Hire
BEIS,UKRI - BBSRC,03/02/2023,T&S UK - Vehicle Hire,Science Group,Enterprise Rent-A-Car UK Ltd,99890919,16.85,T&S UK - Vehicle Hire
BEIS,UKRI - BBSRC,03/02/2023,T&S UK - Accommodation,Science Group – Admin Function,Unspecified,99891060,1745.89,T&S UK - Accommodation
BEIS,UKRI - BBSRC,06/02/2023,Unspecified,Science Group,Abbey Business Interiors Ltd,99890164,368.4,Legal & Professional Services
BEIS,UKRI - BBSRC,06/02/2023,Non-staff travel and subsistance,Science Group – Admin Function,Unspecified,99890266,274.13,Non-staff travel and subsistance
BEIS,UKRI - BBSRC,06/02/2023,Non-staff travel and subsistance,Science Group – Admin Function,Unspecified,99890267,299.39,Non-staff travel and subsistance
BEIS,UKRI - BBSRC,06/02/2023,Non-staff travel and subsistance,Science Group – Admin Function,Unspecified,99890268,414.25,Non-staff travel and subsistance
BEIS,UKRI - BBSRC,06/02/2023,Non-staff travel and subsistance,Science Group – Admin Function,Unspecified,99890269,81.85,Non-staff travel and subsistance
BEIS,UKRI - BBSRC,06/02/2023,Unspecified,Science Group – Admin Function,Unspecified,99890270,340,Council & Committee Honoraria
BEIS,UKRI - BBSRC,06/02/2023,Non-staff travel and subsistance,Science Group – Admin Function,Unspecified,99890271,96.8,Non-staff travel and subsistance
BEIS,UKRI - BBSRC,06/02/2023,Unspecified,Science Group – Admin Function,Unspecified,99890272,340,Council & Committee Honoraria
BEIS,UKRI - BBSRC,06/02/2023,Unspecified,Science Group - Delivery Function,Unspecified,99890273,460,Council & Committee Honoraria
BEIS,UKRI - BBSRC,06/02/2023,Non-staff travel and subsistance,Science Group - Delivery Function,Unspecified,99890274,160.82,Non-staff travel and subsistance
BEIS,UKRI - BBSRC,06/02/2023,T&S UK - Other Charges,FG - Estates,Unspecified,99891416,16.95,T&S UK - Other Charges
BEIS,UKRI - BBSRC,06/02/2023,T&S UK - Vehicle Hire,FG - Estates,Unspecified,99891416,62.25,T&S UK - Vehicle Hire
BEIS,UKRI - BBSRC,07/02/2023,Research Grant Expenditure,Research: Strategic,Rothamsted Research Ltd,99890295,45171.83,Research Grant Expenditure
BEIS,UKRI - BBSRC,07/02/2023,T&S UK - Vehicle Hire,FG - Estates,Enterprise Rent-A-Car UK Ltd,99890364,133.61,T&S UK - Vehicle Hire
BEIS,UKRI - BBSRC,07/02/2023,T&S UK - Vehicle Hire,FG - Estates,Enterprise Rent-A-Car UK Ltd,99890364,76.05,T&S UK - Vehicle Hire
BEIS,UKRI - BBSRC,07/02/2023,T&S UK - Vehicle Hire,FG - Estates,Enterprise Rent-A-Car UK Ltd,99890364,41.93,T&S UK - Vehicle Hire
BEIS,UKRI - BBSRC,07/02/2023,Conferences & Seminars,CE - IRU,Calder Conference Ltd,99891711,8467.64,Conferences & Seminars
BEIS,UKRI - BBSRC,07/02/2023,T&S UK - Public Transport,Science Group – Admin Function,Flightlink Chauffeurs Ltd,99892850,131,T&S UK - Public Transport
BEIS,UKRI - BBSRC,07/02/2023,T&S UK - Public Transport,Science Group – Admin Function,Flightlink Chauffeurs Ltd,99892850,144,T&S UK - Public Transport
BEIS,UKRI - BBSRC,07/02/2023,T&S UK - Subsistence,Science Group,Unspecified,99892865,7.6,T&S UK - Subsistence
BEIS,UKRI - BBSRC,08/02/2023,Research Institutes - Capital Grants: Minor Works,Pirbright,The Pirbright Institute,99891830,8527.52,Research Institutes - Capital Grants: Minor Works
BEIS,UKRI - BBSRC,08/02/2023,Conferences & Seminars,Science Group,Association of Applied Biologists,99891871,305,Conferences & Seminars
BEIS,UKRI - BBSRC,08/02/2023,T&S Overseas - Flights,CE - Chief Executive,Corporate Travel Management (North) Ltd,99891997,2.5,T&S Overseas - Flights
BEIS,UKRI - BBSRC,08/02/2023,T&S Overseas - Flights,CE - Chief Executive,Corporate Travel Management (North) Ltd,99891997,234,T&S Overseas - Flights
BEIS,UKRI - BBSRC,08/02/2023,T&S Overseas - Public Transport,Science Group,Corporate Travel Management (North) Ltd,99891997,2.5,T&S Overseas - Public Transport
BEIS,UKRI - BBSRC,08/02/2023,T&S Overseas - Public Transport,Science Group,Corporate Travel Management (North) Ltd,99891997,229,T&S Overseas - Public Transport
BEIS,UKRI - BBSRC,08/02/2023,T&S Overseas - Public Transport,Science Group,Corporate Travel Management (North) Ltd,99891997,4.5,T&S Overseas - Public Transport
BEIS,UKRI - BBSRC,08/02/2023,T&S Overseas - Public Transport,Science Group,Corporate Travel Management (North) Ltd,99891997,229,T&S Overseas - Public Transport
BEIS,UKRI - BBSRC,08/02/2023,T&S UK - Accommodation,CE - Chief Executive,Corporate Travel Management (North) Ltd,99891997,0.8,T&S UK - Accommodation
BEIS,UKRI - BBSRC,08/02/2023,T&S UK - Accommodation,CE - Chief Executive,Corporate Travel Management (North) Ltd,99891997,258.3,T&S UK - Accommodation
BEIS,UKRI - BBSRC,08/02/2023,T&S UK - Accommodation,CE - Chief Executive,Corporate Travel Management (North) Ltd,99891997,0.16,T&S UK - Accommodation
BEIS,UKRI - BBSRC,08/02/2023,T&S UK - Accommodation,FG - Estates,Corporate Travel Management (North) Ltd,99891997,0.8,T&S UK - Accommodation
BEIS,UKRI - BBSRC,08/02/2023,T&S UK - Accommodation,FG - Estates,Corporate Travel Management (North) Ltd,99891997,85,T&S UK - Accommodation
BEIS,UKRI - BBSRC,08/02/2023,T&S UK - Accommodation,FG - Estates,Corporate Travel Management (North) Ltd,99891997,0.8,T&S UK - Accommodation
BEIS,UKRI - BBSRC,08/02/2023,T&S UK - Accommodation,FG - Estates,Corporate Travel Management (North) Ltd,99891997,111.6,T&S UK - Accommodation
BEIS,UKRI - BBSRC,08/02/2023,T&S UK - Accommodation,FG - Estates,Corporate Travel Management (North) Ltd,99891997,0.32,T&S UK - Accommodation
BEIS,UKRI - BBSRC,08/02/2023,T&S UK - Accommodation,Innovation and Skills Group,Corporate Travel Management (North) Ltd,99891997,0.8,T&S UK - Accommodation
BEIS,UKRI - BBSRC,08/02/2023,T&S UK - Accommodation,Innovation and Skills Group,Corporate Travel Management (North) Ltd,99891997,130,T&S UK - Accommodation
BEIS,UKRI - BBSRC,08/02/2023,T&S UK - Accommodation,Innovation and Skills Group,Corporate Travel Management (North) Ltd,99891997,0.8,T&S UK - Accommodation
BEIS,UKRI - BBSRC,08/02/2023,T&S UK - Accommodation,Innovation and Skills Group,Corporate Travel Management (North) Ltd,99891997,144.4,T&S UK - Accommodation
BEIS,UKRI - BBSRC,08/02/2023,T&S UK - Accommodation,Innovation and Skills Group,Corporate Travel Management (North) Ltd,99891997,0.8,T&S UK - Accommodation
BEIS,UKRI - BBSRC,08/02/2023,T&S UK - Accommodation,Innovation and Skills Group,Corporate Travel Management (North) Ltd,99891997,99,T&S UK - Accommodation
BEIS,UKRI - BBSRC,08/02/2023,T&S UK - Accommodation,Innovation and Skills Group,Corporate Travel Management (North) Ltd,99891997,0.16,T&S UK - Accommodation
BEIS,UKRI - BBSRC,08/02/2023,T&S UK - Accommodation,Innovation and Skills Group,Corporate Travel Management (North) Ltd,99891997,0.32,T&S UK - Accommodation
BEIS,UKRI - BBSRC,08/02/2023,T&S UK - Accommodation,Science Group,Corporate Travel Management (North) Ltd,99891997,0.8,T&S UK - Accommodation
BEIS,UKRI - BBSRC,08/02/2023,T&S UK - Accommodation,Science Group,Corporate Travel Management (North) Ltd,99891997,147.28,T&S UK - Accommodation
BEIS,UKRI - BBSRC,08/02/2023,T&S UK - Accommodation,Science Group,Corporate Travel Management (North) Ltd,99891997,0.8,T&S UK - Accommodation
BEIS,UKRI - BBSRC,08/02/2023,T&S UK - Accommodation,Science Group,Corporate Travel Management (North) Ltd,99891997,237.5,T&S UK - Accommodation
BEIS,UKRI - BBSRC,08/02/2023,T&S UK - Accommodation,Science Group,Corporate Travel Management (North) Ltd,99891997,0.8,T&S UK - Accommodation
BEIS,UKRI - BBSRC,08/02/2023,T&S UK - Accommodation,Science Group,Corporate Travel Management (North) Ltd,99891997,99,T&S UK - Accommodation
BEIS,UKRI - BBSRC,08/02/2023,T&S UK - Accommodation,Science Group,Corporate Travel Management (North) Ltd,99891997,0.32,T&S UK - Accommodation
BEIS,UKRI - BBSRC,08/02/2023,T&S UK - Accommodation,Science Group,Corporate Travel Management (North) Ltd,99891997,0.16,T&S UK - Accommodation
BEIS,UKRI - BBSRC,08/02/2023,T&S UK - Accommodation,Science Group – Admin Function,Corporate Travel Management (North) Ltd,99891997,2,T&S UK - Accommodation
BEIS,UKRI - BBSRC,08/02/2023,T&S UK - Accommodation,Science Group – Admin Function,Corporate Travel Management (North) Ltd,99891997,144.4,T&S UK - Accommodation
BEIS,UKRI - BBSRC,08/02/2023,T&S UK - Accommodation,Science Group – Admin Function,Corporate Travel Management (North) Ltd,99891997,0.4,T&S UK - Accommodation
BEIS,UKRI - BBSRC,08/02/2023,T&S UK - Flights,CE - CPS,Corporate Travel Management (North) Ltd,99891997,2.5,T&S UK - Flights
BEIS,UKRI - BBSRC,08/02/2023,T&S UK - Flights,CE - CPS,Corporate Travel Management (North) Ltd,99891997,161.97,T&S UK - Flights
BEIS,UKRI - BBSRC,08/02/2023,T&S UK - Flights,CE - CPS,Corporate Travel Management (North) Ltd,99891997,2.5,T&S UK - Flights
BEIS,UKRI - BBSRC,08/02/2023,T&S UK - Flights,CE - CPS,Corporate Travel Management (North) Ltd,99891997,97.47,T&S UK - Flights
BEIS,UKRI - BBSRC,08/02/2023,T&S UK - Flights,CE - Chief Executive,Corporate Travel Management (North) Ltd,99891997,2.5,T&S UK - Flights
BEIS,UKRI - BBSRC,08/02/2023,T&S UK - Flights,CE - Chief Executive,Corporate Travel Management (North) Ltd,99891997,302.98,T&S UK - Flights
BEIS,UKRI - BBSRC,08/02/2023,T&S UK - Flights,CE - Chief Executive,Corporate Travel Management (North) Ltd,99891997,2.5,T&S UK - Flights
BEIS,UKRI - BBSRC,08/02/2023,T&S UK - Flights,CE - Chief Executive,Corporate Travel Management (North) Ltd,99891997,155.46,T&S UK - Flights
BEIS,UKRI - BBSRC,08/02/2023,T&S UK - Flights,Innovation and Skills Group,Corporate Travel Management (North) Ltd,99891997,2.5,T&S UK - Flights
BEIS,UKRI - BBSRC,08/02/2023,T&S UK - Flights,Innovation and Skills Group,Corporate Travel Management (North) Ltd,99891997,190.21,T&S UK - Flights
BEIS,UKRI - BBSRC,08/02/2023,T&S UK - Parking Tolls Congestion Charges,Science Group – Admin Function,Corporate Travel Management (North) Ltd,99891997,4.5,T&S UK - Parking Tolls Congestion Charges
BEIS,UKRI - BBSRC,08/02/2023,T&S UK - Parking Tolls Congestion Charges,Science Group – Admin Function,Corporate Travel Management (North) Ltd,99891997,105.99,T&S UK - Parking Tolls Congestion Charges
BEIS,UKRI - BBSRC,08/02/2023,T&S UK - Parking Tolls Congestion Charges,Science Group – Admin Function,Corporate Travel Management (North) Ltd,99891997,0.9,T&S UK - Parking Tolls Congestion Charges
BEIS,UKRI - BBSRC,08/02/2023,T&S UK - Public Transport,CE - Chief Executive,Corporate Travel Management (North) Ltd,99891997,0.25,T&S UK - Public Transport
BEIS,UKRI - BBSRC,08/02/2023,T&S UK - Public Transport,CE - Chief Executive,Corporate Travel Management (North) Ltd,99891997,99.8,T&S UK - Public Transport
BEIS,UKRI - BBSRC,08/02/2023,T&S UK - Public Transport,CE - Chief Executive,Corporate Travel Management (North) Ltd,99891997,0.25,T&S UK - Public Transport
BEIS,UKRI - BBSRC,08/02/2023,T&S UK - Public Transport,CE - Chief Executive,Corporate Travel Management (North) Ltd,99891997,43.2,T&S UK - Public Transport
BEIS,UKRI - BBSRC,08/02/2023,T&S UK - Public Transport,CE - Chief Executive,Corporate Travel Management (North) Ltd,99891997,0.25,T&S UK - Public Transport
BEIS,UKRI - BBSRC,08/02/2023,T&S UK - Public Transport,CE - Chief Executive,Corporate Travel Management (North) Ltd,99891997,14,T&S UK - Public Transport
BEIS,UKRI - BBSRC,08/02/2023,T&S UK - Public Transport,CE - Chief Executive,Corporate Travel Management (North) Ltd,99891997,0.25,T&S UK - Public Transport
BEIS,UKRI - BBSRC,08/02/2023,T&S UK - Public Transport,CE - Chief Executive,Corporate Travel Management (North) Ltd,99891997,14,T&S UK - Public Transport
BEIS,UKRI - BBSRC,08/02/2023,T&S UK - Public Transport,CE - Chief Executive,Corporate Travel Management (North) Ltd,99891997,0.25,T&S UK - Public Transport
BEIS,UKRI - BBSRC,08/02/2023,T&S UK - Public Transport,CE - Chief Executive,Corporate Travel Management (North) Ltd,99891997,77.3,T&S UK - Public Transport
BEIS,UKRI - BBSRC,08/02/2023,T&S UK - Public Transport,CE - Chief Executive,Corporate Travel Management (North) Ltd,99891997,0.25,T&S UK - Public Transport
BEIS,UKRI - BBSRC,08/02/2023,T&S UK - Public Transport,CE - Chief Executive,Corporate Travel Management (North) Ltd,99891997,77.3,T&S UK - Public Transport
BEIS,UKRI - BBSRC,08/02/2023,T&S UK - Public Transport,CE - Chief Executive,Corporate Travel Management (North) Ltd,99891997,0.25,T&S UK - Public Transport
BEIS,UKRI - BBSRC,08/02/2023,T&S UK - Public Transport,CE - Chief Executive,Corporate Travel Management (North) Ltd,99891997,47.3,T&S UK - Public Transport
BEIS,UKRI - BBSRC,08/02/2023,T&S UK - Public Transport,CIMG - Director,Corporate Travel Management (North) Ltd,99891997,0.25,T&S UK - Public Transport
BEIS,UKRI - BBSRC,08/02/2023,T&S UK - Public Transport,CIMG - Director,Corporate Travel Management (North) Ltd,99891997,130.2,T&S UK - Public Transport
BEIS,UKRI - BBSRC,08/02/2023,T&S UK - Public Transport,Innovation and Skills Group,Corporate Travel Management (North) Ltd,99891997,0.25,T&S UK - Public Transport
BEIS,UKRI - BBSRC,08/02/2023,T&S UK - Public Transport,Innovation and Skills Group,Corporate Travel Management (North) Ltd,99891997,173.6,T&S UK - Public Transport
BEIS,UKRI - BBSRC,08/02/2023,T&S UK - Public Transport,Innovation and Skills Group,Corporate Travel Management (North) Ltd,99891997,0.25,T&S UK - Public Transport
BEIS,UKRI - BBSRC,08/02/2023,T&S UK - Public Transport,Innovation and Skills Group,Corporate Travel Management (North) Ltd,99891997,149.55,T&S UK - Public Transport
BEIS,UKRI - BBSRC,08/02/2023,T&S UK - Public Transport,Innovation and Skills Group,Corporate Travel Management (North) Ltd,99891997,-188.8,T&S UK - Public Transport
BEIS,UKRI - BBSRC,08/02/2023,T&S UK - Public Transport,Innovation and Skills Group,Corporate Travel Management (North) Ltd,99891997,-25.5,T&S UK - Public Transport
BEIS,UKRI - BBSRC,08/02/2023,T&S UK - Public Transport,Innovation and Skills Group,Corporate Travel Management (North) Ltd,99891997,0.25,T&S UK - Public Transport
BEIS,UKRI - BBSRC,08/02/2023,T&S UK - Public Transport,Innovation and Skills Group,Corporate Travel Management (North) Ltd,99891997,173.6,T&S UK - Public Transport
BEIS,UKRI - BBSRC,08/02/2023,T&S UK - Public Transport,Innovation and Skills Group,Corporate Travel Management (North) Ltd,99891997,0.25,T&S UK - Public Transport
BEIS,UKRI - BBSRC,08/02/2023,T&S UK - Public Transport,Innovation and Skills Group,Corporate Travel Management (North) Ltd,99891997,57.85,T&S UK - Public Transport
BEIS,UKRI - BBSRC,08/02/2023,T&S UK - Public Transport,Innovation and Skills Group,Corporate Travel Management (North) Ltd,99891997,0.25,T&S UK - Public Transport
BEIS,UKRI - BBSRC,08/02/2023,T&S UK - Public Transport,Innovation and Skills Group,Corporate Travel Management (North) Ltd,99891997,30.5,T&S UK - Public Transport
BEIS,UKRI - BBSRC,08/02/2023,T&S UK - Public Transport,Innovation and Skills Group,Corporate Travel Management (North) Ltd,99891997,0.25,T&S UK - Public Transport
BEIS,UKRI - BBSRC,08/02/2023,T&S UK - Public Transport,Innovation and Skills Group,Corporate Travel Management (North) Ltd,99891997,225.8,T&S UK - Public Transport
BEIS,UKRI - BBSRC,08/02/2023,T&S UK - Public Transport,Innovation and Skills Group,Corporate Travel Management (North) Ltd,99891997,0.25,T&S UK - Public Transport
BEIS,UKRI - BBSRC,08/02/2023,T&S UK - Public Transport,Innovation and Skills Group,Corporate Travel Management (North) Ltd,99891997,122.1,T&S UK - Public Transport
BEIS,UKRI - BBSRC,08/02/2023,T&S UK - Public Transport,Innovation and Skills Group,Corporate Travel Management (North) Ltd,99891997,0.25,T&S UK - Public Transport
BEIS,UKRI - BBSRC,08/02/2023,T&S UK - Public Transport,Innovation and Skills Group,Corporate Travel Management (North) Ltd,99891997,49.75,T&S UK - Public Transport
BEIS,UKRI - BBSRC,08/02/2023,T&S UK - Public Transport,Innovation and Skills Group,Corporate Travel Management (North) Ltd,99891997,0.5,T&S UK - Public Transport
BEIS,UKRI - BBSRC,08/02/2023,T&S UK - Public Transport,Innovation and Skills Group,Corporate Travel Management (North) Ltd,99891997,112,T&S UK - Public Transport
BEIS,UKRI - BBSRC,08/02/2023,T&S UK - Public Transport,Innovation and Skills Group,Corporate Travel Management (North) Ltd,99891997,8.5,T&S UK - Public Transport
BEIS,UKRI - BBSRC,08/02/2023,T&S UK - Public Transport,Innovation and Skills Group,Corporate Travel Management (North) Ltd,99891997,10,T&S UK - Public Transport
BEIS,UKRI - BBSRC,08/02/2023,T&S UK - Public Transport,Innovation and Skills Group,Corporate Travel Management (North) Ltd,99891997,-49.1,T&S UK - Public Transport
BEIS,UKRI - BBSRC,08/02/2023,T&S UK - Public Transport,Innovation and Skills Group,Corporate Travel Management (North) Ltd,99891997,15,T&S UK - Public Transport
BEIS,UKRI - BBSRC,08/02/2023,T&S UK - Public Transport,Innovation and Skills Group,Corporate Travel Management (North) Ltd,99891997,-167,T&S UK - Public Transport
BEIS,UKRI - BBSRC,08/02/2023,T&S UK - Public Transport,Innovation and Skills Group,Corporate Travel Management (North) Ltd,99891997,0.25,T&S UK - Public Transport
BEIS,UKRI - BBSRC,08/02/2023,T&S UK - Public Transport,Innovation and Skills Group,Corporate Travel Management (North) Ltd,99891997,189.3,T&S UK - Public Transport
BEIS,UKRI - BBSRC,08/02/2023,T&S UK - Public Transport,Innovation and Skills Group,Corporate Travel Management (North) Ltd,99891997,0.25,T&S UK - Public Transport
BEIS,UKRI - BBSRC,08/02/2023,T&S UK - Public Transport,Innovation and Skills Group,Corporate Travel Management (North) Ltd,99891997,101.8,T&S UK - Public Transport
BEIS,UKRI - BBSRC,08/02/2023,T&S UK - Public Transport,Innovation and Skills Group,Corporate Travel Management (North) Ltd,99891997,0.25,T&S UK - Public Transport
BEIS,UKRI - BBSRC,08/02/2023,T&S UK - Public Transport,Innovation and Skills Group,Corporate Travel Management (North) Ltd,99891997,173.6,T&S UK - Public Transport
BEIS,UKRI - BBSRC,08/02/2023,T&S UK - Public Transport,Innovation and Skills Group,Corporate Travel Management (North) Ltd,99891997,0.25,T&S UK - Public Transport
BEIS,UKRI - BBSRC,08/02/2023,T&S UK - Public Transport,Innovation and Skills Group,Corporate Travel Management (North) Ltd,99891997,98.5,T&S UK - Public Transport
BEIS,UKRI - BBSRC,08/02/2023,T&S UK - Public Transport,Innovation and Skills Group,Corporate Travel Management (North) Ltd,99891997,0.25,T&S UK - Public Transport
BEIS,UKRI - BBSRC,08/02/2023,T&S UK - Public Transport,Innovation and Skills Group,Corporate Travel Management (North) Ltd,99891997,182,T&S UK - Public Transport
BEIS,UKRI - BBSRC,08/02/2023,T&S UK - Public Transport,Innovation and Skills Group,Corporate Travel Management (North) Ltd,99891997,1,T&S UK - Public Transport
BEIS,UKRI - BBSRC,08/02/2023,T&S UK - Public Transport,Innovation and Skills Group,Corporate Travel Management (North) Ltd,99891997,67.5,T&S UK - Public Transport
BEIS,UKRI - BBSRC,08/02/2023,T&S UK - Public Transport,Innovation and Skills Group,Corporate Travel Management (North) Ltd,99891997,18.15,T&S UK - Public Transport
BEIS,UKRI - BBSRC,08/02/2023,T&S UK - Public Transport,Innovation and Skills Group,Corporate Travel Management (North) Ltd,99891997,28.8,T&S UK - Public Transport
BEIS,UKRI - BBSRC,08/02/2023,T&S UK - Public Transport,Innovation and Skills Group,Corporate Travel Management (North) Ltd,99891997,0.25,T&S UK - Public Transport
BEIS,UKRI - BBSRC,08/02/2023,T&S UK - Public Transport,Innovation and Skills Group,Corporate Travel Management (North) Ltd,99891997,64.85,T&S UK - Public Transport
BEIS,UKRI - BBSRC,08/02/2023,T&S UK - Public Transport,Innovation and Skills Group,Corporate Travel Management (North) Ltd,99891997,5,T&S UK - Public Transport
BEIS,UKRI - BBSRC,08/02/2023,T&S UK - Public Transport,Innovation and Skills Group,Corporate Travel Management (North) Ltd,99891997,-28.5,T&S UK - Public Transport
BEIS,UKRI - BBSRC,08/02/2023,T&S UK - Public Transport,Innovation and Skills Group,Corporate Travel Management (North) Ltd,99891997,0.25,T&S UK - Public Transport
BEIS,UKRI - BBSRC,08/02/2023,T&S UK - Public Transport,Innovation and Skills Group,Corporate Travel Management (North) Ltd,99891997,145.8,T&S UK - Public Transport
BEIS,UKRI - BBSRC,08/02/2023,T&S UK - Public Transport,Science Group,Corporate Travel Management (North) Ltd,99891997,0.25,T&S UK - Public Transport
BEIS,UKRI - BBSRC,08/02/2023,T&S UK - Public Transport,Science Group,Corporate Travel Management (North) Ltd,99891997,58.7,T&S UK - Public Transport
BEIS,UKRI - BBSRC,08/02/2023,T&S UK - Public Transport,Science Group,Corporate Travel Management (North) Ltd,99891997,0.25,T&S UK - Public Transport
BEIS,UKRI - BBSRC,08/02/2023,T&S UK - Public Transport,Science Group,Corporate Travel Management (North) Ltd,99891997,158.7,T&S UK - Public Transport
BEIS,UKRI - BBSRC,08/02/2023,T&S UK - Public Transport,Science Group,Corporate Travel Management (North) Ltd,99891997,10,T&S UK - Public Transport
BEIS,UKRI - BBSRC,08/02/2023,T&S UK - Public Transport,Science Group,Corporate Travel Management (North) Ltd,99891997,-261,T&S UK - Public Transport
BEIS,UKRI - BBSRC,08/02/2023,T&S UK - Public Transport,Science Group,Corporate Travel Management (North) Ltd,99891997,0.25,T&S UK - Public Transport
BEIS,UKRI - BBSRC,08/02/2023,T&S UK - Public Transport,Science Group,Corporate Travel Management (North) Ltd,99891997,52.2,T&S UK - Public Transport
BEIS,UKRI - BBSRC,08/02/2023,T&S UK - Public Transport,Science Group,Corporate Travel Management (North) Ltd,99891997,0.25,T&S UK - Public Transport
BEIS,UKRI - BBSRC,08/02/2023,T&S UK - Public Transport,Science Group,Corporate Travel Management (North) Ltd,99891997,59.7,T&S UK - Public Transport
BEIS,UKRI - BBSRC,08/02/2023,T&S UK - Public Transport,Science Group,Corporate Travel Management (North) Ltd,99891997,0.25,T&S UK - Public Transport
BEIS,UKRI - BBSRC,08/02/2023,T&S UK - Public Transport,Science Group,Corporate Travel Management (North) Ltd,99891997,105.8,T&S UK - Public Transport
BEIS,UKRI - BBSRC,08/02/2023,T&S UK - Public Transport,Science Group,Corporate Travel Management (North) Ltd,99891997,0.25,T&S UK - Public Transport
BEIS,UKRI - BBSRC,08/02/2023,T&S UK - Public Transport,Science Group,Corporate Travel Management (North) Ltd,99891997,54.5,T&S UK - Public Transport
BEIS,UKRI - BBSRC,08/02/2023,T&S UK - Public Transport,Science Group,Corporate Travel Management (North) Ltd,99891997,0.25,T&S UK - Public Transport
BEIS,UKRI - BBSRC,08/02/2023,T&S UK - Public Transport,Science Group,Corporate Travel Management (North) Ltd,99891997,64.3,T&S UK - Public Transport
BEIS,UKRI - BBSRC,08/02/2023,T&S UK - Public Transport,Science Group,Corporate Travel Management (North) Ltd,99891997,0.25,T&S UK - Public Transport
BEIS,UKRI - BBSRC,08/02/2023,T&S UK - Public Transport,Science Group,Corporate Travel Management (North) Ltd,99891997,54.5,T&S UK - Public Transport
BEIS,UKRI - BBSRC,08/02/2023,T&S UK - Public Transport,Science Group,Corporate Travel Management (North) Ltd,99891997,0.25,T&S UK - Public Transport
BEIS,UKRI - BBSRC,08/02/2023,T&S UK - Public Transport,Science Group,Corporate Travel Management (North) Ltd,99891997,69.8,T&S UK - Public Transport
BEIS,UKRI - BBSRC,08/02/2023,T&S UK - Public Transport,Science Group,Corporate Travel Management (North) Ltd,99891997,0.25,T&S UK - Public Transport
BEIS,UKRI - BBSRC,08/02/2023,T&S UK - Public Transport,Science Group,Corporate Travel Management (North) Ltd,99891997,193.8,T&S UK - Public Transport
BEIS,UKRI - BBSRC,08/02/2023,T&S UK - Public Transport,Science Group,Corporate Travel Management (North) Ltd,99891997,-180.55,T&S UK - Public Transport
BEIS,UKRI - BBSRC,08/02/2023,T&S UK - Public Transport,Science Group,Corporate Travel Management (North) Ltd,99891997,0.25,T&S UK - Public Transport
BEIS,UKRI - BBSRC,08/02/2023,T&S UK - Public Transport,Science Group,Corporate Travel Management (North) Ltd,99891997,129.7,T&S UK - Public Transport
BEIS,UKRI - BBSRC,08/02/2023,T&S UK - Public Transport,Science Group,Corporate Travel Management (North) Ltd,99891997,0.25,T&S UK - Public Transport
BEIS,UKRI - BBSRC,08/02/2023,T&S UK - Public Transport,Science Group,Corporate Travel Management (North) Ltd,99891997,87.7,T&S UK - Public Transport
BEIS,UKRI - BBSRC,08/02/2023,T&S UK - Public Transport,Science Group,Corporate Travel Management (North) Ltd,99891997,0.25,T&S UK - Public Transport
BEIS,UKRI - BBSRC,08/02/2023,T&S UK - Public Transport,Science Group,Corporate Travel Management (North) Ltd,99891997,313.7,T&S UK - Public Transport
BEIS,UKRI - BBSRC,08/02/2023,T&S UK - Public Transport,Science Group,Corporate Travel Management (North) Ltd,99891997,0.25,T&S UK - Public Transport
BEIS,UKRI - BBSRC,08/02/2023,T&S UK - Public Transport,Science Group,Corporate Travel Management (North) Ltd,99891997,26.2,T&S UK - Public Transport
BEIS,UKRI - BBSRC,08/02/2023,T&S UK - Public Transport,Science Group,Corporate Travel Management (North) Ltd,99891997,0.25,T&S UK - Public Transport
BEIS,UKRI - BBSRC,08/02/2023,T&S UK - Public Transport,Science Group,Corporate Travel Management (North) Ltd,99891997,337.1,T&S UK - Public Transport
BEIS,UKRI - BBSRC,08/02/2023,T&S UK - Public Transport,Science Group,Corporate Travel Management (North) Ltd,99891997,0.25,T&S UK - Public Transport
BEIS,UKRI - BBSRC,08/02/2023,T&S UK - Public Transport,Science Group,Corporate Travel Management (North) Ltd,99891997,266.4,T&S UK - Public Transport
BEIS,UKRI - BBSRC,08/02/2023,T&S UK - Public Transport,Science Group,Corporate Travel Management (North) Ltd,99891997,0.25,T&S UK - Public Transport
BEIS,UKRI - BBSRC,08/02/2023,T&S UK - Public Transport,Science Group,Corporate Travel Management (North) Ltd,99891997,119,T&S UK - Public Transport
BEIS,UKRI - BBSRC,08/02/2023,T&S UK - Public Transport,Science Group,Corporate Travel Management (North) Ltd,99891997,0.25,T&S UK - Public Transport
BEIS,UKRI - BBSRC,08/02/2023,T&S UK - Public Transport,Science Group,Corporate Travel Management (North) Ltd,99891997,121.7,T&S UK - Public Transport
BEIS,UKRI - BBSRC,08/02/2023,T&S UK - Public Transport,Science Group,Corporate Travel Management (North) Ltd,99891997,0.25,T&S UK - Public Transport
BEIS,UKRI - BBSRC,08/02/2023,T&S UK - Public Transport,Science Group,Corporate Travel Management (North) Ltd,99891997,20.8,T&S UK - Public Transport
BEIS,UKRI - BBSRC,08/02/2023,T&S UK - Public Transport,Science Group,Corporate Travel Management (North) Ltd,99891997,0.25,T&S UK - Public Transport
BEIS,UKRI - BBSRC,08/02/2023,T&S UK - Public Transport,Science Group,Corporate Travel Management (North) Ltd,99891997,244.8,T&S UK - Public Transport
BEIS,UKRI - BBSRC,08/02/2023,T&S UK - Public Transport,Science Group,Corporate Travel Management (North) Ltd,99891997,0.25,T&S UK - Public Transport
BEIS,UKRI - BBSRC,08/02/2023,T&S UK - Public Transport,Science Group,Corporate Travel Management (North) Ltd,99891997,93.3,T&S UK - Public Transport
BEIS,UKRI - BBSRC,08/02/2023,T&S UK - Public Transport,Science Group,Corporate Travel Management (North) Ltd,99891997,0.25,T&S UK - Public Transport
BEIS,UKRI - BBSRC,08/02/2023,T&S UK - Public Transport,Science Group,Corporate Travel Management (North) Ltd,99891997,96.9,T&S UK - Public Transport
BEIS,UKRI - BBSRC,08/02/2023,T&S UK - Public Transport,Science Group,Corporate Travel Management (North) Ltd,99891997,0.5,T&S UK - Public Transport
BEIS,UKRI - BBSRC,08/02/2023,T&S UK - Public Transport,Science Group,Corporate Travel Management (North) Ltd,99891997,489.6,T&S UK - Public Transport
BEIS,UKRI - BBSRC,08/02/2023,T&S UK - Vehicle Hire,CE - CPS,Corporate Travel Management (North) Ltd,99891997,5,T&S UK - Vehicle Hire
BEIS,UKRI - BBSRC,08/02/2023,T&S UK - Vehicle Hire,CE - CPS,Corporate Travel Management (North) Ltd,99891997,23.08,T&S UK - Vehicle Hire
BEIS,UKRI - BBSRC,08/02/2023,T&S UK - Vehicle Hire,CE - CPS,Corporate Travel Management (North) Ltd,99891997,21.73,T&S UK - Vehicle Hire
BEIS,UKRI - BBSRC,08/02/2023,T&S UK - Vehicle Hire,CE - CPS,Corporate Travel Management (North) Ltd,99891997,1,T&S UK - Vehicle Hire
BEIS,UKRI - BBSRC,08/02/2023,T&S UK - Vehicle Hire,CE - Chief Executive,Corporate Travel Management (North) Ltd,99891997,5,T&S UK - Vehicle Hire
BEIS,UKRI - BBSRC,08/02/2023,T&S UK - Vehicle Hire,CE - Chief Executive,Corporate Travel Management (North) Ltd,99891997,16.6,T&S UK - Vehicle Hire
BEIS,UKRI - BBSRC,08/02/2023,T&S UK - Vehicle Hire,CE - Chief Executive,Corporate Travel Management (North) Ltd,99891997,19.76,T&S UK - Vehicle Hire
BEIS,UKRI - BBSRC,08/02/2023,T&S UK - Vehicle Hire,CE - Chief Executive,Corporate Travel Management (North) Ltd,99891997,2.5,T&S UK - Vehicle Hire
BEIS,UKRI - BBSRC,08/02/2023,T&S UK - Vehicle Hire,CE - Chief Executive,Corporate Travel Management (North) Ltd,99891997,10.76,T&S UK - Vehicle Hire
BEIS,UKRI - BBSRC,08/02/2023,T&S UK - Vehicle Hire,CE - Chief Executive,Corporate Travel Management (North) Ltd,99891997,1.5,T&S UK - Vehicle Hire
BEIS,UKRI - BBSRC,08/02/2023,T&S UK - Vehicle Hire,Innovation and Skills Group,Corporate Travel Management (North) Ltd,99891997,42.24,T&S UK - Vehicle Hire
BEIS,UKRI - BBSRC,08/02/2023,T&S UK - Vehicle Hire,Innovation and Skills Group,Corporate Travel Management (North) Ltd,99891997,2.5,T&S UK - Vehicle Hire
BEIS,UKRI - BBSRC,08/02/2023,T&S UK - Vehicle Hire,Innovation and Skills Group,Corporate Travel Management (North) Ltd,99891997,0.5,T&S UK - Vehicle Hire
BEIS,UKRI - BBSRC,08/02/2023,Research Institutes - Capital Grants: Minor Works,World Class Labs,The Pirbright Institute,99892636,177237.3,Research Institutes - Capital Grants: Minor Works
BEIS,UKRI - BBSRC,09/02/2023,T&S UK - Subsistence,Science Group,Unspecified,99892356,17.7,T&S UK - Subsistence
BEIS,UKRI - BBSRC,09/02/2023,Research Institutes - Capital Grants: Minor Works,World Class Labs,Babraham Institute,99893229,71985.72,Research Institutes - Capital Grants: Minor Works
BEIS,UKRI - BBSRC,09/02/2023,T&S UK - Public Transport,CE - IRU,University of Exeter,99893851,90.65,T&S UK - Public Transport
BEIS,UKRI - BBSRC,10/02/2023,Conferences & Seminars,Science Group,Calder Conference Ltd,99871592,1218,Conferences & Seminars
BEIS,UKRI - BBSRC,10/02/2023,Unspecified,Innovation and Skills Group,King's College London,99894115,3840,Legal & Professional Services
BEIS,UKRI - BBSRC,10/02/2023,T&S UK - Other Charges,Innovation and Skills Group CDSU,Unspecified,99894170,462,T&S UK - Other Charges
BEIS,UKRI - BBSRC,10/02/2023,T&S UK - Other Charges,Science Group – Admin Function,Unspecified,99894171,96.99,T&S UK - Other Charges
BEIS,UKRI - BBSRC,10/02/2023,T&S UK - Public Transport,Science Group – Admin Function,Unspecified,99894171,31.14,T&S UK - Public Transport
BEIS,UKRI - BBSRC,10/02/2023,T&S UK - Public Transport,Science Group – Admin Function,Unspecified,99894171,40.02,T&S UK - Public Transport
BEIS,UKRI - BBSRC,10/02/2023,T&S UK - Subsistence,Science Group – Admin Function,Unspecified,99894171,74.91,T&S UK - Subsistence
BEIS,UKRI - BBSRC,10/02/2023,T&S UK - Subsistence,Science Group – Admin Function,Unspecified,99894171,182,T&S UK - Subsistence
BEIS,UKRI - BBSRC,10/02/2023,T&S UK - Subsistence,Science Group – Admin Function,Unspecified,99894171,25.27,T&S UK - Subsistence
BEIS,UKRI - BBSRC,10/02/2023,Research Grant Expenditure,SPF W1 EMBL EBI,EMBL (European Molecular Biology Laboratory),99894694,3325.65,Research Grant Expenditure
BEIS,UKRI - BBSRC,10/02/2023,Research Grant Expenditure,SPF W1 EMBL EBI,EMBL (European Molecular Biology Laboratory),99894779,72521.46,Research Grant Expenditure
BEIS,UKRI - BBSRC,13/02/2023,Research Grant Expenditure,SPF W1 EMBL EBI,EMBL (European Molecular Biology Laboratory),99894200,12996.47,Research Grant Expenditure
BEIS,UKRI - BBSRC,13/02/2023,Research Institutes - Capital Grants: Minor Works,World Class Labs,The Pirbright Institute,99894773,28837.83,Research Institutes - Capital Grants: Minor Works
BEIS,UKRI - BBSRC,13/02/2023,Unspecified,Innovation and Skills Group,Association of British Healthtech Industries Ltd ABHI,99894932,2175,Legal & Professional Services
BEIS,UKRI - BBSRC,13/02/2023,Research Institutes - Capital Grants: Minor Works,World Class Labs,Rothamsted Research Ltd,99895082,16637.21,Research Institutes - Capital Grants: Minor Works
BEIS,UKRI - BBSRC,13/02/2023,Non-staff travel and subsistance,CE - Chief Executive,Unspecified,99895435,60.75,Non-staff travel and subsistance
BEIS,UKRI - BBSRC,13/02/2023,Unspecified,OpEx SPF W2 Food Systems,University of Southampton,99895571,59250,Secondments
BEIS,UKRI - BBSRC,14/02/2023,Health & Safety (inc. Medicals & Opticians),CE - Chief Executive,Unspecified,99876371,16.99,Health & Safety (inc. Medicals & Opticians)
BEIS,UKRI - BBSRC,14/02/2023,Unspecified,Balance Sheet,HM Revenue & Customs,99893058,75413.81,PAYE Payable Salaries
BEIS,UKRI - BBSRC,14/02/2023,Unspecified,Balance Sheet,HM Revenue & Customs,99893059,6268,Student Loans
BEIS,UKRI - BBSRC,14/02/2023,Unspecified,Balance Sheet,HM Revenue & Customs,99893060,99217.58,NI Payable Salaries
BEIS,UKRI - BBSRC,14/02/2023,Unspecified,FG - Accounts & Business Planning,HM Revenue & Customs,99893061,2674,Apprenticeship Levy
BEIS,UKRI - BBSRC,14/02/2023,Unspecified,Balance Sheet,HM Revenue & Customs,99893151,2363.01,PAYE Payable Salaries
BEIS,UKRI - BBSRC,14/02/2023,Unspecified,FG - Accounts & Business Planning,HM Revenue & Customs,99893152,34,Apprenticeship Levy
BEIS,UKRI - BBSRC,14/02/2023,Research Institutes - Capital Grants: Minor Works,Rothamsted Research,Rothamsted Research Ltd,99895711,7200.21,Research Institutes - Capital Grants: Minor Works
BEIS,UKRI - BBSRC,14/02/2023,Non-staff travel and subsistance,Science Group – Admin Function,Unspecified,99895738,241.99,Non-staff travel and subsistance
BEIS,UKRI - BBSRC,14/02/2023,T&S UK - Other Charges,Science Group,Unspecified,99896551,109.99,T&S UK - Other Charges
BEIS,UKRI - BBSRC,15/02/2023,Unspecified,Balance Sheet,Unspecified,99891956,388.26,Ees Pension Deductions - MRC
BEIS,UKRI - BBSRC,15/02/2023,Unspecified,Balance Sheet,Unspecified,99891957,955.72,Ers Pension Deductions - MRC
BEIS,UKRI - BBSRC,15/02/2023,Union Deductions,Balance Sheet,PCS Union,99893062,46.38,Union Deductions
BEIS,UKRI - BBSRC,15/02/2023,Voluntary Deductions,Balance Sheet,Swindon Office Sports and Social Club,99893063,42,Voluntary Deductions
BEIS,UKRI - BBSRC,15/02/2023,Unspecified,Balance Sheet,Unspecified,99893064,20364.88,Ees Pension Deductions - JSS
BEIS,UKRI - BBSRC,15/02/2023,Unspecified,Balance Sheet,Unspecified,99893065,83591.35,Ers Pension Deductions - JSS
BEIS,UKRI - BBSRC,15/02/2023,Unspecified,Balance Sheet,Scottish Widows Life Assurance,99893066,447.16,Partnership Pension Deductions
BEIS,UKRI - BBSRC,15/02/2023,Unspecified,Balance Sheet,Scottish Widows Life Assurance,99893067,10,Other Pension Deductions
BEIS,UKRI - BBSRC,15/02/2023,Unspecified,Balance Sheet,Cabinet Office RM Shared Services,99893068,13.3,Ers Pension Deductions - JSS
BEIS,UKRI - BBSRC,15/02/2023,Unspecified,Balance Sheet,Cabinet Office RM Shared Services,99893069,12741.25,Ees Pension Deductions - MyCSP
BEIS,UKRI - BBSRC,15/02/2023,Unspecified,Balance Sheet,Cabinet Office RM Shared Services,99893070,63013.14,Ers Pension Deductions - MyCSP
BEIS,UKRI - BBSRC,15/02/2023,Nursery Deductions,Balance Sheet,UKRI - Engineering & Physical Sciences Research Council,99893071,932,Nursery Deductions
BEIS,UKRI - BBSRC,15/02/2023,Unspecified,CE - IRU,Unspecified,99894426,8373.17,Legal & Professional Services
BEIS,UKRI - BBSRC,15/02/2023,Unspecified,CE - IRU,Unspecified,99894428,3834.28,Legal & Professional Services
BEIS,UKRI - BBSRC,15/02/2023,Unspecified,FG - Estates,Womble Bond Dickinson LLP,99896991,886.2,Legal & Professional Services
BEIS,UKRI - BBSRC,15/02/2023,International Subscriptions,International,Wheat Initiative,99896994,8857.79,International Subscriptions
BEIS,UKRI - BBSRC,15/02/2023,T&S UK - Public Transport,Science Group,Unspecified,99896999,23,T&S UK - Public Transport
BEIS,UKRI - BBSRC,15/02/2023,T&S UK - Subsistence,Science Group,Unspecified,99896999,3.1,T&S UK - Subsistence
BEIS,UKRI - BBSRC,15/02/2023,T&S UK - Subsistence,Science Group,Unspecified,99896999,4.29,T&S UK - Subsistence
BEIS,UKRI - BBSRC,15/02/2023,Research Institutes - Capital Grants: Minor Works,Rothamsted Research,Rothamsted Research Ltd,99897500,811.97,Research Institutes - Capital Grants: Minor Works
BEIS,UKRI - BBSRC,15/02/2023,Research Institutes - Capital Grants: Minor Works,World Class Labs,John Innes Centre,99897519,2346.15,Research Institutes - Capital Grants: Minor Works
BEIS,UKRI - BBSRC,16/02/2023,Research Grant Expenditure,SPF W1 EMBL EBI,EMBL (European Molecular Biology Laboratory),99894203,163744.82,Research Grant Expenditure
BEIS,UKRI - BBSRC,16/02/2023,Research Grant Expenditure,SPF W1 EMBL EBI,EMBL (European Molecular Biology Laboratory),99894206,65674.94,Research Grant Expenditure
BEIS,UKRI - BBSRC,16/02/2023,Research Institutes - Capital Grants: Minor Works,Mid-Range Equipment,Rothamsted Research Ltd,99895706,38112.26,Research Institutes - Capital Grants: Minor Works
BEIS,UKRI - BBSRC,16/02/2023,Research Grant Expenditure,Research: Strategic,Rothamsted Research Ltd,99895708,1605.6,Research Grant Expenditure
BEIS,UKRI - BBSRC,16/02/2023,Research Grant Expenditure,SPF W1 EMBL EBI,EMBL (European Molecular Biology Laboratory),99896314,65674.29,Research Grant Expenditure
BEIS,UKRI - BBSRC,16/02/2023,Research Institutes - Capital Grants: Minor Works,Mid-Range Equipment,John Innes Centre,99897240,164991.6,Research Institutes - Capital Grants: Minor Works
BEIS,UKRI - BBSRC,16/02/2023,Research Institutes - Capital Grants: Minor Works,Mid-Range Equipment,John Innes Centre,99897277,89683.07,Research Institutes - Capital Grants: Minor Works
BEIS,UKRI - BBSRC,16/02/2023,Research Institutes - Capital Grants: Minor Works,World Class Labs,Rothamsted Research Ltd,99897567,3718.9,Research Institutes - Capital Grants: Minor Works
BEIS,UKRI - BBSRC,16/02/2023,T&S UK - Vehicle Hire,CIMG - Director,Enterprise Rent-A-Car UK Ltd,99897873,76.51,T&S UK - Vehicle Hire
BEIS,UKRI - BBSRC,16/02/2023,T&S UK - Vehicle Hire,CIMG - Director,Enterprise Rent-A-Car UK Ltd,99897873,15.3,T&S UK - Vehicle Hire
BEIS,UKRI - BBSRC,16/02/2023,T&S UK - Vehicle Hire,FG - Estates,Enterprise Rent-A-Car UK Ltd,99897873,51.05,T&S UK - Vehicle Hire
BEIS,UKRI - BBSRC,16/02/2023,T&S UK - Vehicle Hire,FG - Estates,Enterprise Rent-A-Car UK Ltd,99897873,10.21,T&S UK - Vehicle Hire
BEIS,UKRI - BBSRC,16/02/2023,T&S UK - Public Transport,Innovation and Skills Group,Unspecified,99898396,15.9,T&S UK - Public Transport
BEIS,UKRI - BBSRC,16/02/2023,T&S UK - Subsistence,Innovation and Skills Group,Unspecified,99898396,4.95,T&S UK - Subsistence
BEIS,UKRI - BBSRC,16/02/2023,T&S UK - Subsistence,Innovation and Skills Group,Unspecified,99898396,13.55,T&S UK - Subsistence
BEIS,UKRI - BBSRC,16/02/2023,T&S UK - Subsistence,Science Group,Unspecified,99898397,4.75,T&S UK - Subsistence
BEIS,UKRI - BBSRC,16/02/2023,T&S UK - Subsistence,Science Group,Unspecified,99898397,10.07,T&S UK - Subsistence
BEIS,UKRI - BBSRC,17/02/2023,Conferences & Seminars,CIMG - Director,Aberystwyth University,99859766,4000,Conferences & Seminars
BEIS,UKRI - BBSRC,17/02/2023,Conferences & Seminars,Innovation and Skills Group,Calder Conference Ltd,99871595,2913.6,Conferences & Seminars
BEIS,UKRI - BBSRC,17/02/2023,Conferences & Seminars,Science Group,Calder Conference Ltd,99881276,3946.01,Conferences & Seminars
BEIS,UKRI - BBSRC,17/02/2023,Research Grant Expenditure,SPF W2 Food Systems,University of Liverpool,99897041,2139.23,Research Grant Expenditure
BEIS,UKRI - BBSRC,17/02/2023,Non-staff travel and subsistance,Science Group – Admin Function,Unspecified,99898262,74.69,Non-staff travel and subsistance
BEIS,UKRI - BBSRC,17/02/2023,Non-staff travel and subsistance,Science Group – Admin Function,Unspecified,99898263,42.4,Non-staff travel and subsistance
BEIS,UKRI - BBSRC,17/02/2023,Unspecified,Science Group – Admin Function,Unspecified,99898264,340,Council & Committee Honoraria
BEIS,UKRI - BBSRC,17/02/2023,Non-staff travel and subsistance,Science Group – Admin Function,Unspecified,99898265,140.9,Non-staff travel and subsistance
BEIS,UKRI - BBSRC,17/02/2023,Unspecified,Science Group – Admin Function,Unspecified,99898266,510,Council & Committee Honoraria
BEIS,UKRI - BBSRC,17/02/2023,Unspecified,Science Group - Delivery Function,Unspecified,99898267,460,Council & Committee Honoraria
BEIS,UKRI - BBSRC,17/02/2023,Unspecified,Science Group - Delivery Function,Unspecified,99898268,340,Council & Committee Honoraria
BEIS,UKRI - BBSRC,17/02/2023,Non-staff travel and subsistance,Science Group – Admin Function,Unspecified,99898269,47.4,Non-staff travel and subsistance
BEIS,UKRI - BBSRC,17/02/2023,Unspecified,Science Group – Admin Function,Unspecified,99898270,170,Council & Committee Honoraria
BEIS,UKRI - BBSRC,17/02/2023,Non-staff travel and subsistance,Science Group – Admin Function,Unspecified,99898271,120.36,Non-staff travel and subsistance
BEIS,UKRI - BBSRC,17/02/2023,Unspecified,Science Group - Delivery Function,Unspecified,99898272,170,Council & Committee Honoraria
BEIS,UKRI - BBSRC,17/02/2023,Non-staff travel and subsistance,Science Group – Admin Function,Unspecified,99898273,199.94,Non-staff travel and subsistance
BEIS,UKRI - BBSRC,17/02/2023,Unspecified,Science Group – Admin Function,Unspecified,99898274,170,Council & Committee Honoraria
BEIS,UKRI - BBSRC,17/02/2023,Unspecified,Science Group - Delivery Function,Unspecified,99898275,340,Council & Committee Honoraria
BEIS,UKRI - BBSRC,17/02/2023,Non-staff travel and subsistance,Science Group – Admin Function,Unspecified,99898276,124.13,Non-staff travel and subsistance
BEIS,UKRI - BBSRC,17/02/2023,Unspecified,Science Group – Admin Function,Unspecified,99898277,170,Council & Committee Honoraria
BEIS,UKRI - BBSRC,17/02/2023,Unspecified,Science Group - Delivery Function,Unspecified,99898278,340,Council & Committee Honoraria
BEIS,UKRI - BBSRC,17/02/2023,Conferences & Seminars,CIMG - Director,Aberystwyth University,99898367,-3562.81,Conferences & Seminars
BEIS,UKRI - BBSRC,17/02/2023,Health & Safety (inc. Medicals & Opticians),PDG - Director,Circle Health Group Ltd,99898504,360.5,Health & Safety (inc. Medicals & Opticians)
BEIS,UKRI - BBSRC,17/02/2023,T&S UK - Other Charges,Innovation and Skills Group CDSU,Unspecified,99899420,50,T&S UK - Other Charges
BEIS,UKRI - BBSRC,17/02/2023,T&S UK - Other Charges,Science Group,Unspecified,99899421,15.1,T&S UK - Other Charges
BEIS,UKRI - BBSRC,17/02/2023,T&S UK - Public Transport,Science Group,Unspecified,99899421,65,T&S UK - Public Transport
BEIS,UKRI - BBSRC,17/02/2023,T&S UK - Subsistence,Science Group,Unspecified,99899421,13,T&S UK - Subsistence
BEIS,UKRI - BBSRC,17/02/2023,T&S UK - Subsistence,Science Group,Unspecified,99899421,5.7,T&S UK - Subsistence
BEIS,UKRI - BBSRC,20/02/2023,Unspecified,OpEx SPF W2 Food Systems,University of Southampton,99895569,37540.37,Secondments
BEIS,UKRI - BBSRC,20/02/2023,Unspecified,Science Group – Admin Function,DEFRA,99897493,96065.57,Secondments
BEIS,UKRI - BBSRC,21/02/2023,Research Institutes - Capital Grants: Minor Works,World Class Labs,Rothamsted Research Ltd,99889492,3552,Research Institutes - Capital Grants: Minor Works
BEIS,UKRI - BBSRC,21/02/2023,Research Institutes - Competitive Strategic Grant,Research: Strategic National Capability,Babraham Institute,99889884,64751.75,Research Institutes - Competitive Strategic Grant
BEIS,UKRI - BBSRC,21/02/2023,Research Institutes - Competitive Strategic Grant,Research: Strategic National Capability,Quadram Institute Bioscience,99889897,41446.66,Research Institutes - Competitive Strategic Grant
BEIS,UKRI - BBSRC,21/02/2023,Institute Grant Expenditure,Research: Strategic National Capability,Rothamsted Research Ltd,99889929,53166.66,Institute Grant Expenditure
BEIS,UKRI - BBSRC,21/02/2023,Research Institutes - Competitive Strategic Grant,Research: Strategic National Capability,Rothamsted Research Ltd,99889930,96687.5,Research Institutes - Competitive Strategic Grant
BEIS,UKRI - BBSRC,21/02/2023,Research Institutes - Competitive Strategic Grant,Research: Strategic National Capability,Aberystwyth University,99890015,5595,Research Institutes - Competitive Strategic Grant
BEIS,UKRI - BBSRC,21/02/2023,Research Institutes - Competitive Strategic Grant,Research: Strategic National Capability,Aberystwyth University,99890024,86360.99,Research Institutes - Competitive Strategic Grant
BEIS,UKRI - BBSRC,21/02/2023,Research Institutes - Competitive Strategic Grant,Research: Strategic National Capability,Aberystwyth University,99890024,46980.67,Research Institutes - Competitive Strategic Grant
BEIS,UKRI - BBSRC,21/02/2023,Research Institutes - Competitive Strategic Grant,Research: Strategic National Capability,Aberystwyth University,99890024,2916.67,Research Institutes - Competitive Strategic Grant
BEIS,UKRI - BBSRC,21/02/2023,Research Institutes - Competitive Strategic Grant,Research: Strategic National Capability,John Innes Centre,99890947,21999.99,Research Institutes - Competitive Strategic Grant
BEIS,UKRI - BBSRC,21/02/2023,Research Institutes - Competitive Strategic Grant,Research: Strategic National Capability,John Innes Centre,99890947,511416.52,Research Institutes - Competitive Strategic Grant
BEIS,UKRI - BBSRC,21/02/2023,Research Institutes - Competitive Strategic Grant,Research: Strategic National Capability,John Innes Centre,99890947,65333.31,Research Institutes - Competitive Strategic Grant
BEIS,UKRI - BBSRC,21/02/2023,Research Institutes - Competitive Strategic Grant,Research: Strategic National Capability,John Innes Centre,99890947,501249.85,Research Institutes - Competitive Strategic Grant
BEIS,UKRI - BBSRC,21/02/2023,Research Institutes - Competitive Strategic Grant,Research: Strategic National Capability,John Innes Centre,99890947,7083.33,Research Institutes - Competitive Strategic Grant
BEIS,UKRI - BBSRC,21/02/2023,Research Institutes - Competitive Strategic Grant,Research: Strategic National Capability,John Innes Centre,99890950,187544.17,Research Institutes - Competitive Strategic Grant
BEIS,UKRI - BBSRC,21/02/2023,Research Institutes - Competitive Strategic Grant,Research: Strategic National Capability,Earlham Institute,99890958,31910,Research Institutes - Competitive Strategic Grant
BEIS,UKRI - BBSRC,21/02/2023,Research Institutes - Competitive Strategic Grant,Research: Strategic National Capability,Earlham Institute,99890959,163172.03,Research Institutes - Competitive Strategic Grant
BEIS,UKRI - BBSRC,21/02/2023,Research Institutes - Competitive Strategic Grant,Research: Strategic National Capability,Earlham Institute,99890959,81239.48,Research Institutes - Competitive Strategic Grant
BEIS,UKRI - BBSRC,21/02/2023,Research Institutes - Competitive Strategic Grant,Research: Strategic National Capability,Earlham Institute,99890959,42166.7,Research Institutes - Competitive Strategic Grant
BEIS,UKRI - BBSRC,21/02/2023,Research Institutes - Competitive Strategic Grant,Research: Strategic National Capability,Earlham Institute,99890959,33333.36,Research Institutes - Competitive Strategic Grant
BEIS,UKRI - BBSRC,21/02/2023,Research Institutes - Competitive Strategic Grant,Research: Strategic National Capability,Earlham Institute,99890959,121088.76,Research Institutes - Competitive Strategic Grant
BEIS,UKRI - BBSRC,21/02/2023,Research Institutes - Competitive Strategic Grant,Research: Strategic National Capability,Earlham Institute,99890959,2916.67,Research Institutes - Competitive Strategic Grant
BEIS,UKRI - BBSRC,21/02/2023,Research Institutes - Competitive Strategic Grant,Research: Strategic National Capability,Rothamsted Research Ltd,99890998,111253.33,Research Institutes - Competitive Strategic Grant
BEIS,UKRI - BBSRC,21/02/2023,Research Institutes - Competitive Strategic Grant,Research: Strategic National Capability,Rothamsted Research Ltd,99890998,418416.67,Research Institutes - Competitive Strategic Grant
BEIS,UKRI - BBSRC,21/02/2023,Research Institutes - Competitive Strategic Grant,Research: Strategic National Capability,Rothamsted Research Ltd,99890998,64666.67,Research Institutes - Competitive Strategic Grant
BEIS,UKRI - BBSRC,21/02/2023,Research Institutes - Competitive Strategic Grant,Research: Strategic National Capability,Rothamsted Research Ltd,99890998,197000,Research Institutes - Competitive Strategic Grant
BEIS,UKRI - BBSRC,21/02/2023,Research Institutes - Competitive Strategic Grant,Research: Strategic National Capability,Rothamsted Research Ltd,99890998,7083.33,Research Institutes - Competitive Strategic Grant
BEIS,UKRI - BBSRC,21/02/2023,Research Institutes - Competitive Strategic Grant,Research: Strategic National Capability,Babraham Institute,99891000,352459.91,Research Institutes - Competitive Strategic Grant
BEIS,UKRI - BBSRC,21/02/2023,Research Institutes - Competitive Strategic Grant,Research: Strategic National Capability,Babraham Institute,99891000,48750.01,Research Institutes - Competitive Strategic Grant
BEIS,UKRI - BBSRC,21/02/2023,Research Institutes - Competitive Strategic Grant,Research: Strategic National Capability,Babraham Institute,99891000,395666.75,Research Institutes - Competitive Strategic Grant
BEIS,UKRI - BBSRC,21/02/2023,Research Institutes - Competitive Strategic Grant,Research: Strategic National Capability,Babraham Institute,99891000,5833.33,Research Institutes - Competitive Strategic Grant
BEIS,UKRI - BBSRC,21/02/2023,Research Institutes - Competitive Strategic Grant,Research: Strategic National Capability,Quadram Institute Bioscience,99891002,23624.41,Research Institutes - Competitive Strategic Grant
BEIS,UKRI - BBSRC,21/02/2023,Research Institutes - Competitive Strategic Grant,Research: Strategic National Capability,Quadram Institute Bioscience,99891002,347920.37,Research Institutes - Competitive Strategic Grant
BEIS,UKRI - BBSRC,21/02/2023,Research Institutes - Competitive Strategic Grant,Research: Strategic National Capability,Quadram Institute Bioscience,99891002,46083.32,Research Institutes - Competitive Strategic Grant
BEIS,UKRI - BBSRC,21/02/2023,Research Institutes - Competitive Strategic Grant,Research: Strategic National Capability,Quadram Institute Bioscience,99891002,261521.57,Research Institutes - Competitive Strategic Grant
BEIS,UKRI - BBSRC,21/02/2023,Research Institutes - Competitive Strategic Grant,Research: Strategic National Capability,Quadram Institute Bioscience,99891002,5833.33,Research Institutes - Competitive Strategic Grant
BEIS,UKRI - BBSRC,21/02/2023,Research Institutes - Competitive Strategic Grant,Research: Strategic National Capability,The Pirbright Institute,99892623,204682.5,Research Institutes - Competitive Strategic Grant
BEIS,UKRI - BBSRC,21/02/2023,Research Institutes - Competitive Strategic Grant,Research: Strategic National Capability,The Pirbright Institute,99894796,817500.04,Research Institutes - Competitive Strategic Grant
BEIS,UKRI - BBSRC,21/02/2023,Research Institutes - Competitive Strategic Grant,Research: Strategic National Capability,The Pirbright Institute,99894796,231500.01,Research Institutes - Competitive Strategic Grant
BEIS,UKRI - BBSRC,21/02/2023,Research Institutes - Competitive Strategic Grant,Research: Strategic National Capability,The Pirbright Institute,99894796,33333.34,Research Institutes - Competitive Strategic Grant
BEIS,UKRI - BBSRC,21/02/2023,Research Institutes - Competitive Strategic Grant,Research: Strategic National Capability,The Pirbright Institute,99894796,201083.35,Research Institutes - Competitive Strategic Grant
BEIS,UKRI - BBSRC,21/02/2023,Research Institutes - Competitive Strategic Grant,Research: Strategic National Capability,The Pirbright Institute,99894796,4166.67,Research Institutes - Competitive Strategic Grant
BEIS,UKRI - BBSRC,21/02/2023,Research Institutes - Capital Grants: Minor Works,World Class Labs,Rothamsted Research Ltd,99896899,4596,Research Institutes - Capital Grants: Minor Works
BEIS,UKRI - BBSRC,21/02/2023,Research Institutes - Competitive Strategic Grant,Research: Strategic National Capability,University of Edinburgh,99897289,34735.33,Research Institutes - Competitive Strategic Grant
BEIS,UKRI - BBSRC,21/02/2023,Research Institutes - Capital Grants: Minor Works,IFR,Quadram Institute Bioscience,99897290,141801.17,Research Institutes - Capital Grants: Minor Works
BEIS,UKRI - BBSRC,21/02/2023,Research Institutes - Capital Grants: Minor Works,IFR,Quadram Institute Bioscience,99897555,25129.44,Research Institutes - Capital Grants: Minor Works
BEIS,UKRI - BBSRC,21/02/2023,Research Institutes - Capital Grants: Minor Works,World Class Labs,Rothamsted Research Ltd,99898319,5334,Research Institutes - Capital Grants: Minor Works
BEIS,UKRI - BBSRC,21/02/2023,Research Grant Expenditure,Impact & Knowledge Exchange,Anglia Innovation Partnership LLP,99899416,19371.43,Research Grant Expenditure
BEIS,UKRI - BBSRC,21/02/2023,Research Grant Expenditure,Impact & Knowledge Exchange,ABERYSTWYTH INNOVATION AND ENTERPRISE CAMPUS LTD (AIEC),99899417,35224.59,Research Grant Expenditure
BEIS,UKRI - BBSRC,21/02/2023,Research Institutes - Capital Grants: Minor Works,Mid-Range Equipment,Babraham Institute,99900673,4522.5,Research Institutes - Capital Grants: Minor Works
BEIS,UKRI - BBSRC,21/02/2023,Research Grant Expenditure,Research: Strategic,Babraham Institute,99900679,11971.99,Research Grant Expenditure
BEIS,UKRI - BBSRC,21/02/2023,Research Institutes - Capital Grants: Minor Works,World Class Labs,Babraham Institute,99900713,52438.07,Research Institutes - Capital Grants: Minor Works
BEIS,UKRI - BBSRC,21/02/2023,Conferences & Seminars,SPF W2 Food Systems,University of Sheffield,99901539,22561.5,Conferences & Seminars
BEIS,UKRI - BBSRC,22/02/2023,Unspecified,Science Group,International Human Frontier Science Programme Organisation (HFSPO),99886528,80669.23,Legal & Professional Services
BEIS,UKRI - BBSRC,22/02/2023,Conferences & Seminars,Innovation and Skills Group,British Society of Animal Science,99887173,2500,Conferences & Seminars
BEIS,UKRI - BBSRC,22/02/2023,Research Institutes - Capital Grants: Minor Works,World Class Labs,Rothamsted Research Ltd,99887388,835907.7,Research Institutes - Capital Grants: Minor Works
BEIS,UKRI - BBSRC,22/02/2023,Research Institutes - Capital Grants: Minor Works,World Class Labs,John Innes Centre,99890952,272294.7,Research Institutes - Capital Grants: Minor Works
BEIS,UKRI - BBSRC,22/02/2023,Research Institutes - Capital Grants: Minor Works,World Class Labs,John Innes Centre,99890955,872303.31,Research Institutes - Capital Grants: Minor Works
BEIS,UKRI - BBSRC,22/02/2023,Research Institutes - Capital Grants: Minor Works,World Class Labs,Rothamsted Research Ltd,99892388,293946,Research Institutes - Capital Grants: Minor Works
BEIS,UKRI - BBSRC,22/02/2023,Research Institutes - Capital Grants: Minor Works,World Class Labs,The Pirbright Institute,99892633,9720,Research Institutes - Capital Grants: Minor Works
BEIS,UKRI - BBSRC,22/02/2023,Research Institutes - Capital Grants: Minor Works,Mid-Range Equipment,The Pirbright Institute,99892793,3611064.76,Research Institutes - Capital Grants: Minor Works
BEIS,UKRI - BBSRC,22/02/2023,Research Institutes - Capital Grants: Minor Works,World Class Labs,Babraham Institute,99893225,236407.45,Research Institutes - Capital Grants: Minor Works
BEIS,UKRI - BBSRC,22/02/2023,Research Institutes - Capital Grants: Minor Works,World Class Labs,Babraham Institute,99894786,774999.6,Research Institutes - Capital Grants: Minor Works
BEIS,UKRI - BBSRC,22/02/2023,Research Institutes - Capital Grants: Minor Works,World Class Labs,Rothamsted Research Ltd,99895588,132884,Research Institutes - Capital Grants: Minor Works
BEIS,UKRI - BBSRC,22/02/2023,Research Institutes - Capital Grants: Minor Works,Rothamsted Research,Rothamsted Research Ltd,99895676,418434.88,Research Institutes - Capital Grants: Minor Works
BEIS,UKRI - BBSRC,22/02/2023,Research Institutes - Capital Grants: Minor Works,World Class Labs,Earlham Institute,99895680,1816928.23,Research Institutes - Capital Grants: Minor Works
BEIS,UKRI - BBSRC,22/02/2023,Research Institutes - Capital Grants: Minor Works,World Class Labs,Rothamsted Research Ltd,99895688,1075037.13,Research Institutes - Capital Grants: Minor Works
BEIS,UKRI - BBSRC,22/02/2023,Research Institutes - Capital Grants: Minor Works,World Class Labs,The Pirbright Institute,99896986,878830.7,Research Institutes - Capital Grants: Minor Works
BEIS,UKRI - BBSRC,22/02/2023,Unspecified,Science Group,HM Treasury Group,99897307,3567.96,Legal & Professional Services
BEIS,UKRI - BBSRC,22/02/2023,Research Institutes - Capital Grants: Minor Works,World Class Labs,John Innes Centre,99897520,52284.85,Research Institutes - Capital Grants: Minor Works
BEIS,UKRI - BBSRC,22/02/2023,Research Grant Expenditure,NPIF EMBL EBI,EMBL (European Molecular Biology Laboratory),99897808,473779.49,Research Grant Expenditure
BEIS,UKRI - BBSRC,22/02/2023,Research Institutes - Capital Grants: Minor Works,World Class Labs,Quadram Institute Bioscience,99897925,265266.6,Research Institutes - Capital Grants: Minor Works
BEIS,UKRI - BBSRC,22/02/2023,Research Institutes - Capital Grants: Minor Works,World Class Labs,John Innes Centre,99897929,661012.28,Research Institutes - Capital Grants: Minor Works
BEIS,UKRI - BBSRC,22/02/2023,Research Institutes - Capital Grants: Major Works,John Innes Centre (JIC) - WCL 2020 Uplift,John Innes Centre,99897931,441394.42,Research Institutes - Capital Grants: Major Works
BEIS,UKRI - BBSRC,22/02/2023,Fees (Including College Members),Science Group - Delivery Function,Unspecified,99898839,340.95,Fees (Including College Members)
BEIS,UKRI - BBSRC,22/02/2023,Research Institutes - Capital Grants: Minor Works,World Class Labs,Rothamsted Research Ltd,99898851,713723.86,Research Institutes - Capital Grants: Minor Works
BEIS,UKRI - BBSRC,22/02/2023,Research Institutes - Capital Grants: Minor Works,World Class Labs,John Innes Centre,99900403,935960.16,Research Institutes - Capital Grants: Minor Works
BEIS,UKRI - BBSRC,22/02/2023,Conferences & Seminars,Innovation and Skills Group,Calder Conference Ltd,99900760,1359.73,Conferences & Seminars
BEIS,UKRI - BBSRC,22/02/2023,Research Grant Expenditure,SPF W1 EMBL EBI,EMBL (European Molecular Biology Laboratory),99900790,2799414.06,Research Grant Expenditure
BEIS,UKRI - BBSRC,22/02/2023,Research Institutes - Capital Grants: Major Works,Funding Advanced Research Equipment - WCL 2020 Uplift,EMBL (European Molecular Biology Laboratory),99900790,1062420,Research Institutes - Capital Grants: Major Works
BEIS,UKRI - BBSRC,22/02/2023,Research Institutes - Capital Grants: Minor Works,World Class Labs,The Pirbright Institute,99901146,5044.14,Research Institutes - Capital Grants: Minor Works
BEIS,UKRI - BBSRC,22/02/2023,T&S UK - Vehicle Hire,FG - Estates,Enterprise Rent-A-Car UK Ltd,99901772,54.03,T&S UK - Vehicle Hire
BEIS,UKRI - BBSRC,22/02/2023,T&S UK - Vehicle Hire,FG - Estates,Enterprise Rent-A-Car UK Ltd,99901772,10.81,T&S UK - Vehicle Hire
BEIS,UKRI - BBSRC,22/02/2023,T&S Overseas - Accommodation,CE - IRU,Unspecified,99901981,104.73,T&S Overseas - Accommodation
BEIS,UKRI - BBSRC,22/02/2023,T&S Overseas - Subsistence,CE - IRU,Unspecified,99901981,9.97,T&S Overseas - Subsistence
BEIS,UKRI - BBSRC,23/02/2023,Conferences & Seminars,Science Group – Admin Function,Microbiology Society,99901202,1100,Conferences & Seminars
BEIS,UKRI - BBSRC,23/02/2023,Non-staff travel and subsistance,CE - Chief Executive,Unspecified,99902247,480.25,Non-staff travel and subsistance
BEIS,UKRI - BBSRC,23/02/2023,Non-staff travel and subsistance,CE - Chief Executive,Unspecified,99902248,58.95,Non-staff travel and subsistance
BEIS,UKRI - BBSRC,23/02/2023,Consultancy Services,CE - CPS,Warwick Economics and Development Ltd,99902300,26964,Consultancy Services
BEIS,UKRI - BBSRC,23/02/2023,T&S UK - Public Transport,Science Group,Unspecified,99902403,8.2,T&S UK - Public Transport
BEIS,UKRI - BBSRC,24/02/2023,Conferences & Seminars,Science Group,Calder Conference Ltd,99879874,12600,Conferences & Seminars
BEIS,UKRI - BBSRC,24/02/2023,Research Grant Expenditure,Research: Responsive,Wellcome Trust,99901564,64902.62,Research Grant Expenditure
BEIS,UKRI - BBSRC,24/02/2023,Conferences & Seminars,CIMG - Director,Unspecified,99902651,797.5,Conferences & Seminars
BEIS,UKRI - BBSRC,24/02/2023,Conferences & Seminars,CIMG - Director,Unspecified,99902652,392.31,Conferences & Seminars
BEIS,UKRI - BBSRC,24/02/2023,Non-staff travel and subsistance,Science Group - Delivery Function,Unspecified,99902653,329.45,Non-staff travel and subsistance
BEIS,UKRI - BBSRC,24/02/2023,Unspecified,Science Group - Delivery Function,Unspecified,99902654,340,Council & Committee Honoraria
BEIS,UKRI - BBSRC,24/02/2023,Non-staff travel and subsistance,Science Group – Admin Function,Unspecified,99902655,666.82,Non-staff travel and subsistance
BEIS,UKRI - BBSRC,24/02/2023,Non-staff travel and subsistance,Science Group – Admin Function,Unspecified,99902656,99.5,Non-staff travel and subsistance
BEIS,UKRI - BBSRC,24/02/2023,Unspecified,Science Group – Admin Function,Unspecified,99902657,340,Council & Committee Honoraria
BEIS,UKRI - BBSRC,24/02/2023,Unspecified,Science Group - Delivery Function,Unspecified,99902658,340,Council & Committee Honoraria
BEIS,UKRI - BBSRC,24/02/2023,Research Institutes - Capital Grants: Minor Works,World Class Labs,Rothamsted Research Ltd,99902698,15997.19,Research Institutes - Capital Grants: Minor Works
BEIS,UKRI - BBSRC,24/02/2023,T&S UK - Mileage,Science Group,Unspecified,99903790,89.1,T&S UK - Mileage
BEIS,UKRI - BBSRC,27/02/2023,T&S UK - Vehicle Hire,Science Group,Unspecified,99903319,40.6,T&S UK - Vehicle Hire
BEIS,UKRI - BBSRC,27/02/2023,T&S UK - Subsistence,Innovation and Skills Group,Unspecified,99903320,25,T&S UK - Subsistence
BEIS,UKRI - BBSRC,27/02/2023,T&S UK - Mileage,Innovation and Skills Group,Unspecified,99903321,45,T&S UK - Mileage
BEIS,UKRI - BBSRC,27/02/2023,T&S UK - Parking Tolls Congestion Charges,Innovation and Skills Group,Unspecified,99903321,12,T&S UK - Parking Tolls Congestion Charges
BEIS,UKRI - BBSRC,28/02/2023,Conferences & Seminars,Innovation and Skills Group,Calder Conference Ltd,99891857,23947,Conferences & Seminars
BEIS,UKRI - BBSRC,28/02/2023,Research Institutes - Capital Grants: Minor Works,World Class Labs,The Pirbright Institute,99894082,241445.24,Research Institutes - Capital Grants: Minor Works
BEIS,UKRI - BBSRC,28/02/2023,Research Institutes - Capital Grants: Minor Works,World Class Labs,The Pirbright Institute,99901231,-9720,Research Institutes - Capital Grants: Minor Works
BEIS,UKRI - UKRI,01/02/2023,Asset Clearing,UKRI - Digital Data and Technology Recharges,Logicalis Uk Ltd,99869716,207743.79,Asset Clearing
BEIS,UKRI - UKRI,01/02/2023,Asset Clearing,UKRI - Digital Data and Technology Recharges,Logicalis Uk Ltd,99870136,176368.56,Asset Clearing
BEIS,UKRI - UKRI,01/02/2023,Computer Hardware,UKRI - Digital Data and Technology Project Costs,GMW PHOTOGRAPHIC LTD,99870540,4056,Computer Hardware
BEIS,UKRI - UKRI,01/02/2023,Purchase of non capital equipment,UKRI - Strategic Finance Business Partners,RS Components,99872456,19.8,Purchase of non capital equipment
BEIS,UKRI - UKRI,01/02/2023,Cleaning & Sterilisation,UKRI - Strategic Finance Business Partners,VWR International Ltd,99872985,91.56,Cleaning & Sterilisation
BEIS,UKRI - UKRI,01/02/2023,Computer Hardware,UKRI - Digital Data and Technology Project Costs,Logicalis Uk Ltd,99874590,42685.94,Computer Hardware
BEIS,UKRI - UKRI,01/02/2023,Cleaning & Sterilisation,UKRI - Strategic Finance Business Partners,Scientific Laboratory Supplies Ltd (Sls),99874787,61.78,Cleaning & Sterilisation
BEIS,UKRI - UKRI,01/02/2023,Computer Software Licences,UKRI - Digital Data and Technology BAU Costs,Phoenix Software Ltd,99874841,215939.22,Computer Software Licences
BEIS,UKRI - UKRI,01/02/2023,Computer Software Licences,UKRI - Digital Data and Technology Recharges,Phoenix Software Ltd,99874841,113070.54,Computer Software Licences
BEIS,UKRI - UKRI,01/02/2023,Computer Software Licences,UKRI - Digital Data and Technology BAU Costs,Phoenix Software Ltd,99876324,318233.48,Computer Software Licences
BEIS,UKRI - UKRI,01/02/2023,Computer Software Licences,UKRI - Digital Data and Technology Recharges,Phoenix Software Ltd,99876324,166634.06,Computer Software Licences
BEIS,UKRI - UKRI,01/02/2023,Unspecified,UKRI - Digital Data and Technology Project Costs,Sanderson Government and Defence Ltd,99877496,10669.5,Contract Staff
BEIS,UKRI - UKRI,01/02/2023,Unspecified,UKRI - Digital Data and Technology Project Costs,Precision Resource Group Ltd T/A iO,99878831,3348,Contract Staff
BEIS,UKRI - UKRI,01/02/2023,Unspecified,UKRI - Digital Data and Technology Project Costs,Alexander Mann Solutions Ltd,99878915,8007.12,Contract Staff
BEIS,UKRI - UKRI,01/02/2023,Unspecified,UKRI - Security,LA International Computer Consultants Ltd,99879076,4131.18,Contract Staff
BEIS,UKRI - UKRI,01/02/2023,Unspecified,UKRI - PSU IT Costs/BAU,Alexander Mann Solutions Ltd,99879262,3941.95,Contract Staff
BEIS,UKRI - UKRI,01/02/2023,Computing Consumables,UKRI - Strategic Finance Business Partners,Banner Group Ltd,99881202,21,Computing Consumables
BEIS,UKRI - UKRI,01/02/2023,Computing Consumables,UKRI - Strategic Finance Business Partners,Banner Group Ltd,99881203,21,Computing Consumables
BEIS,UKRI - UKRI,01/02/2023,Advertising & Promotion,UKRI - Communications Business Partners,Unspecified,99884245,350,Advertising & Promotion
BEIS,UKRI - UKRI,01/02/2023,Unspecified,UKRI - PSU IT Costs/BAU,Alexander Mann Solutions Ltd,99884406,4927.44,Contract Staff
BEIS,UKRI - UKRI,01/02/2023,Unspecified,UKRI-SHARP,Alexander Mann Solutions Ltd,99884422,4095.36,Contract Staff
BEIS,UKRI - UKRI,01/02/2023,Unspecified,UKRI - Digital Data and Technology Project Costs,Alexander Mann Solutions Ltd,99884559,4003.56,Contract Staff
BEIS,UKRI - UKRI,01/02/2023,Unspecified,UKRI-SHARP,Alexander Mann Solutions Ltd,99884612,3387.66,Contract Staff
BEIS,UKRI - EPSRC,01/02/2023,Other Programme Costs,Energy Energy,The University of Manchester,99886784,2003.57,Other Programme Costs
BEIS,UKRI - EPSRC,01/02/2023,Other Programme Costs,NC ICT,The University of Manchester,99886784,618.75,Other Programme Costs
BEIS,UKRI - EPSRC,01/02/2023,Other Programme Costs,Physical Sciences and Materials,The University of Manchester,99886784,10810.41,Other Programme Costs
BEIS,UKRI - UKRI,01/02/2023,Unspecified,UKRI - Digital Data and Technology Project Costs,Precision Resource Group Ltd T/A iO,99887064,4185,Contract Staff
BEIS,UKRI - UKRI,01/02/2023,Unspecified,UKRI-SHARP,LA International Computer Consultants Ltd,99887357,1000.03,Contract Staff
BEIS,UKRI - UKRI,01/02/2023,Unspecified,UKRI - Strategic Finance Business Partners,Alexander Mann Solutions Ltd,99887655,567.05,Contract Staff
BEIS,UKRI - UKRI,01/02/2023,Unspecified,UKRI-SHARP,Alexander Mann Solutions Ltd,99887659,2463.72,Contract Staff
BEIS,UKRI - UKRI,01/02/2023,Unspecified,UKRI - Digital Data and Technology Project Costs,Alexander Mann Solutions Ltd,99887676,4003.56,Contract Staff
BEIS,UKRI - UKRI,01/02/2023,Unspecified,Reforming Our Business,Alexander Mann Solutions Ltd,99887704,6930.6,Contract Staff
BEIS,UKRI - UKRI,01/02/2023,Unspecified,UKRI - PSU IT Costs/BAU,Alexander Mann Solutions Ltd,99887750,4927.44,Contract Staff
BEIS,UKRI - UKRI,01/02/2023,Unspecified,UKRI-SHARP,Alexander Mann Solutions Ltd,99887767,3150.3,Agency Staff
BEIS,UKRI - UKRI,01/02/2023,Removal Services,UKRI - Estates Projects,Harrow Green Ltd T/A Restore Harrow Green,99887832,1859.76,Removal Services
BEIS,UKRI - UKRI,01/02/2023,Design services,UKRI - JRS,Artejano Limited,99887996,660,Design services
BEIS,UKRI - UKRI,01/02/2023,Staff Training,UKRI - Executive Group,Toni Clarkson Associates Ltd,99888116,350,Staff Training
BEIS,UKRI - UKRI,01/02/2023,Recruitment Costs,UKRI People and Organisation Development,Onefix Recruitment Ltd,99888407,474,Recruitment Costs
BEIS,UKRI - UKRI,01/02/2023,Recruitment Costs,UKRI People and Organisation Development,Onefix Recruitment Ltd,99888408,474,Recruitment Costs
BEIS,UKRI - UKRI,01/02/2023,Removal Services,UKRI - Estates Projects,Harrow Green Ltd T/A Restore Harrow Green,99888513,18597.6,Removal Services
BEIS,UKRI - UKRI,01/02/2023,Computer Software,UKRI - Digital Data and Technology BAU Costs,Phoenix Software Ltd,99888941,36.96,Computer Software
BEIS,UKRI - UKRI,01/02/2023,Computer Software,UKRI - Digital Data and Technology BAU Costs,Phoenix Software Ltd,99888943,7.08,Computer Software
BEIS,UKRI - EPSRC,01/02/2023,Other Programme Costs,Energy Energy,University of Surrey,99888966,26078.73,Other Programme Costs
BEIS,UKRI - EPSRC,01/02/2023,Other Programme Costs,Fusion CDTs,University of Surrey,99888966,24360,Other Programme Costs
BEIS,UKRI - EPSRC,01/02/2023,Other Programme Costs,ISCF Prosperity Partnerships,University of Surrey,99888966,4872,Other Programme Costs
BEIS,UKRI - EPSRC,01/02/2023,Other Programme Costs,Manufacturing Manufacturing,University of Surrey,99888966,126.87,Other Programme Costs
BEIS,UKRI - EPSRC,01/02/2023,Other Programme Costs,NC Engineering,University of Surrey,99888966,6049.4,Other Programme Costs
BEIS,UKRI - EPSRC,01/02/2023,Other Programme Costs,NC ICT,University of Surrey,99888966,20316.27,Other Programme Costs
BEIS,UKRI - EPSRC,01/02/2023,Other Programme Costs,Physical Sciences and Materials,University of Surrey,99888966,26280.97,Other Programme Costs
BEIS,UKRI - EPSRC,01/02/2023,Other Programme Costs,Quantum Technology Programme,University of Surrey,99888966,8120,Other Programme Costs
BEIS,UKRI - UKRI,01/02/2023,Consumables,UKRI - JRS,RS Components,99889183,29.2,Consumables
BEIS,UKRI - UKRI,01/02/2023,T&S UK - Other Charges,Global Mobility & Employee Diversity,Unspecified,99889255,14.85,T&S UK - Other Charges
BEIS,UKRI - UKRI,01/02/2023,T&S UK - Subsistence,Global Mobility & Employee Diversity,Unspecified,99889255,15,T&S UK - Subsistence
BEIS,UKRI - UKRI,01/02/2023,Health & Safety (inc. Medicals & Opticians),International Partnerships,Unspecified,99889256,40,Health & Safety (inc. Medicals & Opticians)
BEIS,UKRI - UKRI,01/02/2023,Conferences & Seminars,UKRI - BEIS ODA,Unspecified,99889258,450.3,Conferences & Seminars
BEIS,UKRI - UKRI,01/02/2023,T&S UK - Public Transport,UKRI People and Organisation Development,Unspecified,99889261,40.5,T&S UK - Public Transport
BEIS,UKRI - UKRI,01/02/2023,T&S UK - Subsistence,UKRI - Estates,Unspecified,99889262,10.98,T&S UK - Subsistence
BEIS,UKRI - UKRI,01/02/2023,Conferences & Seminars,UKRI - Management Reporting,Unspecified,99889263,190,Conferences & Seminars
BEIS,UKRI - UKRI,01/02/2023,T&S UK - Public Transport,UKRI - Management Reporting,Unspecified,99889263,13,T&S UK - Public Transport
BEIS,UKRI - UKRI,01/02/2023,T&S UK - Accommodation,UKRI - UKRO,Unspecified,99889264,946.14,T&S UK - Accommodation
BEIS,UKRI - UKRI,01/02/2023,UK - Professional Memberships & Subscriptions,UKRI - Strategic Finance Business Partners,Unspecified,99889265,329,UK - Professional Memberships & Subscriptions
BEIS,UKRI - UKRI,02/02/2023,Recruitment Costs,UKRI HR - CPO Office,PERRETT LAVER LTD,99422717,55200,Recruitment Costs
BEIS,UKRI - UKRI,02/02/2023,Recruitment Costs,UKRI HR - CPO Office,PERRETT LAVER LTD,99422717,21600,Recruitment Costs
BEIS,UKRI - UKRI,02/02/2023,Computer Software Licences,UKRI - Digital Data and Technology Recharges,Phoenix Software Ltd,99778984,602.09,Computer Software Licences
BEIS,UKRI - UKRI,02/02/2023,Hardware/Software Maintenance,UKRI - Digital Data and Technology Recharges,Dell Corporation Ltd,99790710,3312,Hardware/Software Maintenance
BEIS,UKRI - UKRI,02/02/2023,Computer Software Licences,UKRI - Digital Data and Technology Recharges,Phoenix Software Ltd,99848125,82.37,Computer Software Licences
BEIS,UKRI - UKRI,02/02/2023,Unspecified,UKRI - Digital Data and Technology Recharges,Unspecified,99850786,32814.9,Networking Maintenance
BEIS,UKRI - UKRI,02/02/2023,Computer Software Licences,UKRI - Digital Data and Technology BAU Costs,Bureau Van Dijk Electronic Publishing Ltd,99859441,174960,Computer Software Licences
BEIS,UKRI - UKRI,02/02/2023,Unspecified,UKRI - Digital Data and Technology Recharges,NCC Group Security Services Ltd,99867393,1140,Legal & Professional Services
BEIS,UKRI - UKRI,02/02/2023,Unspecified,UKRI - Digital Data and Technology Recharges,NCC Group Security Services Ltd,99867406,1140,Legal & Professional Services
BEIS,UKRI - UKRI,02/02/2023,Unspecified,UKRI-SHARP,LA International Computer Consultants Ltd,99871962,2693.4,Contract Staff
BEIS,UKRI - UKRI,02/02/2023,Unspecified,UKRI-SHARP,LA International Computer Consultants Ltd,99879102,2154.72,Contract Staff
BEIS,UKRI - EPSRC,02/02/2023,Fees (Including College Members),Business Improvement,The LifeBox Ltd,99880400,160,Fees (Including College Members)
BEIS,UKRI - EPSRC,02/02/2023,Fees (Including College Members),Business Improvement,The LifeBox Ltd,99880400,160,Fees (Including College Members)
BEIS,UKRI - EPSRC,02/02/2023,Fees (Including College Members),Business Improvement,The LifeBox Ltd,99880400,160,Fees (Including College Members)
BEIS,UKRI - EPSRC,02/02/2023,Non-staff travel and subsistance,Business Improvement,The LifeBox Ltd,99880400,517.34,Non-staff travel and subsistance
BEIS,UKRI - UKRI,02/02/2023,Research Grant Expenditure,Public Engagement Programmes,British Science Association,99880822,458278,Research Grant Expenditure
BEIS,UKRI - UKRI,02/02/2023,Staff Training,UKRI - Digital Data and Technology BAU Costs,Best Practice Consulting (UK) Ltd,99881342,330,Staff Training
BEIS,UKRI - UKRI,02/02/2023,Unspecified,UKRI People and Organisation Development,Alexander Mann Solutions Ltd,99883772,1575.12,Contract Staff
BEIS,UKRI - UKRI,02/02/2023,Unspecified,UKRI-SHARP,Alexander Mann Solutions Ltd,99884616,3387.66,Contract Staff
BEIS,UKRI - UKRI,02/02/2023,Asset Clearing,UKRI - Estates Projects,Overbury Plc,99885022,138434.4,Asset Clearing
BEIS,UKRI - UKRI,02/02/2023,Asset Clearing,UKRI - Estates Projects,Overbury Plc,99885022,343926.96,Asset Clearing
BEIS,UKRI - UKRI,02/02/2023,Staff Training,UKRI - Digital Data and Technology BAU Costs,Best Practice Consulting (UK) Ltd,99886410,7192.8,Staff Training
BEIS,UKRI - UKRI,02/02/2023,Computer Software,UKRI - Digital Data and Technology Recharges,Phoenix Software Ltd,99887344,61.78,Computer Software
BEIS,UKRI - UKRI,02/02/2023,Unspecified,UKRI People and Organisation Development,Alexander Mann Solutions Ltd,99887668,1575.12,Contract Staff
BEIS,UKRI - UKRI,02/02/2023,Unspecified,UKRI-SHARP,Alexander Mann Solutions Ltd,99887671,3387.66,Contract Staff
BEIS,UKRI - UKRI,02/02/2023,Other prepayments,UKRI - Overseas Office China,Equals Group Plc,99888331,20000,Other prepayments
BEIS,UKRI - UKRI,02/02/2023,Staff Training,UKRI - Communication and Engagement,The Chartered Institute of Public Relations (CIPR),99888337,420,Staff Training
BEIS,UKRI - UKRI,02/02/2023,Recruitment Costs,UKRI People and Organisation Development,Onefix Recruitment Ltd,99888411,834,Recruitment Costs
BEIS,UKRI - UKRI,02/02/2023,External Audit Fees,UKRI - JBOS,Statius Management Services Ltd,99889545,2877.05,External Audit Fees
BEIS,UKRI - UKRI,02/02/2023,Unspecified,UKRI-SHARP,LA International Computer Consultants Ltd,99889551,2693.4,Contract Staff
BEIS,UKRI - EPSRC,02/02/2023,Nursery Deductions,Balance Sheet,UKRI - Arts & Humanities Research Council,99889554,280,Nursery Deductions
BEIS,UKRI - EPSRC,02/02/2023,Non-staff travel and subsistance,Programme Delivery Maths,Unspecified,99889555,220.91,Non-staff travel and subsistance
BEIS,UKRI - EPSRC,02/02/2023,Nursery Deductions,Balance Sheet,UKRI - Medical Research Council,99889556,207.39,Nursery Deductions
BEIS,UKRI - EPSRC,02/02/2023,Non-staff travel and subsistance,Programme Delivery Maths,Unspecified,99889557,203.45,Non-staff travel and subsistance
BEIS,UKRI - EPSRC,02/02/2023,Fees (Including College Members),Business Improvement,Unspecified,99889558,160,Fees (Including College Members)
BEIS,UKRI - UKRI,02/02/2023,Unspecified,UKRI-SHARP,LA International Computer Consultants Ltd,99889559,2693.4,Contract Staff
BEIS,UKRI - UKRI,02/02/2023,Staff Training,UKRI - Health and Safety,Astutis,99889752,2484,Staff Training
BEIS,UKRI - UKRI,02/02/2023,Staff Training,UKRI - Health and Safety,Astutis,99889753,2484,Staff Training
BEIS,UKRI - UKRI,02/02/2023,Removal Services,UKRI - Estates Projects,Harrow Green Ltd T/A Restore Harrow Green,99890444,234,Removal Services
BEIS,UKRI - UKRI,02/02/2023,Conferences & Seminars,UKRI - Strategic Finance Business Partners,Unspecified,99890670,126,Conferences & Seminars
BEIS,UKRI - UKRI,02/02/2023,T&S UK - Other Charges,UKRI - JSS,Unspecified,99890671,1.5,T&S UK - Other Charges
BEIS,UKRI - UKRI,02/02/2023,Health & Safety (inc. Medicals & Opticians),UKRI - Communications Web and Intranet Service,Unspecified,99890672,10,Health & Safety (inc. Medicals & Opticians)
BEIS,UKRI - UKRI,02/02/2023,Conferences & Seminars,UKRI HR – Operations,Unspecified,99890673,714,Conferences & Seminars
BEIS,UKRI - EPSRC,02/02/2023,T&S UK - Public Transport,Programme Delivery Physical Sciences,Unspecified,99890674,30,T&S UK - Public Transport
BEIS,UKRI - EPSRC,02/02/2023,T&S UK - Subsistence,Programme Delivery Physical Sciences,Unspecified,99890674,3.3,T&S UK - Subsistence
BEIS,UKRI - EPSRC,02/02/2023,T&S UK - Subsistence,Programme Delivery Physical Sciences,Unspecified,99890674,6.35,T&S UK - Subsistence
BEIS,UKRI - EPSRC,02/02/2023,T&S UK - Subsistence,Programme Delivery Physical Sciences,Unspecified,99890674,5,T&S UK - Subsistence
BEIS,UKRI - UKRI,02/02/2023,T&S UK - Other Charges,UKRI HR – Operations,Unspecified,99890675,179.99,T&S UK - Other Charges
BEIS,UKRI - Research England,02/02/2023,T&S UK - Public Transport,RE - Research,Unspecified,99890676,15.8,T&S UK - Public Transport
BEIS,UKRI - Research England,02/02/2023,T&S UK - Subsistence,RE - Research,Unspecified,99890676,3.7,T&S UK - Subsistence
BEIS,UKRI - UKRI,02/02/2023,T&S UK - Public Transport,UKRI - Public Engagement,Unspecified,99890677,7.96,T&S UK - Public Transport
BEIS,UKRI - UKRI,02/02/2023,T&S UK - Subsistence,UKRI - Public Engagement,Unspecified,99890677,18.7,T&S UK - Subsistence
BEIS,UKRI - UKRI,02/02/2023,T&S UK - Other Charges,UKRI - Corporate Services,Unspecified,99890678,114,T&S UK - Other Charges
BEIS,UKRI - UKRI,02/02/2023,T&S UK - Mileage,UKRI - Funding Assurance,Unspecified,99890679,99.9,T&S UK - Mileage
BEIS,UKRI - UKRI,02/02/2023,T&S UK - Parking Tolls Congestion Charges,UKRI - Funding Assurance,Unspecified,99890679,34.2,T&S UK - Parking Tolls Congestion Charges
BEIS,UKRI - UKRI,02/02/2023,T&S UK - Subsistence,UKRI - Funding Assurance,Unspecified,99890679,6.15,T&S UK - Subsistence
BEIS,UKRI - UKRI,02/02/2023,T&S UK - Subsistence,UKRI - Funding Assurance,Unspecified,99890679,14.25,T&S UK - Subsistence
BEIS,UKRI - UKRI,02/02/2023,T&S UK - Subsistence,UKRI - Funding Assurance,Unspecified,99890679,24.09,T&S UK - Subsistence
BEIS,UKRI - EPSRC,02/02/2023,T&S Overseas - Accommodation,Programme Delivery Physical Sciences,Unspecified,99890680,207.64,T&S Overseas - Accommodation
BEIS,UKRI - EPSRC,02/02/2023,T&S Overseas - Other Charges,Programme Delivery Physical Sciences,Unspecified,99890680,9.11,T&S Overseas - Other Charges
BEIS,UKRI - EPSRC,02/02/2023,T&S Overseas - Public Transport,Programme Delivery Physical Sciences,Unspecified,99890680,11.66,T&S Overseas - Public Transport
BEIS,UKRI - EPSRC,02/02/2023,T&S Overseas - Subsistence,Programme Delivery Physical Sciences,Unspecified,99890680,19.17,T&S Overseas - Subsistence
BEIS,UKRI - EPSRC,02/02/2023,T&S Overseas - Subsistence,Programme Delivery Physical Sciences,Unspecified,99890680,33.2,T&S Overseas - Subsistence
BEIS,UKRI - EPSRC,02/02/2023,T&S Overseas - Subsistence,Programme Delivery Physical Sciences,Unspecified,99890680,29.46,T&S Overseas - Subsistence
BEIS,UKRI - EPSRC,02/02/2023,T&S Overseas - Subsistence,Programme Delivery Physical Sciences,Unspecified,99890680,20.37,T&S Overseas - Subsistence
BEIS,UKRI - UKRI,02/02/2023,T&S UK - Mileage,UKRI HR – Resourcing,Unspecified,99890681,27.9,T&S UK - Mileage
BEIS,UKRI - EPSRC,03/02/2023,Translation Services,Regional Engagement - OpEx,Cymen Cyfyngedig T/A Cymen,99847405,590.4,Translation Services
BEIS,UKRI - UKRI,03/02/2023,T&S UK - Vehicle Hire,UKRI - Corporate Services,Enterprise Rent-A-Car UK Ltd,99872103,111.88,T&S UK - Vehicle Hire
BEIS,UKRI - UKRI,03/02/2023,T&S UK - Vehicle Hire,UKRI - Corporate Services,Enterprise Rent-A-Car UK Ltd,99872103,22.38,T&S UK - Vehicle Hire
BEIS,UKRI - Research England,03/02/2023,Asset Clearing,RE - Operations and Private Office,Logicalis Uk Ltd,99880429,11209.68,Asset Clearing
BEIS,UKRI - EPSRC,03/02/2023,T&S UK - Vehicle Hire,Digital Security and resilience,Enterprise Rent-A-Car UK Ltd,99885340,54.03,T&S UK - Vehicle Hire
BEIS,UKRI - EPSRC,03/02/2023,T&S UK - Vehicle Hire,Digital Security and resilience,Enterprise Rent-A-Car UK Ltd,99885340,10.81,T&S UK - Vehicle Hire
BEIS,UKRI - UKRI,03/02/2023,T&S UK - Vehicle Hire,UKRI HR – Operations,Enterprise Rent-A-Car UK Ltd,99885340,54.03,T&S UK - Vehicle Hire
BEIS,UKRI - UKRI,03/02/2023,T&S UK - Vehicle Hire,UKRI HR – Operations,Enterprise Rent-A-Car UK Ltd,99885340,10.81,T&S UK - Vehicle Hire
BEIS,UKRI - UKRI,03/02/2023,Staff Training,UKRI - Digital Data and Technology BAU Costs,Best Practice Consulting (UK) Ltd,99885389,5457.6,Staff Training
BEIS,UKRI - UKRI,03/02/2023,Staff Training,UKRI - Digital Data and Technology BAU Costs,Best Practice Consulting (UK) Ltd,99885652,5457.6,Staff Training
BEIS,UKRI - UKRI,03/02/2023,Consumables,UKRI - JRS,Banner Group Ltd,99885927,68.88,Consumables
BEIS,UKRI - UKRI,03/02/2023,Unspecified,UKRI HR - Corporate Projects,Alexander Mann Solutions Ltd,99887751,3120.08,Contract Staff
BEIS,UKRI - UKRI,03/02/2023,Unspecified,UKRI HR - Corporate Projects,Alexander Mann Solutions Ltd,99887771,1645.92,Contract Staff
BEIS,UKRI - UKRI,03/02/2023,Recruitment Costs,UKRI People and Organisation Development,Onefix Recruitment Ltd,99888044,444,Recruitment Costs
BEIS,UKRI - UKRI,03/02/2023,Staff Training,"UKRI HR – Culture, Inclusion and Learning",Page Tiger Ltd,99888259,2100,Staff Training
BEIS,UKRI - UKRI,03/02/2023,Staff Training,"UKRI HR – Culture, Inclusion and Learning",Merryck and Co Ltd,99888282,14400,Staff Training
BEIS,UKRI - UKRI,03/02/2023,T&S UK - Other Charges,UKRI - Digital Data and Technology BAU Costs,Unspecified,99888644,100,T&S UK - Other Charges
BEIS,UKRI - UKRI,03/02/2023,Marketing & PR,UKRI - Communications Content,Derek Holmes T/A Derek Holmes Media,99889787,325,Marketing & PR
BEIS,UKRI - UKRI,03/02/2023,Conferences & Seminars,UKRI HR - CPO Office,Unspecified,99889807,1200,Conferences & Seminars
BEIS,UKRI - UKRI,03/02/2023,Non-staff travel and subsistance,Research Integrity Committee Programme,Unspecified,99889819,69.2,Non-staff travel and subsistance
BEIS,UKRI - UKRI,03/02/2023,Recruitment Costs,UKRI People and Organisation Development,Warwick University Services Ltd,99889838,564,Recruitment Costs
BEIS,UKRI - UKRI,03/02/2023,Recruitment Costs,UKRI People and Organisation Development,Warwick University Services Ltd,99889842,564,Recruitment Costs
BEIS,UKRI - UKRI,03/02/2023,Recruitment Costs,UKRI People and Organisation Development,Warwick University Services Ltd,99889849,564,Recruitment Costs
BEIS,UKRI - UKRI,03/02/2023,Recruitment Costs,UKRI People and Organisation Development,Warwick University Services Ltd,99889853,564,Recruitment Costs
BEIS,UKRI - UKRI,03/02/2023,Printing & Stationery,UKRI - JRS,Antalis Ltd t/a Antalis Document Supplies,99889861,93.83,Printing & Stationery
BEIS,UKRI - UKRI,03/02/2023,Printing & Stationery,UKRI - JRS,Antalis Ltd t/a Antalis Document Supplies,99889861,343.58,Printing & Stationery
BEIS,UKRI - UKRI,03/02/2023,Consumables,UKRI - JRS,Antalis Ltd t/a Antalis Document Supplies,99889864,4167.36,Consumables
BEIS,UKRI - UKRI,03/02/2023,Recruitment Costs,UKRI People and Organisation Development,Warwick University Services Ltd,99889878,564,Recruitment Costs
BEIS,UKRI - UKRI,03/02/2023,Recruitment Costs,UKRI People and Organisation Development,Warwick University Services Ltd,99889887,564,Recruitment Costs
BEIS,UKRI - UKRI,03/02/2023,Catering Contracts,UKRI - Executive Group,Aramark Ltd,99889922,215.64,Catering Contracts
BEIS,UKRI - UKRI,03/02/2023,Ex-Gratia Payments,UKRI - COO,Unspecified,99889966,20000,Ex-Gratia Payments
BEIS,UKRI - UKRI,03/02/2023,Consumables,UKRI - JRS,Premier Paper Group Ltd,99889979,397.72,Consumables
BEIS,UKRI - UKRI,03/02/2023,Consumables,UKRI - JRS,Premier Paper Group Ltd,99889979,392.98,Consumables
BEIS,UKRI - UKRI,03/02/2023,Staff Training,UKRI - Management Reporting,BPP Professional Education Ltd,99889986,2790,Staff Training
BEIS,UKRI - UKRI,03/02/2023,T&S UK - Other Charges,UKRI HR – Operations,Unspecified,99890037,100,T&S UK - Other Charges
BEIS,UKRI - UKRI,03/02/2023,T&S UK - Mileage,UKRI - Procurement and Commercial,Unspecified,99890038,271,T&S UK - Mileage
BEIS,UKRI - UKRI,03/02/2023,T&S UK - Parking Tolls Congestion Charges,UKRI - Procurement and Commercial,Unspecified,99890038,7.6,T&S UK - Parking Tolls Congestion Charges
BEIS,UKRI - UKRI,03/02/2023,T&S UK - Subsistence,UKRI - Procurement and Commercial,Unspecified,99890038,44.15,T&S UK - Subsistence
BEIS,UKRI - Research England,03/02/2023,T&S UK - Public Transport,RE - Research,Unspecified,99890039,4,T&S UK - Public Transport
BEIS,UKRI - Research England,03/02/2023,T&S UK - Subsistence,RE - Research,Unspecified,99890039,2.6,T&S UK - Subsistence
BEIS,UKRI - UKRI,03/02/2023,T&S UK - Public Transport,UKRI - Strategy,Unspecified,99890040,9,T&S UK - Public Transport
BEIS,UKRI - UKRI,03/02/2023,T&S UK - Public Transport,UKRI - Strategy,Unspecified,99890040,39.4,T&S UK - Public Transport
BEIS,UKRI - UKRI,03/02/2023,T&S Overseas - Public Transport,North America Office - Canada,Unspecified,99890042,25.86,T&S Overseas - Public Transport
BEIS,UKRI - UKRI,03/02/2023,Conferences & Seminars,UKRI - Management Reporting,Unspecified,99890044,143,Conferences & Seminars
BEIS,UKRI - UKRI,03/02/2023,Education Fees & Study Materials,UKRI - Management Reporting,Unspecified,99890044,50.4,Education Fees & Study Materials
BEIS,UKRI - UKRI,03/02/2023,T&S UK - Public Transport,UKRI - Communications Business Partners,Unspecified,99890045,60.3,T&S UK - Public Transport
BEIS,UKRI - UKRI,03/02/2023,T&S UK - Public Transport,UKRI - Communications Business Partners,Unspecified,99890045,11,T&S UK - Public Transport
BEIS,UKRI - UKRI,03/02/2023,T&S UK - Subsistence,UKRI - Communications Business Partners,Unspecified,99890045,5,T&S UK - Subsistence
BEIS,UKRI - UKRI,03/02/2023,T&S UK - Public Transport,UKRI - UKRO,Unspecified,99890047,4,T&S UK - Public Transport
BEIS,UKRI - UKRI,03/02/2023,T&S UK - Subsistence,UKRI - UKRO,Unspecified,99890047,35.23,T&S UK - Subsistence
BEIS,UKRI - UKRI,03/02/2023,T&S UK - Subsistence,UKRI - UKRO,Unspecified,99890047,14.65,T&S UK - Subsistence
BEIS,UKRI - UKRI,03/02/2023,T&S UK - Subsistence,UKRI - UKRO,Unspecified,99890047,5.79,T&S UK - Subsistence
BEIS,UKRI - UKRI,03/02/2023,UK - Professional Memberships & Subscriptions,UKRI - Procurement and Commercial,Unspecified,99890048,200.7,UK - Professional Memberships & Subscriptions
BEIS,UKRI - EPSRC,03/02/2023,T&S UK - Subsistence,Programme Delivery ICT,Unspecified,99890049,6.8,T&S UK - Subsistence
BEIS,UKRI - EPSRC,03/02/2023,T&S UK - Subsistence,Programme Delivery ICT,Unspecified,99890049,14.75,T&S UK - Subsistence
BEIS,UKRI - EPSRC,03/02/2023,T&S UK - Public Transport,Materials OpEx,Unspecified,99890050,5.8,T&S UK - Public Transport
BEIS,UKRI - EPSRC,03/02/2023,T&S UK - Subsistence,Materials OpEx,Unspecified,99890050,6.35,T&S UK - Subsistence
BEIS,UKRI - EPSRC,03/02/2023,T&S UK - Subsistence,Materials OpEx,Unspecified,99890050,20,T&S UK - Subsistence
BEIS,UKRI - EPSRC,03/02/2023,T&S UK - Subsistence,Materials OpEx,Unspecified,99890050,13.65,T&S UK - Subsistence
BEIS,UKRI - EPSRC,03/02/2023,T&S UK - Mileage,Programme Delivery Energy,Unspecified,99890051,39.3,T&S UK - Mileage
BEIS,UKRI - UKRI,03/02/2023,T&S UK - Subsistence,UKRI HR – Operations,Unspecified,99890052,25,T&S UK - Subsistence
BEIS,UKRI - UKRI,03/02/2023,T&S UK - Subsistence,UKRI HR – Operations,Unspecified,99890052,7.2,T&S UK - Subsistence
BEIS,UKRI - UKRI,03/02/2023,T&S UK - Public Transport,UKRI - Procurement and Commercial,Unspecified,99890053,47.41,T&S UK - Public Transport
BEIS,UKRI - UKRI,03/02/2023,T&S UK - Public Transport,UKRI - Procurement and Commercial,Unspecified,99890053,66.9,T&S UK - Public Transport
BEIS,UKRI - EPSRC,03/02/2023,T&S UK - Parking Tolls Congestion Charges,Programme Delivery Maths,Unspecified,99890054,10.8,T&S UK - Parking Tolls Congestion Charges
BEIS,UKRI - EPSRC,03/02/2023,T&S UK - Public Transport,Programme Delivery Maths,Unspecified,99890054,10,T&S UK - Public Transport
BEIS,UKRI - UKRI,03/02/2023,Health & Safety (inc. Medicals & Opticians),UKRI - Health and Safety,AM Health & Safety Ltd,99890594,1254,Health & Safety (inc. Medicals & Opticians)
BEIS,UKRI - UKRI,03/02/2023,Staff Training,UKRI - Legal,MBL Seminars Limited,99890870,2523,Staff Training
BEIS,UKRI - UKRI,03/02/2023,UK - Professional Memberships & Subscriptions,UKRI - Management Reporting,ACCA Global Ltd,99890892,9066,UK - Professional Memberships & Subscriptions
BEIS,UKRI - EPSRC,03/02/2023,Fees (Including College Members),Business Improvement,Unspecified,99890909,473.53,Fees (Including College Members)
BEIS,UKRI - EPSRC,03/02/2023,Non-staff travel and subsistance,Business Improvement,Unspecified,99890910,320,Non-staff travel and subsistance
BEIS,UKRI - EPSRC,03/02/2023,Non-staff travel and subsistance,Business Improvement,Unspecified,99890911,160,Non-staff travel and subsistance
BEIS,UKRI - EPSRC,03/02/2023,Non-staff travel and subsistance,Business Improvement,Unspecified,99890912,160,Non-staff travel and subsistance
BEIS,UKRI - EPSRC,03/02/2023,Fees (Including College Members),Business Improvement,Unspecified,99890913,320,Fees (Including College Members)
BEIS,UKRI - EPSRC,03/02/2023,Non-staff travel and subsistance,Business Improvement,Unspecified,99890914,320,Non-staff travel and subsistance
BEIS,UKRI - EPSRC,03/02/2023,Non-staff travel and subsistance,Business Improvement,Unspecified,99890915,320,Non-staff travel and subsistance
BEIS,UKRI - EPSRC,03/02/2023,Non-staff travel and subsistance,Business Improvement,Unspecified,99890916,320,Non-staff travel and subsistance
BEIS,UKRI - EPSRC,03/02/2023,Non-staff travel and subsistance,Business Improvement,Unspecified,99890917,320,Non-staff travel and subsistance
BEIS,UKRI - EPSRC,03/02/2023,T&S UK - Vehicle Hire,Regional Engagement - OpEx,Enterprise Rent-A-Car UK Ltd,99890927,66.24,T&S UK - Vehicle Hire
BEIS,UKRI - EPSRC,03/02/2023,T&S UK - Vehicle Hire,Regional Engagement - OpEx,Enterprise Rent-A-Car UK Ltd,99890927,13.25,T&S UK - Vehicle Hire
BEIS,UKRI - UKRI,03/02/2023,T&S UK - Vehicle Hire,UKRI - Communications Projects and Services,Enterprise Rent-A-Car UK Ltd,99890927,76.24,T&S UK - Vehicle Hire
BEIS,UKRI - UKRI,03/02/2023,T&S UK - Vehicle Hire,UKRI - Communications Projects and Services,Enterprise Rent-A-Car UK Ltd,99890927,15.25,T&S UK - Vehicle Hire
BEIS,UKRI - UKRI,03/02/2023,T&S UK - Vehicle Hire,UKRI - Counter Fraud,Enterprise Rent-A-Car UK Ltd,99890927,68.04,T&S UK - Vehicle Hire
BEIS,UKRI - UKRI,03/02/2023,T&S UK - Vehicle Hire,UKRI - Counter Fraud,Enterprise Rent-A-Car UK Ltd,99890927,92.06,T&S UK - Vehicle Hire
BEIS,UKRI - UKRI,03/02/2023,T&S UK - Vehicle Hire,UKRI - Counter Fraud,Enterprise Rent-A-Car UK Ltd,99890927,63.71,T&S UK - Vehicle Hire
BEIS,UKRI - UKRI,03/02/2023,T&S UK - Vehicle Hire,UKRI - Counter Fraud,Enterprise Rent-A-Car UK Ltd,99890927,44.76,T&S UK - Vehicle Hire
BEIS,UKRI - UKRI,03/02/2023,Catering Contracts,UKRI - JBOS,Aramark Ltd,99890977,3675.8,Catering Contracts
BEIS,UKRI - EPSRC,06/02/2023,T&S UK - Other Charges,Programme Delivery Infrastructure,Enterprise Rent-A-Car UK Ltd,99765447,85,T&S UK - Other Charges
BEIS,UKRI - EPSRC,06/02/2023,T&S UK - Other Charges,Regional Engagement - OpEx,Enterprise Rent-A-Car UK Ltd,99836656,25,T&S UK - Other Charges
BEIS,UKRI - UKRI,06/02/2023,T&S UK - Other Charges,UKRI HR – Operations,Enterprise Rent-A-Car UK Ltd,99848709,493.17,T&S UK - Other Charges
BEIS,UKRI - UKRI,06/02/2023,T&S UK - Mileage,UKRI - Procurement and Commercial,Unspecified,99858588,79.2,T&S UK - Mileage
BEIS,UKRI - UKRI,06/02/2023,Unspecified,UKRI - Digital Data and Technology Recharges,Unspecified,99869329,41646.34,Networking Maintenance
BEIS,UKRI - UKRI,06/02/2023,Computer Software Licences,UKRI - Digital Data and Technology BAU Costs,Zoho Corporation Ltd,99872369,11047.2,Computer Software Licences
BEIS,UKRI - UKRI,06/02/2023,Unspecified,UKRI - Digital Data and Technology Project Costs,Alexander Mann Solutions Ltd,99878912,1386.14,Contract Staff
BEIS,UKRI - UKRI,06/02/2023,Unspecified,UKRI - Digital Data and Technology BAU Costs,LA International Computer Consultants Ltd,99879078,2874.72,Contract Staff
BEIS,UKRI - UKRI,06/02/2023,Unspecified,UKRI - Digital Data and Technology Project Costs,LA International Computer Consultants Ltd,99879089,19109.66,Contract Staff
BEIS,UKRI - UKRI,06/02/2023,Unspecified,UKRI - Digital Data and Technology Project Costs,Alexander Mann Solutions Ltd,99883767,2925.66,Contract Staff
BEIS,UKRI - UKRI,06/02/2023,Unspecified,UKRI - Digital Data and Technology Project Costs,Alexander Mann Solutions Ltd,99884426,1732.68,Contract Staff
BEIS,UKRI - UKRI,06/02/2023,Unspecified,UKRI - Digital Data and Technology Project Costs,Alexander Mann Solutions Ltd,99884606,1539.8,Contract Staff
BEIS,UKRI - UKRI,06/02/2023,Unspecified,UKRI - Digital Data and Technology Project Costs,Alexander Mann Solutions Ltd,99884606,1539.82,Contract Staff
BEIS,UKRI - UKRI,06/02/2023,Recruitment Costs,UKRI People and Organisation Development,Onefix Recruitment Ltd,99885020,10980,Recruitment Costs
BEIS,UKRI - UKRI,06/02/2023,Unspecified,UKRI - Digital Data and Technology BAU Costs,LA International Computer Consultants Ltd,99885343,3593.4,Contract Staff
BEIS,UKRI - UKRI,06/02/2023,Unspecified,UKRI - Digital Data and Technology Project Costs,Precision Resource Group Ltd T/A iO,99887076,4185,Contract Staff
BEIS,UKRI - UKRI,06/02/2023,Unspecified,UKRI - Digital Data and Technology Project Costs,Precision Resource Group Ltd T/A iO,99887078,3540,Contract Staff
BEIS,UKRI - UKRI,06/02/2023,Unspecified,UKRI - Digital Data and Technology Project Costs,LA International Computer Consultants Ltd,99887380,2993.4,Contract Staff
BEIS,UKRI - UKRI,06/02/2023,Unspecified,UKRI - Digital Data and Technology Project Costs,LA International Computer Consultants Ltd,99887386,2320.08,Contract Staff
BEIS,UKRI - UKRI,06/02/2023,Unspecified,UKRI - Digital Data and Technology Project Costs,Alexander Mann Solutions Ltd,99887661,1847.78,Contract Staff
BEIS,UKRI - UKRI,06/02/2023,Unspecified,UKRI - Digital Data and Technology Project Costs,Alexander Mann Solutions Ltd,99887661,1847.8,Contract Staff
BEIS,UKRI - UKRI,06/02/2023,Unspecified,UKRI - Digital Data and Technology Project Costs,Alexander Mann Solutions Ltd,99887701,2925.66,Contract Staff
BEIS,UKRI - UKRI,06/02/2023,Unspecified,UKRI - Digital Data and Technology Project Costs,Alexander Mann Solutions Ltd,99887706,7699.08,Contract Staff
BEIS,UKRI - UKRI,06/02/2023,Unspecified,UKRI - Funding Service,Alexander Mann Solutions Ltd,99887721,4619.52,Contract Staff
BEIS,UKRI - UKRI,06/02/2023,Unspecified,UKRI - Funding Service,Alexander Mann Solutions Ltd,99887752,4312.62,Contract Staff
BEIS,UKRI - UKRI,06/02/2023,Unspecified,UKRI - Digital Data and Technology Project Costs,Alexander Mann Solutions Ltd,99887758,1732.68,Contract Staff
BEIS,UKRI - UKRI,06/02/2023,Unspecified,UKRI - Funding Service,Alexander Mann Solutions Ltd,99887759,4896.66,Contract Staff
BEIS,UKRI - UKRI,06/02/2023,Unspecified,UKRI - Digital Data and Technology Project Costs,Alexander Mann Solutions Ltd,99887760,1539.8,Contract Staff
BEIS,UKRI - UKRI,06/02/2023,Unspecified,UKRI - Digital Data and Technology Project Costs,Alexander Mann Solutions Ltd,99887760,1539.82,Contract Staff
BEIS,UKRI - UKRI,06/02/2023,Unspecified,UKRI - Funding Service,Alexander Mann Solutions Ltd,99887770,4003.56,Contract Staff
BEIS,UKRI - UKRI,06/02/2023,Unspecified,UKRI - Digital Data and Technology Project Costs,LA International Computer Consultants Ltd,99888441,4281.18,Contract Staff
BEIS,UKRI - UKRI,06/02/2023,Mechanical & Electrical Maintenance,UKRI - Estates,Premier Farnell UK Ltd T/A Farnell Onecall,99888803,5.47,Mechanical & Electrical Maintenance
BEIS,UKRI - UKRI,06/02/2023,Printing & Stationery,UKRI - Estates,Banner Group Ltd,99888804,35.27,Printing & Stationery
BEIS,UKRI - UKRI,06/02/2023,Printing & Stationery,UKRI - Estates,Banner Group Ltd,99888804,8.64,Printing & Stationery
BEIS,UKRI - UKRI,06/02/2023,Unspecified,UKRI - Digital Data and Technology BAU Costs,Michael Page International Recruitment Limited T/A Page Personnel,99888991,5011.44,Contract Staff
BEIS,UKRI - UKRI,06/02/2023,Unspecified,UKRI - Digital Data and Technology Project Costs,LA International Computer Consultants Ltd,99889069,3593.4,Contract Staff
BEIS,UKRI - UKRI,06/02/2023,Unspecified,UKRI - Digital Data and Technology Project Costs,LA International Computer Consultants Ltd,99889072,2874.72,Contract Staff
BEIS,UKRI - UKRI,06/02/2023,Unspecified,UKRI - Digital Data and Technology Project Costs,LA International Computer Consultants Ltd,99889076,3593.4,Contract Staff
BEIS,UKRI - UKRI,06/02/2023,Recruitment Costs,UKRI People and Organisation Development,Onefix Recruitment Ltd,99889202,900,Recruitment Costs
BEIS,UKRI - UKRI,06/02/2023,Unspecified,UKRI - Digital Data and Technology BAU Costs,Involved Solutions Ltd,99889796,3528.72,Contract Staff
BEIS,UKRI - UKRI,06/02/2023,Mechanical & Electrical Maintenance,UKRI - Estates,RS Components,99889980,8.5,Mechanical & Electrical Maintenance
BEIS,UKRI - UKRI,06/02/2023,Other Staff Benefits,UKRI - UKRO,Unspecified,99890182,1008.78,Other Staff Benefits
BEIS,UKRI - UKRI,06/02/2023,Unspecified,UKRI - Digital Data and Technology Project Costs,Precision Resource Group Ltd T/A iO,99890195,3540,Contract Staff
BEIS,UKRI - UKRI,06/02/2023,Unspecified,UKRI - Digital Data and Technology Project Costs,Precision Resource Group Ltd T/A iO,99890216,4185,Contract Staff
BEIS,UKRI - UKRI,06/02/2023,Printing & Stationery,UKRI - JRS,Antalis Ltd t/a Antalis Document Supplies,99890229,490.82,Printing & Stationery
BEIS,UKRI - UKRI,06/02/2023,Advertising & Promotion,UKRI - Communications Content,Dragon Rouge Ltd,99890319,1500,Advertising & Promotion
BEIS,UKRI - UKRI,06/02/2023,Staff Training,UKRI HR – Resourcing,Universities and Colleges Employers Association (UCEA),99890328,425,Staff Training
BEIS,UKRI - UKRI,06/02/2023,Consumables,UKRI - JRS,Premier Paper Group Ltd,99890340,427.2,Consumables
BEIS,UKRI - UKRI,06/02/2023,Consumables,UKRI - JRS,Premier Paper Group Ltd,99890340,96.82,Consumables
BEIS,UKRI - UKRI,06/02/2023,Consumables,UKRI - JRS,Premier Paper Group Ltd,99890340,224.6,Consumables
BEIS,UKRI - UKRI,06/02/2023,Consumables,UKRI - JRS,Premier Paper Group Ltd,99890340,269.53,Consumables
BEIS,UKRI - UKRI,06/02/2023,Consumables,UKRI - JRS,Premier Paper Group Ltd,99890340,161.3,Consumables
BEIS,UKRI - UKRI,06/02/2023,Recruitment Costs,UKRI People and Organisation Development,Onefix Recruitment Ltd,99890413,1678.8,Recruitment Costs
BEIS,UKRI - UKRI,06/02/2023,Telecoms - Land Line Rental,UKRI - Digital Data and Technology BAU Costs,Vodafone Ltd,99890588,47.08,Telecoms - Land Line Rental
BEIS,UKRI - UKRI,06/02/2023,Telecoms - Land Line Rental,UKRI - Digital Data and Technology BAU Costs,Vodafone Ltd,99890589,260.84,Telecoms - Land Line Rental
BEIS,UKRI - UKRI,06/02/2023,Telecoms - Land Line Rental,UKRI - Digital Data and Technology BAU Costs,Vodafone Ltd,99890590,209.64,Telecoms - Land Line Rental
BEIS,UKRI - UKRI,06/02/2023,Telecoms - Land Line Rental,UKRI - Digital Data and Technology BAU Costs,Vodafone Ltd,99890591,123.57,Telecoms - Land Line Rental
BEIS,UKRI - UKRI,06/02/2023,Telecoms - Land Line Rental,UKRI - Digital Data and Technology BAU Costs,Vodafone Ltd,99890592,104.02,Telecoms - Land Line Rental
BEIS,UKRI - UKRI,06/02/2023,Telecoms - Land Line Rental,UKRI - Digital Data and Technology BAU Costs,Vodafone Ltd,99890593,153.48,Telecoms - Land Line Rental
BEIS,UKRI - Research England,06/02/2023,Catering Contracts,RE - Operations and Private Office,Sandwich Direct Bristol Ltd,99891079,55.2,Catering Contracts
BEIS,UKRI - UKRI,06/02/2023,Mobile Phone Costs,UKRI - Digital Data and Technology Recharges,Telefonica UK Ltd (O2),99891081,3067.18,Mobile Phone Costs
BEIS,UKRI - UKRI,06/02/2023,Mobile Phone Costs,UKRI - Digital Data and Technology Recharges,Telefonica UK Ltd (O2),99891081,529.14,Mobile Phone Costs
BEIS,UKRI - UKRI,06/02/2023,Mobile Phone Costs,UKRI - Digital Data and Technology BAU Costs,Telefonica UK Ltd (O2),99891082,197.71,Mobile Phone Costs
BEIS,UKRI - UKRI,06/02/2023,Mobile Phone Costs,UKRI - Digital Data and Technology BAU Costs,Telefonica UK Ltd (O2),99891082,27.22,Mobile Phone Costs
BEIS,UKRI - UKRI,06/02/2023,Mobile Phone Costs,UKRI - Digital Data and Technology BAU Costs,Telefonica UK Ltd (O2),99891083,4224.95,Mobile Phone Costs
BEIS,UKRI - UKRI,06/02/2023,Mobile Phone Costs,UKRI - Digital Data and Technology BAU Costs,Telefonica UK Ltd (O2),99891083,844.99,Mobile Phone Costs
BEIS,UKRI - UKRI,06/02/2023,Mobile Phone Costs,UKRI - Digital Data and Technology BAU Costs,Telefonica UK Ltd (O2),99891084,77.25,Mobile Phone Costs
BEIS,UKRI - UKRI,06/02/2023,Mobile Phone Costs,UKRI - Digital Data and Technology BAU Costs,Telefonica UK Ltd (O2),99891084,15.45,Mobile Phone Costs
BEIS,UKRI - UKRI,06/02/2023,Mobile Phone Costs,UKRI - Digital Data and Technology BAU Costs,Telefonica UK Ltd (O2),99891085,1196.48,Mobile Phone Costs
BEIS,UKRI - UKRI,06/02/2023,Mobile Phone Costs,UKRI - Digital Data and Technology BAU Costs,Telefonica UK Ltd (O2),99891085,200.3,Mobile Phone Costs
BEIS,UKRI - UKRI,06/02/2023,Mobile Phone Costs,UKRI - Digital Data and Technology BAU Costs,Telefonica UK Ltd (O2),99891086,375.14,Mobile Phone Costs
BEIS,UKRI - UKRI,06/02/2023,Mobile Phone Costs,UKRI - Digital Data and Technology BAU Costs,Telefonica UK Ltd (O2),99891086,53.43,Mobile Phone Costs
BEIS,UKRI - UKRI,06/02/2023,Mobile Phone Costs,UKRI - Digital Data and Technology BAU Costs,Telefonica UK Ltd (O2),99891087,28.73,Mobile Phone Costs
BEIS,UKRI - UKRI,06/02/2023,Mobile Phone Costs,UKRI - Digital Data and Technology BAU Costs,Telefonica UK Ltd (O2),99891087,5.75,Mobile Phone Costs
BEIS,UKRI - UKRI,06/02/2023,Mobile Phone Costs,UKRI - Digital Data and Technology BAU Costs,Telefonica UK Ltd (O2),99891088,134.02,Mobile Phone Costs
BEIS,UKRI - UKRI,06/02/2023,Mobile Phone Costs,UKRI - Digital Data and Technology BAU Costs,Telefonica UK Ltd (O2),99891088,24,Mobile Phone Costs
BEIS,UKRI - UKRI,06/02/2023,Mobile Phone Costs,UKRI - Digital Data and Technology BAU Costs,Telefonica UK Ltd (O2),99891089,1024.84,Mobile Phone Costs
BEIS,UKRI - UKRI,06/02/2023,Mobile Phone Costs,UKRI - Digital Data and Technology BAU Costs,Telefonica UK Ltd (O2),99891089,188.07,Mobile Phone Costs
BEIS,UKRI - UKRI,06/02/2023,Mobile Phone Costs,UKRI - Digital Data and Technology BAU Costs,Telefonica UK Ltd (O2),99891090,132.28,Mobile Phone Costs
BEIS,UKRI - UKRI,06/02/2023,Mobile Phone Costs,UKRI - Digital Data and Technology BAU Costs,Telefonica UK Ltd (O2),99891090,25.26,Mobile Phone Costs
BEIS,UKRI - UKRI,06/02/2023,Mobile Phone Costs,UKRI - Digital Data and Technology BAU Costs,Telefonica UK Ltd (O2),99891091,171.37,Mobile Phone Costs
BEIS,UKRI - UKRI,06/02/2023,Mobile Phone Costs,UKRI - Digital Data and Technology BAU Costs,Telefonica UK Ltd (O2),99891091,34.27,Mobile Phone Costs
BEIS,UKRI - UKRI,06/02/2023,Mobile Phone Costs,UKRI - Digital Data and Technology BAU Costs,Telefonica UK Ltd (O2),99891092,3994.57,Mobile Phone Costs
BEIS,UKRI - UKRI,06/02/2023,Mobile Phone Costs,UKRI - Digital Data and Technology BAU Costs,Telefonica UK Ltd (O2),99891092,718.44,Mobile Phone Costs
BEIS,UKRI - UKRI,06/02/2023,Mobile Phone Costs,UKRI - Digital Data and Technology BAU Costs,Telefonica UK Ltd (O2),99891093,9.5,Mobile Phone Costs
BEIS,UKRI - UKRI,06/02/2023,Mobile Phone Costs,UKRI - Digital Data and Technology BAU Costs,Telefonica UK Ltd (O2),99891093,1.9,Mobile Phone Costs
BEIS,UKRI - UKRI,06/02/2023,Mobile Phone Costs,UKRI - Digital Data and Technology BAU Costs,Telefonica UK Ltd (O2),99891094,2816.95,Mobile Phone Costs
BEIS,UKRI - UKRI,06/02/2023,Mobile Phone Costs,UKRI - Digital Data and Technology BAU Costs,Telefonica UK Ltd (O2),99891094,563.39,Mobile Phone Costs
BEIS,UKRI - Research England,06/02/2023,Catering Contracts,RE - Operations and Private Office,Sandwich Direct Bristol Ltd,99891099,127.26,Catering Contracts
BEIS,UKRI - UKRI,06/02/2023,Printing & Stationery,UKRI - JBOS,Premier Farnell UK Ltd T/A Farnell Onecall,99891221,6.47,Printing & Stationery
BEIS,UKRI - UKRI,06/02/2023,Books Professional Journals & Guides,UKRI - Digital Data and Technology Library Services,OK Bargains Ltd T/A Shauns News,99891340,50.8,Books Professional Journals & Guides
BEIS,UKRI - EPSRC,06/02/2023,Non-staff travel and subsistance,Business Improvement,Unspecified,99891355,160,Non-staff travel and subsistance
BEIS,UKRI - EPSRC,06/02/2023,Non-staff travel and subsistance,Business Improvement,Unspecified,99891356,320,Non-staff travel and subsistance
BEIS,UKRI - EPSRC,06/02/2023,Non-staff travel and subsistance,Business Improvement,Unspecified,99891357,320,Non-staff travel and subsistance
BEIS,UKRI - EPSRC,06/02/2023,Non-staff travel and subsistance,Business Improvement,Unspecified,99891358,320,Non-staff travel and subsistance
BEIS,UKRI - EPSRC,06/02/2023,Non-staff travel and subsistance,Business Improvement,Unspecified,99891359,320,Non-staff travel and subsistance
BEIS,UKRI - EPSRC,06/02/2023,Non-staff travel and subsistance,Business Improvement,Unspecified,99891360,320,Non-staff travel and subsistance
BEIS,UKRI - EPSRC,06/02/2023,Non-staff travel and subsistance,Business Improvement,Unspecified,99891361,320,Non-staff travel and subsistance
BEIS,UKRI - EPSRC,06/02/2023,Non-staff travel and subsistance,Business Improvement,Unspecified,99891362,320,Non-staff travel and subsistance
BEIS,UKRI - EPSRC,06/02/2023,Non-staff travel and subsistance,Business Improvement,Unspecified,99891363,320,Non-staff travel and subsistance
BEIS,UKRI - EPSRC,06/02/2023,Fees (Including College Members),Business Improvement,Unspecified,99891364,160,Fees (Including College Members)
BEIS,UKRI - EPSRC,06/02/2023,Fees (Including College Members),Business Improvement,Unspecified,99891365,160,Fees (Including College Members)
BEIS,UKRI - EPSRC,06/02/2023,Fees (Including College Members),Programme Delivery Infrastructure,Unspecified,99891366,80,Fees (Including College Members)
BEIS,UKRI - UKRI,06/02/2023,Non-staff travel and subsistance,Research Integrity Committee Programme,Unspecified,99891381,128.2,Non-staff travel and subsistance
BEIS,UKRI - UKRI,06/02/2023,UK - Professional Memberships & Subscriptions,UKRI - Council Partnership and Performance,Unspecified,99891488,145,UK - Professional Memberships & Subscriptions
BEIS,UKRI - UKRI,06/02/2023,T&S UK - Vehicle Hire,"Governance, Assurance and Operations",Unspecified,99891489,65.56,T&S UK - Vehicle Hire
BEIS,UKRI - Research England,06/02/2023,T&S UK - Parking Tolls Congestion Charges,RE - Knowledge Exchange,Unspecified,99891490,5,T&S UK - Parking Tolls Congestion Charges
BEIS,UKRI - Research England,06/02/2023,T&S UK - Public Transport,RE - Knowledge Exchange,Unspecified,99891490,2,T&S UK - Public Transport
BEIS,UKRI - Research England,06/02/2023,T&S UK - Public Transport,RE - Knowledge Exchange,Unspecified,99891490,9.9,T&S UK - Public Transport
BEIS,UKRI - UKRI,06/02/2023,UK - Professional Memberships & Subscriptions,UKRI - Strategic Finance Business Partners,Unspecified,99891491,329,UK - Professional Memberships & Subscriptions
BEIS,UKRI - UKRI,06/02/2023,T&S UK - Mileage,UKRI - Communications Themes and Partnerships,Unspecified,99891492,36.9,T&S UK - Mileage
BEIS,UKRI - EPSRC,06/02/2023,T&S UK - Public Transport,Regional Engagement - OpEx,Unspecified,99891493,5.4,T&S UK - Public Transport
BEIS,UKRI - EPSRC,06/02/2023,T&S UK - Public Transport,Regional Engagement - OpEx,Unspecified,99891493,15,T&S UK - Public Transport
BEIS,UKRI - EPSRC,06/02/2023,T&S UK - Subsistence,Regional Engagement - OpEx,Unspecified,99891493,34.95,T&S UK - Subsistence
BEIS,UKRI - EPSRC,06/02/2023,T&S UK - Subsistence,Regional Engagement - OpEx,Unspecified,99891493,16.15,T&S UK - Subsistence
BEIS,UKRI - UKRI,06/02/2023,T&S UK - Other Charges,UKRI - Communications Content,Unspecified,99891494,344,T&S UK - Other Charges
BEIS,UKRI - UKRI,06/02/2023,T&S UK - Mileage,UKRI HR – Operations,Unspecified,99891495,33.3,T&S UK - Mileage
BEIS,UKRI - UKRI,06/02/2023,T&S UK - Subsistence,UKRI HR – Operations,Unspecified,99891495,4.19,T&S UK - Subsistence
BEIS,UKRI - UKRI,06/02/2023,T&S UK - Subsistence,UKRI HR – Operations,Unspecified,99891495,25,T&S UK - Subsistence
BEIS,UKRI - UKRI,06/02/2023,T&S UK - Subsistence,UKRI HR – Operations,Unspecified,99891495,9.84,T&S UK - Subsistence
BEIS,UKRI - UKRI,06/02/2023,T&S UK - Subsistence,UKRI HR – Operations,Unspecified,99891495,6.25,T&S UK - Subsistence
BEIS,UKRI - UKRI,07/02/2023,Computer Software,UKRI - Digital Data and Technology BAU Costs,OnSolve LLC,99808783,2283.33,Computer Software
BEIS,UKRI - UKRI,07/02/2023,Computer Software,UKRI - Estates,OnSolve LLC,99808783,1841.18,Computer Software
BEIS,UKRI - UKRI,07/02/2023,Computer Software,UKRI - Estates,OnSolve LLC,99808783,29750,Computer Software
BEIS,UKRI - UKRI,07/02/2023,Staff Training,UKRI HR – Operations,Avado Learning Ltd,99871911,3598.8,Staff Training
BEIS,UKRI - UKRI,07/02/2023,Computer Software Licences,UKRI - Digital Data and Technology Recharges,Monday.com Ltd,99878968,21120,Computer Software Licences
BEIS,UKRI - UKRI,07/02/2023,Computer Software Licences,UKRI - Digital Data and Technology BAU Costs,Perforce Software Inc,99879206,3722.64,Computer Software Licences
BEIS,UKRI - UKRI,07/02/2023,Computer Software,UKRI - Digital Data and Technology BAU Costs,Trycon Technologies Private Ltd (Scanova),99884276,726.02,Computer Software
BEIS,UKRI - UKRI,07/02/2023,T&S UK - Mileage,UKRI - Digital Data and Technology BAU Costs,Unspecified,99886204,17.1,T&S UK - Mileage
BEIS,UKRI - UKRI,07/02/2023,T&S UK - Parking Tolls Congestion Charges,UKRI - Digital Data and Technology BAU Costs,Unspecified,99886204,9,T&S UK - Parking Tolls Congestion Charges
BEIS,UKRI - UKRI,07/02/2023,T&S UK - Public Transport,UKRI - Digital Data and Technology BAU Costs,Unspecified,99886204,5,T&S UK - Public Transport
BEIS,UKRI - UKRI,07/02/2023,T&S UK - Subsistence,UKRI - Digital Data and Technology BAU Costs,Unspecified,99886204,5.2,T&S UK - Subsistence
BEIS,UKRI - UKRI,07/02/2023,Staff Training,UKRI - Estates - Brussels Office,Unspecified,99887038,603.45,Staff Training
BEIS,UKRI - UKRI,07/02/2023,Staff Training,UKRI - Procurement and Commercial,Edison Personal Development Ltd,99887039,4358.4,Staff Training
BEIS,UKRI - UKRI,07/02/2023,Unspecified,UKRI - Digital Data and Technology Project Costs,Precision Resource Group Ltd T/A iO,99887080,4485,Contract Staff
BEIS,UKRI - UKRI,07/02/2023,Recruitment Costs,UKRI People and Organisation Development,Agenda Resource Management Ltd,99889626,5434.07,Recruitment Costs
BEIS,UKRI - UKRI,07/02/2023,Staff Training,"UKRI HR – Culture, Inclusion and Learning",ASK Europe PLC,99890163,17524.8,Staff Training
BEIS,UKRI - UKRI,07/02/2023,Unspecified,UKRI - Digital Data and Technology Project Costs,Precision Resource Group Ltd T/A iO,99890228,4485,Contract Staff
BEIS,UKRI - EPSRC,07/02/2023,T&S UK - Vehicle Hire,Programme Delivery Physical Sciences,Enterprise Rent-A-Car UK Ltd,99890362,73.35,T&S UK - Vehicle Hire
BEIS,UKRI - EPSRC,07/02/2023,T&S UK - Vehicle Hire,Programme Delivery Physical Sciences,Enterprise Rent-A-Car UK Ltd,99890362,56.24,T&S UK - Vehicle Hire
BEIS,UKRI - EPSRC,07/02/2023,T&S UK - Vehicle Hire,Programme Delivery Physical Sciences,Enterprise Rent-A-Car UK Ltd,99890362,11.25,T&S UK - Vehicle Hire
BEIS,UKRI - EPSRC,07/02/2023,T&S UK - Vehicle Hire,Programme Delivery Physical Sciences,Enterprise Rent-A-Car UK Ltd,99890362,14.67,T&S UK - Vehicle Hire
BEIS,UKRI - UKRI,07/02/2023,Unspecified,UKRI - Digital Data and Technology BAU Costs,AMAZON WEB SERVICES INC,99890365,50340.31,IT Cloud Services
BEIS,UKRI - UKRI,07/02/2023,Staff Training,"UKRI HR – Culture, Inclusion and Learning",ASK Europe PLC,99890957,17524.8,Staff Training
BEIS,UKRI - UKRI,07/02/2023,Printing & Stationery,UKRI - JBOS,Rapid Electronics Ltd,99891770,8.59,Printing & Stationery
BEIS,UKRI - UKRI,07/02/2023,Unspecified,Horizon Europe OPEX,Reed Specialist Recruitment Ltd,99891814,824.66,Agency Staff
BEIS,UKRI - UKRI,07/02/2023,Unspecified,Horizon Europe OPEX,Reed Specialist Recruitment Ltd,99891815,1032.49,Agency Staff
BEIS,UKRI - UKRI,07/02/2023,Unspecified,UKRI - Strategic Finance Business Partners,Alexander Mann Solutions Ltd,99892432,3307.8,Contract Staff
BEIS,UKRI - UKRI,07/02/2023,Unspecified,UKRI-SHARP,Alexander Mann Solutions Ltd,99892443,2898.24,Contract Staff
BEIS,UKRI - UKRI,07/02/2023,Unspecified,UKRI - Strategic Finance Business Partners,Alexander Mann Solutions Ltd,99892456,3150.3,Agency Staff
BEIS,UKRI - UKRI,07/02/2023,Unspecified,UKRI HR – Operations,Alexander Mann Solutions Ltd,99892460,1658.7,Contract Staff
BEIS,UKRI - UKRI,07/02/2023,Unspecified,UKRI People and Organisation Development,Alexander Mann Solutions Ltd,99892471,1575.12,Agency Staff
BEIS,UKRI - UKRI,07/02/2023,Unspecified,UKRI-SHARP,Alexander Mann Solutions Ltd,99892487,3387.66,Contract Staff
BEIS,UKRI - UKRI,07/02/2023,T&S UK - Public Transport,UKRI - Private Office,Addison Lee Plc,99892535,51.54,T&S UK - Public Transport
BEIS,UKRI - UKRI,07/02/2023,Unspecified,UKRI - Digital Data and Technology Project Costs,Alexander Mann Solutions Ltd,99892536,3780.36,Contract Staff
BEIS,UKRI - UKRI,07/02/2023,Unspecified,UKRI - Digital Data and Technology Project Costs,Alexander Mann Solutions Ltd,99892539,1539.8,Contract Staff
BEIS,UKRI - UKRI,07/02/2023,Unspecified,UKRI - Digital Data and Technology Project Costs,Alexander Mann Solutions Ltd,99892539,1539.82,Contract Staff
BEIS,UKRI - UKRI,07/02/2023,Unspecified,UKRI-SHARP,Alexander Mann Solutions Ltd,99892541,1575.12,Agency Staff
BEIS,UKRI - UKRI,07/02/2023,Postage & Courier Services,UKRI - JBOS,CitySprint (UK) Ltd,99892549,510.32,Postage & Courier Services
BEIS,UKRI - UKRI,07/02/2023,Unspecified,UKRI - Strategic Finance Business Partners,Alexander Mann Solutions Ltd,99892555,1260.12,Agency Staff
BEIS,UKRI - UKRI,07/02/2023,Unspecified,UKRI HR - CPO Office,Alexander Mann Solutions Ltd,99892557,4927.44,Agency Staff
BEIS,UKRI - UKRI,07/02/2023,Unspecified,UKRI - Digital Data and Technology Project Costs,Alexander Mann Solutions Ltd,99892569,4003.56,Contract Staff
BEIS,UKRI - UKRI,07/02/2023,Unspecified,UKRI - Digital Data and Technology Project Costs,Alexander Mann Solutions Ltd,99892618,7560.72,Contract Staff
BEIS,UKRI - UKRI,07/02/2023,Unspecified,UKRI-SHARP,Alexander Mann Solutions Ltd,99892620,8190.72,Contract Staff
BEIS,UKRI - UKRI,07/02/2023,Unspecified,UKRI - Digital Data and Technology Project Costs,Alexander Mann Solutions Ltd,99892622,3980.88,Contract Staff
BEIS,UKRI - UKRI,07/02/2023,Unspecified,UKRI-SHARP,Alexander Mann Solutions Ltd,99892624,3150.3,Contract Staff
BEIS,UKRI - UKRI,07/02/2023,Unspecified,UKRI-SHARP,Alexander Mann Solutions Ltd,99892626,2819.82,Contract Staff
BEIS,UKRI - UKRI,07/02/2023,Unspecified,UKRI - Funding Service,Alexander Mann Solutions Ltd,99892632,4410.42,Contract Staff
BEIS,UKRI - UKRI,07/02/2023,Unspecified,UKRI-SHARP,Alexander Mann Solutions Ltd,99892642,3387.66,Contract Staff
BEIS,UKRI - UKRI,07/02/2023,Unspecified,UKRI-SHARP,Alexander Mann Solutions Ltd,99892645,381,Contract Staff
BEIS,UKRI - UKRI,07/02/2023,Unspecified,UKRI - Digital Data and Technology Project Costs,Alexander Mann Solutions Ltd,99892648,3307.8,Contract Staff
BEIS,UKRI - UKRI,07/02/2023,Unspecified,UKRI-SHARP,LA International Computer Consultants Ltd,99892660,2693.4,Contract Staff
BEIS,UKRI - UKRI,07/02/2023,Unspecified,UKRI-SHARP,LA International Computer Consultants Ltd,99892693,3593.4,Contract Staff
BEIS,UKRI - UKRI,07/02/2023,Unspecified,UKRI-SHARP,LA International Computer Consultants Ltd,99892719,3593.4,Contract Staff
BEIS,UKRI - UKRI,07/02/2023,Unspecified,UKRI - Digital Data and Technology BAU Costs,Zoom Video Communications Inc,99892749,764465.47,IT Cloud Services
BEIS,UKRI - UKRI,07/02/2023,Meetings & Catering,"UKRI HR – Culture, Inclusion and Learning",Benugo Ltd,99892784,94.8,Meetings & Catering
BEIS,UKRI - UKRI,07/02/2023,Research Grant Expenditure,Public Engagement Programmes,INSTITUTION OF MECHANICAL ENGINEERS,99892814,12500,Research Grant Expenditure
BEIS,UKRI - UKRI,07/02/2023,Advertising & Promotion,UKRI - Communications Content,Ewelina Karpowiak T/A Klawe Rzeczy - Design Studio,99892832,600,Advertising & Promotion
BEIS,UKRI - UKRI,07/02/2023,T&S UK - Accommodation,UKRI - Strategic Finance Business Partners,Unspecified,99892966,109,T&S UK - Accommodation
BEIS,UKRI - UKRI,07/02/2023,T&S UK - Public Transport,UKRI - Strategic Finance Business Partners,Unspecified,99892966,58.8,T&S UK - Public Transport
BEIS,UKRI - UKRI,07/02/2023,T&S UK - Subsistence,UKRI - Strategic Finance Business Partners,Unspecified,99892966,16.25,T&S UK - Subsistence
BEIS,UKRI - UKRI,07/02/2023,UK - Professional Memberships & Subscriptions,UKRI - Strategic Finance Business Partners,Unspecified,99892967,329,UK - Professional Memberships & Subscriptions
BEIS,UKRI - UKRI,07/02/2023,T&S UK - Mileage,UKRI - Digital Data and Technology BAU Costs,Unspecified,99892968,143,T&S UK - Mileage
BEIS,UKRI - UKRI,07/02/2023,T&S UK - Public Transport,"Governance, Assurance and Operations",Unspecified,99892969,2.8,T&S UK - Public Transport
BEIS,UKRI - UKRI,07/02/2023,T&S UK - Subsistence,"Governance, Assurance and Operations",Unspecified,99892969,10.95,T&S UK - Subsistence
BEIS,UKRI - UKRI,07/02/2023,T&S UK - Subsistence,"Governance, Assurance and Operations",Unspecified,99892969,5.99,T&S UK - Subsistence
BEIS,UKRI - UKRI,07/02/2023,T&S UK - Subsistence,"Governance, Assurance and Operations",Unspecified,99892969,19.35,T&S UK - Subsistence
BEIS,UKRI - UKRI,07/02/2023,T&S UK - Subsistence,"Governance, Assurance and Operations",Unspecified,99892969,3.4,T&S UK - Subsistence
BEIS,UKRI - UKRI,07/02/2023,T&S UK - Mileage,UKRI - Procurement and Commercial,Unspecified,99892970,177.3,T&S UK - Mileage
BEIS,UKRI - UKRI,07/02/2023,T&S UK - Parking Tolls Congestion Charges,UKRI - Procurement and Commercial,Unspecified,99892970,6.1,T&S UK - Parking Tolls Congestion Charges
BEIS,UKRI - UKRI,07/02/2023,T&S UK - Mileage,UKRI - Risk and Counter Fraud,Unspecified,99892971,351,T&S UK - Mileage
BEIS,UKRI - UKRI,07/02/2023,T&S UK - Subsistence,UKRI - Risk and Counter Fraud,Unspecified,99892971,47.8,T&S UK - Subsistence
BEIS,UKRI - UKRI,07/02/2023,T&S UK - Subsistence,UKRI - Risk and Counter Fraud,Unspecified,99892971,81.35,T&S UK - Subsistence
BEIS,UKRI - UKRI,07/02/2023,T&S UK - Subsistence,Research Integrity Support Team OpEx,Unspecified,99892972,529.79,T&S UK - Subsistence
BEIS,UKRI - UKRI,07/02/2023,T&S UK - Vehicle Hire,Research Integrity Support Team OpEx,Unspecified,99892972,60.57,T&S UK - Vehicle Hire
BEIS,UKRI - EPSRC,07/02/2023,T&S UK - Other Charges,Manufacturing and Circular Economy,Unspecified,99892973,8.54,T&S UK - Other Charges
BEIS,UKRI - UKRI,07/02/2023,T&S UK - Mileage,UKRI - External Communications,Unspecified,99892974,8.48,T&S UK - Mileage
BEIS,UKRI - UKRI,07/02/2023,UK - Professional Memberships & Subscriptions,UKRI - Digital Data and Technology BAU Costs,Unspecified,99892975,196,UK - Professional Memberships & Subscriptions
BEIS,UKRI - UKRI,07/02/2023,T&S UK - Vehicle Hire,"UKRI - Data Policy, Governance and MI",Unspecified,99892976,58.05,T&S UK - Vehicle Hire
BEIS,UKRI - UKRI,07/02/2023,T&S UK - Mileage,"UKRI - Data Policy, Governance and MI",Unspecified,99892977,85,T&S UK - Mileage
BEIS,UKRI - EPSRC,07/02/2023,T&S UK - Subsistence,Digital Security and resilience,Unspecified,99892978,2.2,T&S UK - Subsistence
BEIS,UKRI - EPSRC,07/02/2023,T&S UK - Subsistence,Digital Security and resilience,Unspecified,99892978,18.7,T&S UK - Subsistence
BEIS,UKRI - EPSRC,07/02/2023,T&S UK - Subsistence,Digital Security and resilience,Unspecified,99892978,2.7,T&S UK - Subsistence
BEIS,UKRI - EPSRC,07/02/2023,T&S UK - Vehicle Hire,Digital Security and resilience,Unspecified,99892978,20.35,T&S UK - Vehicle Hire
BEIS,UKRI - UKRI,07/02/2023,T&S UK - Mileage,UKRI - Procurement and Commercial,Unspecified,99892982,90.2,T&S UK - Mileage
BEIS,UKRI - EPSRC,07/02/2023,T&S UK - Public Transport,Directors and Deputy Directors,Unspecified,99892983,14.9,T&S UK - Public Transport
BEIS,UKRI - EPSRC,07/02/2023,T&S UK - Subsistence,Directors and Deputy Directors,Unspecified,99892983,15,T&S UK - Subsistence
BEIS,UKRI - EPSRC,07/02/2023,T&S UK - Subsistence,Directors and Deputy Directors,Unspecified,99892983,25,T&S UK - Subsistence
BEIS,UKRI - UKRI,07/02/2023,T&S UK - Mileage,UKRI - Executive Group,Unspecified,99892984,66.6,T&S UK - Mileage
BEIS,UKRI - UKRI,07/02/2023,T&S UK - Parking Tolls Congestion Charges,UKRI - Executive Group,Unspecified,99892984,75,T&S UK - Parking Tolls Congestion Charges
BEIS,UKRI - UKRI,07/02/2023,T&S UK - Public Transport,UKRI - Executive Group,Unspecified,99892984,84.2,T&S UK - Public Transport
BEIS,UKRI - UKRI,07/02/2023,T&S UK - Subsistence,UKRI - Executive Group,Unspecified,99892984,223.84,T&S UK - Subsistence
BEIS,UKRI - Research England,07/02/2023,Health & Safety (inc. Medicals & Opticians),RE - Knowledge Exchange,Unspecified,99892985,100,Health & Safety (inc. Medicals & Opticians)
BEIS,UKRI - UKRI,07/02/2023,T&S UK - Other Charges,International Policy and Stakeholder Engagement,Unspecified,99893170,-1024.14,T&S UK - Other Charges
BEIS,UKRI - UKRI,08/02/2023,Computer Software,UKRI - Digital Data and Technology BAU Costs,DATABARRACKS LTD,99878284,524400,Computer Software
BEIS,UKRI - EPSRC,08/02/2023,Capital Grants & Equipment to HEIs,NC Infrastructure,UKRI - Medical Research Council,99881919,12250,Capital Grants & Equipment to HEIs
BEIS,UKRI - EPSRC,08/02/2023,Other Programme Costs,NC Infrastructure,UKRI - Medical Research Council,99881919,143112.5,Other Programme Costs
BEIS,UKRI - UKRI,08/02/2023,Health & Safety (inc. Medicals & Opticians),"UKRI - Data Policy, Governance and MI",Unspecified,99883991,49.9,Health & Safety (inc. Medicals & Opticians)
BEIS,UKRI - UKRI,08/02/2023,T&S UK - Vehicle Hire,"UKRI - Data Policy, Governance and MI",Unspecified,99883991,49,T&S UK - Vehicle Hire
BEIS,UKRI - UKRI,08/02/2023,Printing & Stationery,UKRI - JBOS,Banner Group Ltd,99884164,72,Printing & Stationery
BEIS,UKRI - UKRI,08/02/2023,Staff Training,UKRI - Digital Data and Technology BAU Costs,Best Practice Consulting (UK) Ltd,99885387,3349.2,Staff Training
BEIS,UKRI - UKRI,08/02/2023,T&S UK - Mileage,UKRI HR – Operations,Unspecified,99885766,157.5,T&S UK - Mileage
BEIS,UKRI - UKRI,08/02/2023,T&S UK - Mileage,UKRI HR – Operations,Unspecified,99886202,31.5,T&S UK - Mileage
BEIS,UKRI - UKRI,08/02/2023,Staff Training,UKRI - Digital Data and Technology BAU Costs,Best Practice Consulting (UK) Ltd,99886401,3252,Staff Training
BEIS,UKRI - UKRI,08/02/2023,Staff Training,UKRI - Digital Data and Technology BAU Costs,Best Practice Consulting (UK) Ltd,99886402,2107.2,Staff Training
BEIS,UKRI - UKRI,08/02/2023,Computer Software,UKRI - Digital Data and Technology BAU Costs,DATABARRACKS LTD,99887218,486000,Computer Software
BEIS,UKRI - EPSRC,08/02/2023,Other Bought In Services,Digital Security and resilience,Meeting Mojo Ltd,99887298,5448,Other Bought In Services
BEIS,UKRI - UKRI,08/02/2023,Unspecified,Open Research,Clare Painter Associates Ltd,99889743,12000,Legal & Professional Services
BEIS,UKRI - EPSRC,08/02/2023,T&S UK - Public Transport,Programme Delivery Physical Sciences,Unspecified,99890046,17.87,T&S UK - Public Transport
BEIS,UKRI - EPSRC,08/02/2023,T&S UK - Public Transport,Programme Delivery Physical Sciences,Unspecified,99890046,10.8,T&S UK - Public Transport
BEIS,UKRI - EPSRC,08/02/2023,T&S UK - Subsistence,Programme Delivery Physical Sciences,Unspecified,99890046,11.01,T&S UK - Subsistence
BEIS,UKRI - EPSRC,08/02/2023,T&S UK - Subsistence,Programme Delivery Physical Sciences,Unspecified,99890046,20,T&S UK - Subsistence
BEIS,UKRI - UKRI,08/02/2023,Removal Services,UKRI - Estates,Harrow Green Ltd T/A Restore Harrow Green,99890474,987.5,Removal Services
BEIS,UKRI - UKRI,08/02/2023,Staff Training,UKRI - Digital Data and Technology BAU Costs,Best Practice Consulting (UK) Ltd,99891393,1107,Staff Training
BEIS,UKRI - UKRI,08/02/2023,Staff Training,UKRI - Digital Data and Technology BAU Costs,Best Practice Consulting (UK) Ltd,99891400,720,Staff Training
BEIS,UKRI - UKRI,08/02/2023,Staff Training,UKRI - Digital Data and Technology BAU Costs,Best Practice Consulting (UK) Ltd,99891406,7976.4,Staff Training
BEIS,UKRI - UKRI,08/02/2023,Staff Training,UKRI - Digital Data and Technology BAU Costs,Best Practice Consulting (UK) Ltd,99891705,2052,Staff Training
BEIS,UKRI - UKRI,08/02/2023,Computer Software,UKRI - Digital Data and Technology BAU Costs,DATABARRACKS LTD,99892005,-524400,Computer Software
BEIS,UKRI - UKRI,08/02/2023,Unspecified,UKRI - Communications Content,McDaid Public Relations Ltd,99892015,1170,Legal & Professional Services
BEIS,UKRI - UKRI,08/02/2023,Staff Training,UKRI - Management Reporting,Dods Group Ltd,99892025,300,Staff Training
BEIS,UKRI - UKRI,08/02/2023,Unspecified,UKRI-SHARP,Alexander Mann Solutions Ltd,99892435,1512.14,Agency Staff
BEIS,UKRI - UKRI,08/02/2023,Unspecified,UKRI-SHARP,Alexander Mann Solutions Ltd,99892437,3969.32,Agency Staff
BEIS,UKRI - UKRI,08/02/2023,Removal Services,UKRI - Estates,Harrow Green Ltd T/A Restore Harrow Green,99892451,127.01,Removal Services
BEIS,UKRI - UKRI,08/02/2023,Recruitment Costs,UKRI People and Organisation Development,Onefix Recruitment Ltd,99892542,1614,Recruitment Costs
BEIS,UKRI - UKRI,08/02/2023,Health & Safety (inc. Medicals & Opticians),UKRI HR – Operations,Cordell Health Ltd,99892847,4800,Health & Safety (inc. Medicals & Opticians)
BEIS,UKRI - UKRI,08/02/2023,Advertising & Promotion,UKRI - Communications Content,Unspecified,99893161,4500,Advertising & Promotion
BEIS,UKRI - EPSRC,08/02/2023,Fees (Including College Members),Business Improvement,Unspecified,99893190,240,Fees (Including College Members)
BEIS,UKRI - EPSRC,08/02/2023,Non-staff travel and subsistance,Business Improvement,Unspecified,99893191,160,Non-staff travel and subsistance
BEIS,UKRI - EPSRC,08/02/2023,Fees (Including College Members),Business Improvement,Unspecified,99893192,320,Fees (Including College Members)
BEIS,UKRI - UKRI,08/02/2023,Unspecified,UKRI Covid-19 opex,Technopolis Ltd,99893276,60150,Legal & Professional Services
BEIS,UKRI - UKRI,08/02/2023,Printing & Stationery,UKRI HR – Operations,Banner Group Ltd,99893378,28.09,Printing & Stationery
BEIS,UKRI - UKRI,08/02/2023,Printing & Stationery,UKRI - JBOS,Banner Group Ltd,99893379,1.56,Printing & Stationery
BEIS,UKRI - UKRI,08/02/2023,Non-staff travel and subsistance,Research Integrity Committee Programme,Unspecified,99893409,32.6,Non-staff travel and subsistance
BEIS,UKRI - UKRI,08/02/2023,T&S UK - Parking Tolls Congestion Charges,UKRI - Strategic Finance Business Partners,Unspecified,99893528,104.5,T&S UK - Parking Tolls Congestion Charges
BEIS,UKRI - UKRI,08/02/2023,T&S UK - Public Transport,UKRI - Strategic Finance Business Partners,Unspecified,99893528,13.59,T&S UK - Public Transport
BEIS,UKRI - UKRI,08/02/2023,T&S UK - Subsistence,UKRI - Strategic Finance Business Partners,Unspecified,99893528,7.8,T&S UK - Subsistence
BEIS,UKRI - UKRI,08/02/2023,T&S UK - Subsistence,UKRI - Strategic Finance Business Partners,Unspecified,99893528,18.01,T&S UK - Subsistence
BEIS,UKRI - UKRI,08/02/2023,T&S UK - Subsistence,UKRI - Strategic Finance Business Partners,Unspecified,99893528,19.27,T&S UK - Subsistence
BEIS,UKRI - EPSRC,08/02/2023,T&S UK - Mileage,Programme Delivery ICT,Unspecified,99893529,18.9,T&S UK - Mileage
BEIS,UKRI - EPSRC,08/02/2023,T&S UK - Parking Tolls Congestion Charges,Programme Delivery ICT,Unspecified,99893529,10.8,T&S UK - Parking Tolls Congestion Charges
BEIS,UKRI - EPSRC,08/02/2023,T&S UK - Public Transport,Programme Delivery ICT,Unspecified,99893529,2.5,T&S UK - Public Transport
BEIS,UKRI - EPSRC,08/02/2023,T&S UK - Subsistence,Programme Delivery ICT,Unspecified,99893529,6.2,T&S UK - Subsistence
BEIS,UKRI - EPSRC,08/02/2023,T&S UK - Subsistence,Programme Delivery ICT,Unspecified,99893529,12.5,T&S UK - Subsistence
BEIS,UKRI - EPSRC,08/02/2023,T&S UK - Subsistence,Programme Delivery ICT,Unspecified,99893529,3.8,T&S UK - Subsistence
BEIS,UKRI - UKRI,08/02/2023,T&S UK - Parking Tolls Congestion Charges,UKRI - Communications Projects and Services,Unspecified,99893530,12.62,T&S UK - Parking Tolls Congestion Charges
BEIS,UKRI - UKRI,08/02/2023,T&S UK - Subsistence,UKRI - Communications Projects and Services,Unspecified,99893531,15.95,T&S UK - Subsistence
BEIS,UKRI - UKRI,08/02/2023,T&S UK - Subsistence,UKRI - Communications Projects and Services,Unspecified,99893531,25.05,T&S UK - Subsistence
BEIS,UKRI - EPSRC,08/02/2023,T&S UK - Other Charges,Regional Engagement - OpEx,Unspecified,99893532,2.25,T&S UK - Other Charges
BEIS,UKRI - EPSRC,08/02/2023,T&S UK - Subsistence,Regional Engagement - OpEx,Unspecified,99893532,25,T&S UK - Subsistence
BEIS,UKRI - EPSRC,08/02/2023,T&S UK - Other Charges,EDI and People,Unspecified,99893533,4.8,T&S UK - Other Charges
BEIS,UKRI - EPSRC,08/02/2023,T&S UK - Public Transport,EDI and People,Unspecified,99893533,3,T&S UK - Public Transport
BEIS,UKRI - EPSRC,08/02/2023,T&S UK - Subsistence,EDI and People,Unspecified,99893533,6.3,T&S UK - Subsistence
BEIS,UKRI - EPSRC,08/02/2023,T&S UK - Subsistence,EDI and People,Unspecified,99893533,21.43,T&S UK - Subsistence
BEIS,UKRI - EPSRC,08/02/2023,Health & Safety (inc. Medicals & Opticians),Governance and Planning,Unspecified,99893535,50,Health & Safety (inc. Medicals & Opticians)
BEIS,UKRI - UKRI,08/02/2023,T&S UK - Other Charges,UKRI - External Communications,Unspecified,99893536,55.23,T&S UK - Other Charges
BEIS,UKRI - UKRI,08/02/2023,T&S UK - Parking Tolls Congestion Charges,UKRI - External Communications,Unspecified,99893536,21.8,T&S UK - Parking Tolls Congestion Charges
BEIS,UKRI - UKRI,08/02/2023,T&S UK - Subsistence,UKRI - External Communications,Unspecified,99893536,4.8,T&S UK - Subsistence
BEIS,UKRI - UKRI,08/02/2023,T&S UK - Subsistence,UKRI - External Communications,Unspecified,99893536,23,T&S UK - Subsistence
BEIS,UKRI - UKRI,08/02/2023,T&S UK - Subsistence,UKRI - External Communications,Unspecified,99893536,15.15,T&S UK - Subsistence
BEIS,UKRI - EPSRC,08/02/2023,T&S UK - Other Charges,EPSRC Corporate Services,Unspecified,99893537,4.7,T&S UK - Other Charges
BEIS,UKRI - EPSRC,08/02/2023,T&S UK - Subsistence,EPSRC Corporate Services,Unspecified,99893537,6.9,T&S UK - Subsistence
BEIS,UKRI - UKRI,08/02/2023,T&S UK - Parking Tolls Congestion Charges,UKRI - Communications Projects and Services,Unspecified,99893542,12.62,T&S UK - Parking Tolls Congestion Charges
BEIS,UKRI - UKRI,08/02/2023,T&S UK - Other Charges,UKRI - Communications Projects and Services,Unspecified,99893543,6.99,T&S UK - Other Charges
BEIS,UKRI - UKRI,08/02/2023,T&S UK - Public Transport,UKRI - Communications Projects and Services,Unspecified,99893543,4,T&S UK - Public Transport
BEIS,UKRI - UKRI,08/02/2023,T&S UK - Subsistence,UKRI - Communications Projects and Services,Unspecified,99893543,13.5,T&S UK - Subsistence
BEIS,UKRI - UKRI,08/02/2023,T&S UK - Subsistence,UKRI - Communications Projects and Services,Unspecified,99893543,7.89,T&S UK - Subsistence
BEIS,UKRI - UKRI,08/02/2023,T&S UK - Vehicle Hire,UKRI - Communications Projects and Services,Unspecified,99893543,117.35,T&S UK - Vehicle Hire
BEIS,UKRI - UKRI,09/02/2023,Computer Software Licences,UKRI - Digital Data and Technology Recharges,Phoenix Software Ltd,99884640,61.78,Computer Software Licences
BEIS,UKRI - UKRI,09/02/2023,Purchase of non capital equipment,UKRI - Estates,Rapid Electronics Ltd,99886798,16.56,Purchase of non capital equipment
BEIS,UKRI - UKRI,09/02/2023,Purchase of non capital equipment,UKRI - Estates,Rapid Electronics Ltd,99886798,3.6,Purchase of non capital equipment
BEIS,UKRI - UKRI,09/02/2023,Unspecified,Horizon Europe OPEX,Alexander Mann Solutions Ltd,99887666,3150.3,Agency Staff
BEIS,UKRI - UKRI,09/02/2023,Unspecified,UKRI - Digital Data and Technology Project Costs,Infotechtion Ltd,99888657,19572.96,Legal & Professional Services
BEIS,UKRI - UKRI,09/02/2023,Postage & Courier Services,UKRI - Estates - Brussels Office,Unspecified,99889732,17.5,Postage & Courier Services
BEIS,UKRI - UKRI,09/02/2023,Security Services,UKRI - Estates - Brussels Office,Unspecified,99889732,36.6,Security Services
BEIS,UKRI - UKRI,09/02/2023,Unspecified,UKRI - Digital Data and Technology Recharges,Unspecified,99892115,849.64,Networking Maintenance
BEIS,UKRI - UKRI,09/02/2023,Unspecified,UKRI HR – Operations,Outer Temple Chambers,99892119,3600,Legal & Professional Services
BEIS,UKRI - UKRI,09/02/2023,Unspecified,UKRI HR – Operations,Outer Temple Chambers,99892121,1080,Legal & Professional Services
BEIS,UKRI - Research England,09/02/2023,Unspecified,RE - Operations and Private Office,The Office for Students,99892158,14188.32,Contract Staff
BEIS,UKRI - UKRI,09/02/2023,Unspecified,UKRI HR - Corporate Projects,Do-It Solutions Ltd,99892196,2640,Legal & Professional Services
BEIS,UKRI - UKRI,09/02/2023,Unspecified,UKRI-SHARP,Sanderson Government and Defence Ltd,99892265,10094.7,Contract Staff
BEIS,UKRI - UKRI,09/02/2023,Unspecified,UKRI-SHARP,Sanderson Government and Defence Ltd,99892272,13304.26,Contract Staff
BEIS,UKRI - UKRI,09/02/2023,Computer Hardware,UKRI - Overseas Office China,"Foreign, Commonwealth and Development Office",99892306,413,Computer Hardware
BEIS,UKRI - UKRI,09/02/2023,Meetings & Catering,UKRI - Overseas Office China,"Foreign, Commonwealth and Development Office",99892306,423.44,Meetings & Catering
BEIS,UKRI - UKRI,09/02/2023,Mobile Phone Costs,UKRI - Overseas Office China,"Foreign, Commonwealth and Development Office",99892306,306.18,Mobile Phone Costs
BEIS,UKRI - UKRI,09/02/2023,Other Staff Benefits,UKRI - Overseas Office China,"Foreign, Commonwealth and Development Office",99892306,3377.52,Other Staff Benefits
BEIS,UKRI - UKRI,09/02/2023,Printing & Stationery,UKRI - Overseas Office China,"Foreign, Commonwealth and Development Office",99892306,1684.29,Printing & Stationery
BEIS,UKRI - UKRI,09/02/2023,Unspecified,UKRI - Overseas Office China,"Foreign, Commonwealth and Development Office",99892306,15397.05,Secondments
BEIS,UKRI - UKRI,09/02/2023,Staff Training,UKRI - Overseas Office China,"Foreign, Commonwealth and Development Office",99892306,1012.84,Staff Training
BEIS,UKRI - UKRI,09/02/2023,T&S Overseas - Public Transport,UKRI - Overseas Office China,"Foreign, Commonwealth and Development Office",99892306,1258.72,T&S Overseas - Public Transport
BEIS,UKRI - UKRI,09/02/2023,Other Staff Benefits,UKRI - Overseas Office China,"Foreign, Commonwealth and Development Office",99892315,3416.31,Other Staff Benefits
BEIS,UKRI - UKRI,09/02/2023,Computing Consumables,UKRI - Overseas Office India,"Foreign, Commonwealth and Development Office",99892317,244.87,Computing Consumables
BEIS,UKRI - UKRI,09/02/2023,Unspecified,UKRI - Overseas Office India,"Foreign, Commonwealth and Development Office",99892317,9935.75,Secondments
BEIS,UKRI - UKRI,09/02/2023,Computing Consumables,UKRI - Overseas Office India,"Foreign, Commonwealth and Development Office",99892323,105.65,Computing Consumables
BEIS,UKRI - UKRI,09/02/2023,Computing Consumables,UKRI - Overseas Office India,"Foreign, Commonwealth and Development Office",99892332,0.01,Computing Consumables
BEIS,UKRI - UKRI,09/02/2023,T&S UK - Mileage,UKRI HR – Operations,Unspecified,99892365,35.1,T&S UK - Mileage
BEIS,UKRI - EPSRC,09/02/2023,T&S UK - Other Charges,Manufacturing and Circular Economy,Unspecified,99892366,30,T&S UK - Other Charges
BEIS,UKRI - EPSRC,09/02/2023,T&S UK - Other Charges,Programme Delivery Maths,Unspecified,99892368,6.5,T&S UK - Other Charges
BEIS,UKRI - EPSRC,09/02/2023,T&S UK - Public Transport,Programme Delivery Maths,Unspecified,99892368,46,T&S UK - Public Transport
BEIS,UKRI - EPSRC,09/02/2023,T&S UK - Public Transport,Programme Delivery Maths,Unspecified,99892368,34,T&S UK - Public Transport
BEIS,UKRI - EPSRC,09/02/2023,T&S UK - Public Transport,Programme Delivery Maths,Unspecified,99892368,5.05,T&S UK - Public Transport
BEIS,UKRI - EPSRC,09/02/2023,T&S UK - Subsistence,Programme Delivery Maths,Unspecified,99892368,59.09,T&S UK - Subsistence
BEIS,UKRI - EPSRC,09/02/2023,T&S UK - Subsistence,Programme Delivery Maths,Unspecified,99892368,24.3,T&S UK - Subsistence
BEIS,UKRI - EPSRC,09/02/2023,T&S UK - Subsistence,Programme Delivery Maths,Unspecified,99892368,12.9,T&S UK - Subsistence
BEIS,UKRI - EPSRC,09/02/2023,T&S UK - Other Charges,EPSRC Corporate Services,Unspecified,99892369,11.99,T&S UK - Other Charges
BEIS,UKRI - UKRI,09/02/2023,Health & Safety (inc. Medicals & Opticians),UKRI - Digital Data and Technology BAU Costs,Unspecified,99892370,100,Health & Safety (inc. Medicals & Opticians)
BEIS,UKRI - UKRI,09/02/2023,T&S UK - Parking Tolls Congestion Charges,UKRI - Digital Data and Technology BAU Costs,Unspecified,99892371,16,T&S UK - Parking Tolls Congestion Charges
BEIS,UKRI - UKRI,09/02/2023,T&S UK - Subsistence,UKRI - Digital Data and Technology BAU Costs,Unspecified,99892371,10.5,T&S UK - Subsistence
BEIS,UKRI - UKRI,09/02/2023,T&S UK - Subsistence,UKRI - Communications External Affairs,Unspecified,99892372,25,T&S UK - Subsistence
BEIS,UKRI - UKRI,09/02/2023,T&S UK - Subsistence,UKRI - Communications External Affairs,Unspecified,99892373,25,T&S UK - Subsistence
BEIS,UKRI - UKRI,09/02/2023,T&S UK - Mileage,UKRI - Communications Themes and Partnerships,Unspecified,99892375,11.7,T&S UK - Mileage
BEIS,UKRI - UKRI,09/02/2023,T&S UK - Other Charges,UKRI - Communications Themes and Partnerships,Unspecified,99892375,51.39,T&S UK - Other Charges
BEIS,UKRI - UKRI,09/02/2023,T&S UK - Public Transport,UKRI - Communications Themes and Partnerships,Unspecified,99892375,2,T&S UK - Public Transport
BEIS,UKRI - UKRI,09/02/2023,T&S UK - Public Transport,UKRI - Communications Themes and Partnerships,Unspecified,99892375,9.7,T&S UK - Public Transport
BEIS,UKRI - UKRI,09/02/2023,T&S UK - Subsistence,UKRI - Communications Themes and Partnerships,Unspecified,99892375,15.64,T&S UK - Subsistence
BEIS,UKRI - UKRI,09/02/2023,T&S UK - Subsistence,UKRI - Communications Themes and Partnerships,Unspecified,99892375,36.24,T&S UK - Subsistence
BEIS,UKRI - UKRI,09/02/2023,T&S UK - Subsistence,UKRI - Communications Themes and Partnerships,Unspecified,99892375,19.7,T&S UK - Subsistence
BEIS,UKRI - UKRI,09/02/2023,T&S UK - Other Charges,UKRI - Communications Themes and Partnerships,Unspecified,99892376,169.98,T&S UK - Other Charges
BEIS,UKRI - EPSRC,09/02/2023,T&S UK - Mileage,Programme Delivery Healthcare,Unspecified,99892377,94.5,T&S UK - Mileage
BEIS,UKRI - UKRI,09/02/2023,T&S UK - Mileage,UKRI HR – Operations,Unspecified,99892378,63,T&S UK - Mileage
BEIS,UKRI - UKRI,09/02/2023,T&S UK - Subsistence,UKRI - UKRO,Unspecified,99892379,21,T&S UK - Subsistence
BEIS,UKRI - EPSRC,09/02/2023,T&S UK - Public Transport,Programme Delivery Engineering,Unspecified,99892380,6.3,T&S UK - Public Transport
BEIS,UKRI - EPSRC,09/02/2023,T&S UK - Public Transport,Programme Delivery Physical Sciences,Unspecified,99892380,6.3,T&S UK - Public Transport
BEIS,UKRI - EPSRC,09/02/2023,T&S UK - Subsistence,Programme Delivery Engineering,Unspecified,99892380,19.93,T&S UK - Subsistence
BEIS,UKRI - EPSRC,09/02/2023,T&S UK - Subsistence,Programme Delivery Engineering,Unspecified,99892380,10.6,T&S UK - Subsistence
BEIS,UKRI - UKRI,09/02/2023,Unspecified,Horizon Europe OPEX,Alexander Mann Solutions Ltd,99892448,2520.24,Agency Staff
BEIS,UKRI - UKRI,09/02/2023,Removal Services,UKRI - Estates,Harrow Green Ltd T/A Restore Harrow Green,99892455,10.58,Removal Services
BEIS,UKRI - UKRI,09/02/2023,Marketing & PR,UKRI People and Organisation Development,Onefix Recruitment Ltd,99892546,666,Marketing & PR
BEIS,UKRI - UKRI,09/02/2023,Staff Training,"Governance, Assurance and Operations",Wise Owl Business Solutions Ltd,99893801,954,Staff Training
BEIS,UKRI - EPSRC,09/02/2023,Reward & Recognition Team Advances,Balance Sheet,EDENRED (UK GROUP) LTD,99893829,4554.16,Reward & Recognition Team Advances
BEIS,UKRI - UKRI,10/02/2023,Computer Software,UKRI - Digital Data and Technology Recharges,Jisc Services Ltd,99870351,120,Computer Software
BEIS,UKRI - UKRI,10/02/2023,Computer Software,UKRI - Digital Data and Technology Recharges,Jisc Services Ltd,99870351,14919.6,Computer Software
BEIS,UKRI - UKRI,10/02/2023,Marketing & PR,UKRI - Communications Themes and Partnerships,Cision Group Ltd,99872112,2848.98,Marketing & PR
BEIS,UKRI - UKRI,10/02/2023,Marketing & PR,UKRI - External Communications,Cision Group Ltd,99872112,558.02,Marketing & PR
BEIS,UKRI - UKRI,10/02/2023,Health & Safety (inc. Medicals & Opticians),UKRI HR – Operations,Cordell Health Ltd,99872993,3470,Health & Safety (inc. Medicals & Opticians)
BEIS,UKRI - UKRI,10/02/2023,Marketing & PR,UKRI - External Communications,Cision Group Ltd,99875668,6164,Marketing & PR
BEIS,UKRI - EPSRC,10/02/2023,Corporate Events,EPSRC Corporate Services,Calder Conference Ltd,99879849,1496.99,Corporate Events
BEIS,UKRI - UKRI,10/02/2023,Health & Safety (inc. Medicals & Opticians),UKRI HR – Operations,Cordell Health Ltd,99880392,660,Health & Safety (inc. Medicals & Opticians)
BEIS,UKRI - UKRI,10/02/2023,Computer Hardware,UKRI - Digital Data and Technology Project Costs,Logicalis Uk Ltd,99880823,46500,Computer Hardware
BEIS,UKRI - UKRI,10/02/2023,Unspecified,UKRI - Digital Data and Technology Project Costs,Alexander Mann Solutions Ltd,99883783,2771.7,Contract Staff
BEIS,UKRI - Research England,10/02/2023,Unspecified,RE - Research Excellence Framework (REF),Nottingham Trent University,99883959,900,Council & Committee Honoraria
BEIS,UKRI - UKRI,10/02/2023,T&S UK - Other Charges,"Analysis, Evaluation and Implementation",Unspecified,99885759,492.14,T&S UK - Other Charges
BEIS,UKRI - UKRI,10/02/2023,Unspecified,UKRI - Digital Data and Technology Project Costs,Precision Resource Group Ltd T/A iO,99887068,2952,Contract Staff
BEIS,UKRI - UKRI,10/02/2023,Unspecified,UKRI - Digital Data and Technology Project Costs,Precision Resource Group Ltd T/A iO,99887087,3090,Contract Staff
BEIS,UKRI - UKRI,10/02/2023,Unspecified,UKRI - Security,Precision Resource Group Ltd T/A iO,99887088,4485,Contract Staff
BEIS,UKRI - UKRI,10/02/2023,Unspecified,UKRI - Digital Data and Technology Project Costs,LA International Computer Consultants Ltd,99887381,9221.52,Contract Staff
BEIS,UKRI - EPSRC,10/02/2023,T&S UK - Public Transport,Digital Security and resilience,Unspecified,99887472,10.6,T&S UK - Public Transport
BEIS,UKRI - UKRI,10/02/2023,Unspecified,UKRI - Digital Data and Technology Project Costs,Alexander Mann Solutions Ltd,99887682,3937.86,Contract Staff
BEIS,UKRI - UKRI,10/02/2023,Unspecified,UKRI - Digital Data and Technology Project Costs,Alexander Mann Solutions Ltd,99887705,3900.23,Contract Staff
BEIS,UKRI - UKRI,10/02/2023,Unspecified,UKRI - Digital Data and Technology Project Costs,Alexander Mann Solutions Ltd,99887747,2771.7,Contract Staff
BEIS,UKRI - UKRI,10/02/2023,Unspecified,UKRI - Digital Data and Technology BAU Costs,Alexander Mann Solutions Ltd,99887757,7391.16,Contract Staff
BEIS,UKRI - Research England,10/02/2023,Staff Training,RE - Operations and Private Office,Praxis Courses Ltd T/A PraxisAuril,99888338,935,Staff Training
BEIS,UKRI - UKRI,10/02/2023,Advertising & Promotion,UKRI - Communications Business Partners,Derek Holmes T/A Derek Holmes Media,99888394,62.5,Advertising & Promotion
BEIS,UKRI - UKRI,10/02/2023,Unspecified,UKRI - Digital Data and Technology Project Costs,LA International Computer Consultants Ltd,99888442,3593.4,Contract Staff
BEIS,UKRI - UKRI,10/02/2023,Staff Training,UKRI HR - Corporate Projects,Marshall ACM Ltd,99889085,16800,Staff Training
BEIS,UKRI - UKRI,10/02/2023,Unspecified,UKRI - Communications Web and Intranet Service,Derek Holmes T/A Derek Holmes Media,99889710,1212.5,Legal & Professional Services
BEIS,UKRI - Research England,10/02/2023,T&S UK - Mileage,RE - Research,Unspecified,99890041,13.32,T&S UK - Mileage
BEIS,UKRI - Research England,10/02/2023,T&S UK - Parking Tolls Congestion Charges,RE - Research,Unspecified,99890041,56.99,T&S UK - Parking Tolls Congestion Charges
BEIS,UKRI - Research England,10/02/2023,T&S UK - Public Transport,RE - Research,Unspecified,99890041,78.6,T&S UK - Public Transport
BEIS,UKRI - Research England,10/02/2023,T&S UK - Subsistence,RE - Research,Unspecified,99890041,7.75,T&S UK - Subsistence
BEIS,UKRI - Research England,10/02/2023,T&S UK - Subsistence,RE - Research,Unspecified,99890041,15,T&S UK - Subsistence
BEIS,UKRI - UKRI,10/02/2023,Unspecified,UKRI - Digital Data and Technology Project Costs,Precision Resource Group Ltd T/A iO,99890205,3090,Contract Staff
BEIS,UKRI - UKRI,10/02/2023,Unspecified,UKRI - Security,Precision Resource Group Ltd T/A iO,99890207,4485,Contract Staff
BEIS,UKRI - UKRI,10/02/2023,Unspecified,UKRI - Digital Data and Technology Project Costs,Precision Resource Group Ltd T/A iO,99890208,4185,Contract Staff
BEIS,UKRI - UKRI,10/02/2023,Unspecified,UKRI - Digital Data and Technology Project Costs,Precision Resource Group Ltd T/A iO,99890211,3540,Contract Staff
BEIS,UKRI - UKRI,10/02/2023,Unspecified,UKRI - Digital Data and Technology Project Costs,Precision Resource Group Ltd T/A iO,99890217,3690,Contract Staff
BEIS,UKRI - UKRI,10/02/2023,Health & Safety (inc. Medicals & Opticians),UKRI HR – Operations,Cordell Health Ltd,99890331,294,Health & Safety (inc. Medicals & Opticians)
BEIS,UKRI - UKRI,10/02/2023,Internal Audit,UKRI - Financial Accounting,KPMG LLP,99890969,12000,Internal Audit
BEIS,UKRI - UKRI,10/02/2023,Unspecified,UKRI - Digital Data and Technology Project Costs,Sanderson Government and Defence Ltd,99892223,14084.7,Contract Staff
BEIS,UKRI - UKRI,10/02/2023,Unspecified,UKRI - Digital Data and Technology Project Costs,Sanderson Government and Defence Ltd,99892238,13159.06,Contract Staff
BEIS,UKRI - UKRI,10/02/2023,Unspecified,UKRI - Digital Data and Technology Project Costs,Alexander Mann Solutions Ltd,99892459,3937.86,Contract Staff
BEIS,UKRI - UKRI,10/02/2023,Unspecified,UKRI - Digital Data and Technology Project Costs,Alexander Mann Solutions Ltd,99892475,3808.92,Contract Staff
BEIS,UKRI - UKRI,10/02/2023,Unspecified,UKRI - Digital Data and Technology Project Costs,Alexander Mann Solutions Ltd,99892550,2771.7,Contract Staff
BEIS,UKRI - UKRI,10/02/2023,Unspecified,UKRI - Digital Data and Technology BAU Costs,Alexander Mann Solutions Ltd,99892647,3780.36,Contract Staff
BEIS,UKRI - UKRI,10/02/2023,Unspecified,UKRI - Digital Data and Technology BAU Costs,Alexander Mann Solutions Ltd,99892649,1478.23,Contract Staff
BEIS,UKRI - UKRI,10/02/2023,Unspecified,UKRI - Digital Data and Technology Project Costs,LA International Computer Consultants Ltd,99892680,3293.4,Contract Staff
BEIS,UKRI - UKRI,10/02/2023,Unspecified,UKRI - Digital Data and Technology Project Costs,LA International Computer Consultants Ltd,99892690,3593.4,Contract Staff
BEIS,UKRI - UKRI,10/02/2023,Removal Services,UKRI - Estates,Harrow Green Ltd T/A Restore Harrow Green,99892818,2837.24,Removal Services
BEIS,UKRI - UKRI,10/02/2023,Removal Services,UKRI - Estates,Harrow Green Ltd T/A Restore Harrow Green,99892819,283.72,Removal Services
BEIS,UKRI - Research England,10/02/2023,External Audit Fees,RE - Operations and Private Office,KPMG LLP,99892848,122184,External Audit Fees
BEIS,UKRI - UKRI,10/02/2023,Unspecified,UKRI - Digital Data and Technology BAU Costs,Michael Page International Recruitment Limited T/A Page Personnel,99893091,5011.44,Contract Staff
BEIS,UKRI - UKRI,10/02/2023,T&S UK - Public Transport,UKRI - Estates,Addison Lee Plc,99893156,33.48,T&S UK - Public Transport
BEIS,UKRI - UKRI,10/02/2023,Unspecified,UKRI - Digital Data and Technology BAU Costs,Involved Solutions Ltd,99893994,3528.72,Contract Staff
BEIS,UKRI - UKRI,10/02/2023,Removal Services,UKRI - Estates,Harrow Green Ltd T/A Restore Harrow Green,99894013,176.76,Removal Services
BEIS,UKRI - UKRI,10/02/2023,Staff Training,UKRI - Communication and Engagement,Global Insight Conferences Ltd,99894034,503.7,Staff Training
BEIS,UKRI - UKRI,10/02/2023,Unspecified,UKRI - Communications Web and Intranet Service,Scroll Ltd,99894055,11730,Legal & Professional Services
BEIS,UKRI - UKRI,10/02/2023,Unspecified,UKRI - Communications Web and Intranet Service,Scroll Ltd,99894056,8280,Legal & Professional Services
BEIS,UKRI - EPSRC,10/02/2023,Non-staff travel and subsistance,Business Improvement,Unspecified,99894057,240,Non-staff travel and subsistance
BEIS,UKRI - EPSRC,10/02/2023,Non-staff travel and subsistance,Business Improvement,Unspecified,99894058,160,Non-staff travel and subsistance
BEIS,UKRI - EPSRC,10/02/2023,Fees (Including College Members),Business Improvement,Unspecified,99894059,160,Fees (Including College Members)
BEIS,UKRI - EPSRC,10/02/2023,Non-staff travel and subsistance,Business Improvement,Unspecified,99894060,240,Non-staff travel and subsistance
BEIS,UKRI - EPSRC,10/02/2023,Non-staff travel and subsistance,Business Improvement,Unspecified,99894061,240,Non-staff travel and subsistance
BEIS,UKRI - EPSRC,10/02/2023,Fees (Including College Members),Business Improvement,Unspecified,99894062,124.2,Fees (Including College Members)
BEIS,UKRI - EPSRC,10/02/2023,Non-staff travel and subsistance,Business Improvement,Unspecified,99894063,320,Non-staff travel and subsistance
BEIS,UKRI - UKRI,10/02/2023,Non-staff travel and subsistance,Research Integrity Committee Programme,Unspecified,99894138,15.49,Non-staff travel and subsistance
BEIS,UKRI - UKRI,10/02/2023,Non-staff travel and subsistance,Research Integrity Committee Programme,Unspecified,99894139,30.3,Non-staff travel and subsistance
BEIS,UKRI - UKRI,10/02/2023,Non-staff travel and subsistance,Research Integrity Committee Programme,Unspecified,99894140,80.57,Non-staff travel and subsistance
BEIS,UKRI - UKRI,10/02/2023,Non-staff travel and subsistance,Research Integrity Committee Programme,Unspecified,99894141,283.25,Non-staff travel and subsistance
BEIS,UKRI - UKRI,10/02/2023,Non-staff travel and subsistance,Research Integrity Committee Programme,Unspecified,99894142,371.99,Non-staff travel and subsistance
BEIS,UKRI - EPSRC,10/02/2023,Non-staff travel and subsistance,SPF - NICER OpEx,Unspecified,99894150,116.2,Non-staff travel and subsistance
BEIS,UKRI - EPSRC,10/02/2023,Fees (Including College Members),SPF - NICER OpEx,Unspecified,99894151,320,Fees (Including College Members)
BEIS,UKRI - UKRI,10/02/2023,Books Professional Journals & Guides,UKRI - Digital Data and Technology Library Services,OK Bargains Ltd T/A Shauns News,99894153,63.5,Books Professional Journals & Guides
BEIS,UKRI - UKRI,10/02/2023,Corporate Events,UKRI - Executive Group,Department for Business Energy & Industrial Strategy,99894401,600,Corporate Events
BEIS,UKRI - UKRI,10/02/2023,Printing & Stationery,UKRI - JBOS,Banner Group Ltd,99894539,31.2,Printing & Stationery
BEIS,UKRI - Research England,10/02/2023,Other Programme Costs,RE - SIPF Programme Delivery,FRONTIER ECONOMICS LTD,99894583,57630,Other Programme Costs
BEIS,UKRI - EPSRC,10/02/2023,Non-staff travel and subsistance,Programme Delivery Physical Sciences,Unspecified,99894660,176.24,Non-staff travel and subsistance
BEIS,UKRI - UKRI,10/02/2023,Recruitment Costs,UKRI People and Organisation Development,Warwick University Services Ltd,99894662,564,Recruitment Costs
BEIS,UKRI - UKRI,10/02/2023,T&S UK - Public Transport,UKRI - Council Partnership and Performance,Unspecified,99894877,4,T&S UK - Public Transport
BEIS,UKRI - UKRI,10/02/2023,T&S UK - Mileage,UKRI HR – Operations,Unspecified,99894878,38.25,T&S UK - Mileage
BEIS,UKRI - UKRI,10/02/2023,T&S UK - Parking Tolls Congestion Charges,UKRI HR – Operations,Unspecified,99894878,4,T&S UK - Parking Tolls Congestion Charges
BEIS,UKRI - UKRI,10/02/2023,T&S UK - Mileage,UKRI - Strategy,Unspecified,99894879,140.18,T&S UK - Mileage
BEIS,UKRI - UKRI,10/02/2023,T&S UK - Subsistence,UKRI - Strategy,Unspecified,99894879,38.27,T&S UK - Subsistence
BEIS,UKRI - UKRI,10/02/2023,T&S UK - Other Charges,UKRI - Communications Web and Intranet Service,Unspecified,99894880,239.99,T&S UK - Other Charges
BEIS,UKRI - UKRI,10/02/2023,T&S UK - Mileage,UKRI HR – Operations,Unspecified,99894881,26.1,T&S UK - Mileage
BEIS,UKRI - UKRI,10/02/2023,T&S UK - Other Charges,UKRI - JSS,Unspecified,99894882,100,T&S UK - Other Charges
BEIS,UKRI - EPSRC,10/02/2023,T&S UK - Other Charges,Programme Delivery ICT,Unspecified,99894883,5.4,T&S UK - Other Charges
BEIS,UKRI - EPSRC,10/02/2023,T&S UK - Public Transport,Programme Delivery ICT,Unspecified,99894883,5.2,T&S UK - Public Transport
BEIS,UKRI - EPSRC,10/02/2023,T&S UK - Subsistence,Programme Delivery ICT,Unspecified,99894883,7.5,T&S UK - Subsistence
BEIS,UKRI - EPSRC,10/02/2023,T&S UK - Subsistence,Programme Delivery ICT,Unspecified,99894883,9.7,T&S UK - Subsistence
BEIS,UKRI - UKRI,10/02/2023,T&S UK - Mileage,UKRI HR – Operations,Unspecified,99894884,31.95,T&S UK - Mileage
BEIS,UKRI - UKRI,10/02/2023,T&S UK - Other Charges,UKRI - Strategic Finance Business Partners,Unspecified,99894885,130,T&S UK - Other Charges
BEIS,UKRI - EPSRC,10/02/2023,T&S UK - Other Charges,Programme Delivery Maths,Unspecified,99894886,7.95,T&S UK - Other Charges
BEIS,UKRI - EPSRC,10/02/2023,T&S UK - Public Transport,Programme Delivery Maths,Unspecified,99894886,18,T&S UK - Public Transport
BEIS,UKRI - EPSRC,10/02/2023,T&S UK - Public Transport,Programme Delivery Maths,Unspecified,99894886,5.05,T&S UK - Public Transport
BEIS,UKRI - EPSRC,10/02/2023,T&S UK - Subsistence,Programme Delivery Maths,Unspecified,99894886,24.87,T&S UK - Subsistence
BEIS,UKRI - EPSRC,10/02/2023,T&S UK - Subsistence,Programme Delivery Maths,Unspecified,99894886,14.4,T&S UK - Subsistence
BEIS,UKRI - UKRI,10/02/2023,Health & Safety (inc. Medicals & Opticians),UKRI - JSS,Unspecified,99894887,100,Health & Safety (inc. Medicals & Opticians)
BEIS,UKRI - UKRI,10/02/2023,T&S UK - Parking Tolls Congestion Charges,UKRI HR – Operations,Unspecified,99894888,16.4,T&S UK - Parking Tolls Congestion Charges
BEIS,UKRI - UKRI,10/02/2023,T&S UK - Subsistence,UKRI HR – Operations,Unspecified,99894888,22.3,T&S UK - Subsistence
BEIS,UKRI - UKRI,10/02/2023,T&S UK - Subsistence,UKRI HR – Operations,Unspecified,99894888,12.35,T&S UK - Subsistence
BEIS,UKRI - UKRI,10/02/2023,T&S UK - Vehicle Hire,UKRI HR – Operations,Unspecified,99894888,53.37,T&S UK - Vehicle Hire
BEIS,UKRI - UKRI,10/02/2023,T&S UK - Mileage,UKRI - Digital Data and Technology BAU Costs,Unspecified,99894889,32.4,T&S UK - Mileage
BEIS,UKRI - UKRI,10/02/2023,T&S UK - Parking Tolls Congestion Charges,UKRI - Digital Data and Technology BAU Costs,Unspecified,99894889,7,T&S UK - Parking Tolls Congestion Charges
BEIS,UKRI - UKRI,13/02/2023,Corporate Events,EDI,University of Birmingham,99863543,2811,Corporate Events
BEIS,UKRI - UKRI,13/02/2023,Computer Hardware,UKRI - Digital Data and Technology Recharges,Logicalis Uk Ltd,99865574,487954.78,Computer Hardware
BEIS,UKRI - EPSRC,13/02/2023,T&S UK - Vehicle Hire,Directors and Deputy Directors,Enterprise Rent-A-Car UK Ltd,99867934,78.44,T&S UK - Vehicle Hire
BEIS,UKRI - EPSRC,13/02/2023,T&S UK - Vehicle Hire,Directors and Deputy Directors,Enterprise Rent-A-Car UK Ltd,99867934,15.69,T&S UK - Vehicle Hire
BEIS,UKRI - UKRI,13/02/2023,T&S UK - Vehicle Hire,UKRI - Strategic Finance Business Partners,Enterprise Rent-A-Car UK Ltd,99867934,107.32,T&S UK - Vehicle Hire
BEIS,UKRI - UKRI,13/02/2023,T&S UK - Vehicle Hire,UKRI - Strategic Finance Business Partners,Enterprise Rent-A-Car UK Ltd,99867934,21.46,T&S UK - Vehicle Hire
BEIS,UKRI - UKRI,13/02/2023,Unspecified,UKRI - Risk and Counter Fraud,Corporate Governance Risk Ltd,99870084,3000,Legal & Professional Services
BEIS,UKRI - UKRI,13/02/2023,Internal Audit,UKRI - Assurance,HM Treasury Group,99881786,278461.5,Internal Audit
BEIS,UKRI - UKRI,13/02/2023,Unspecified,UKRI - Digital Data and Technology BAU Costs,Logicalis Uk Ltd,99882012,3120,Legal & Professional Services
BEIS,UKRI - UKRI,13/02/2023,Telecoms - Non Capital Hardware Costs,UKRI - Digital Data and Technology BAU Costs,Telefonica UK Ltd (O2),99887246,70.8,Telecoms - Non Capital Hardware Costs
BEIS,UKRI - UKRI,13/02/2023,Unspecified,UKRI - Digital Data and Technology Project Costs,LA International Computer Consultants Ltd,99887368,3981.18,Contract Staff
BEIS,UKRI - UKRI,13/02/2023,Unspecified,UKRI - Digital Data and Technology Project Costs,Alexander Mann Solutions Ltd,99887651,3150.3,Contract Staff
BEIS,UKRI - UKRI,13/02/2023,Unspecified,UKRI - Security,LA International Computer Consultants Ltd,99888425,2320.08,Contract Staff
BEIS,UKRI - UKRI,13/02/2023,Computer Software Licences,UKRI - Digital Data and Technology Project Costs,Softcat plc,99889061,3750,Computer Software Licences
BEIS,UKRI - UKRI,13/02/2023,Staff Training,"UKRI HR – Culture, Inclusion and Learning",Learning Solutions Matter Ltd,99889097,9480,Staff Training
BEIS,UKRI - UKRI,13/02/2023,Computer Software Licences,"UKRI - Data Policy, Governance and MI",Open Policy Ltd T/A Overton,99889479,38640,Computer Software Licences
BEIS,UKRI - UKRI,13/02/2023,Cleaning & Sterilisation,UKRI - Estates,VWR International Ltd,99889952,70.12,Cleaning & Sterilisation
BEIS,UKRI - UKRI,13/02/2023,Unspecified,UKRI - Digital Data and Technology BAU Costs,Precision Resource Group Ltd T/A iO,99890206,5085,Contract Staff
BEIS,UKRI - UKRI,13/02/2023,Unspecified,"UKRI - Data Policy, Governance and MI",Department for Education,99890320,9532.22,Secondments
BEIS,UKRI - UKRI,13/02/2023,Telecoms - Non Capital Hardware Costs,UKRI - Digital Data and Technology Recharges,Telefonica UK Ltd (O2),99890694,34920,Telecoms - Non Capital Hardware Costs
BEIS,UKRI - UKRI,13/02/2023,Library Services,UKRI - Digital Data and Technology Library Services,Haymarket Media Group Limited,99890988,2865,Library Services
BEIS,UKRI - UKRI,13/02/2023,Library Services,UKRI - Digital Data and Technology Library Services,Haymarket Media Group Limited,99890988,65,Library Services
BEIS,UKRI - UKRI,13/02/2023,Corporate Events,UKRI - Procurement and Commercial,Calder Conference Ltd,99891368,1083.8,Corporate Events
BEIS,UKRI - UKRI,13/02/2023,Unspecified,UKRI - Funding Service,LA International Computer Consultants Ltd,99891763,3593.4,Contract Staff
BEIS,UKRI - UKRI,13/02/2023,Books Professional Journals & Guides,UKRI - Digital Data and Technology Library Services,Cambridge University Press,99892064,13480.5,Books Professional Journals & Guides
BEIS,UKRI - UKRI,13/02/2023,Books Professional Journals & Guides,UKRI - Digital Data and Technology Library Services,Cambridge University Press,99892064,1161.54,Books Professional Journals & Guides
BEIS,UKRI - UKRI,13/02/2023,Purchase of non capital equipment,UKRI - Estates,Rapid Electronics Ltd,99892109,4.61,Purchase of non capital equipment
BEIS,UKRI - UKRI,13/02/2023,Unspecified,UKRI - Digital Data and Technology Project Costs,Sanderson Government and Defence Ltd,99892233,18150,Contract Staff
BEIS,UKRI - UKRI,13/02/2023,Unspecified,UKRI - Digital Data and Technology Project Costs,Sanderson Government and Defence Ltd,99892240,14962.5,Contract Staff
BEIS,UKRI - UKRI,13/02/2023,Unspecified,UKRI - Digital Data and Technology Project Costs,Sanderson Government and Defence Ltd,99892242,18382.5,Contract Staff
BEIS,UKRI - UKRI,13/02/2023,Unspecified,UKRI - Digital Data and Technology Project Costs,Sanderson Government and Defence Ltd,99892244,79.38,Contract Staff
BEIS,UKRI - UKRI,13/02/2023,Unspecified,UKRI - Digital Data and Technology Project Costs,Sanderson Government and Defence Ltd,99892246,9804,Contract Staff
BEIS,UKRI - UKRI,13/02/2023,Research Grant Expenditure,"Governance, Assurance and Operations",UKRI - Natural Environment Research Council,99892405,40000,Research Grant Expenditure
BEIS,UKRI - UKRI,13/02/2023,Unspecified,UKRI People and Organisation Development,Alexander Mann Solutions Ltd,99892444,1575.12,Contract Staff
BEIS,UKRI - UKRI,13/02/2023,Unspecified,UKRI - Funding Service,LA International Computer Consultants Ltd,99892495,3593.4,Contract Staff
BEIS,UKRI - UKRI,13/02/2023,Unspecified,UKRI - Funding Service,LA International Computer Consultants Ltd,99892501,3593.4,Contract Staff
BEIS,UKRI - UKRI,13/02/2023,Unspecified,UKRI - Digital Data and Technology Project Costs,Alexander Mann Solutions Ltd,99892518,2925.66,Contract Staff
BEIS,UKRI - UKRI,13/02/2023,Unspecified,UKRI - Funding Service,LA International Computer Consultants Ltd,99892519,2874.72,Contract Staff
BEIS,UKRI - UKRI,13/02/2023,Unspecified,UKRI - Digital Data and Technology Project Costs,Alexander Mann Solutions Ltd,99892522,6300.6,Contract Staff
BEIS,UKRI - UKRI,13/02/2023,Unspecified,UKRI - Funding Service,LA International Computer Consultants Ltd,99892523,5030.76,Contract Staff
BEIS,UKRI - UKRI,13/02/2023,Unspecified,UKRI - Funding Service,LA International Computer Consultants Ltd,99892532,3593.4,Contract Staff
BEIS,UKRI - UKRI,13/02/2023,Unspecified,UKRI - Funding Service,Alexander Mann Solutions Ltd,99892561,7699.08,Contract Staff
BEIS,UKRI - UKRI,13/02/2023,Unspecified,UKRI - Digital Data and Technology Project Costs,Alexander Mann Solutions Ltd,99892635,1847.78,Contract Staff
BEIS,UKRI - UKRI,13/02/2023,Unspecified,UKRI - Digital Data and Technology Project Costs,Alexander Mann Solutions Ltd,99892635,1847.8,Contract Staff
BEIS,UKRI - UKRI,13/02/2023,Unspecified,UKRI - Digital Data and Technology Project Costs,LA International Computer Consultants Ltd,99892681,3981.18,Contract Staff
BEIS,UKRI - UKRI,13/02/2023,Unspecified,UKRI - Digital Data and Technology Project Costs,LA International Computer Consultants Ltd,99892687,12514.92,Contract Staff
